Workbook

Sheet Instructions
T9: Climatic Conditions | U9: Run No. | V9: % NPP Baseline | W9: % ET baseline | X9: % WUE baseline
T10: Baseline, 350 CO2 | U10: 1 | V10: 100 | W10: 100 | X10: 100
T11: Temp + 2C | U11: 2 | V11: 99.35381111 | W11: 105.3138408 | X11: 94.34069667
T12: Precip +30% | U12: 3 | V12: 100.6503916 | W12: 90.03145313 | X12: 111.7946986
T13: Frost days -30% | U13: 4 | V13: 113.5393793 | W13: 126.3151606 | X13: 89.88578949
T14: Baseline, RCP 4.5 CO2 | U14: 5 | V14: 108.0385732 | W14: 80.01036892 | X14: 135.0307149
T15: Temp + 2C,-Rain and Frost -30%, 350 CO2 | U15: 6 | V15: 81.52196594 | W15: 104.3562674 | X15: 78.11889784
T16: Ditto with RCP 4.5 CO2 | U16: 7 | V16: 139.6921767 | W16: 116.2996683 | X16: 120.1139941

Sheet Ex 7 Chinese spruce at 3200 m (hidden)
A2: Run type : | B2: SingleSite | E2: Stand initialisation and site factor data | R2: =AVERAGE(X4:X16) -> 
A3: Site : | B3: Quilan Mountains | F3: Year planted = | G3: 1732 | I3: Latitude = | J3: 38 | O3: Vary Block
A4: Species : | B4: Picea crassifolia | F4: Month planted = | G4: April | I4: Fertility rating = | J4: 0.1 | O4: Age | P4: CO2
A5: Climate data : | B5: Metdata | F5: Initial year = | G5: 1 | I5: Soil class = | J5: cl | O5: 202 | P5: 311.3
A6: Met station : | B6: Yearly data | F6: Initial month = | G6: Dec | I6: Maximum ASW = | J6: 200 | O6: 203 | P6: 311.8
A7: Title : | B7: Climate Change NW China | F7: End age = | G7: 280 | I7: Minimum ASW = | J7: 0 | O7: 204 | P7: 312.6
B8: Annual Runs 1957-2012 | F8: Initial WF = | G8: 1 | I8: Atmospheric CO2 = | J8: 354 | O8: 205 | P8: 312.6
F9: Initial WR = | G9: 0.5 | O9: 206 | P9: 313.2
F10: Initial WS = | G10: 1.5 | H10: CO2 in 1950 was 311 ppm | O10: 207 | P10: 313.7
F11: Initial stocking = | G11: 200 | H11: CO2 in 1990 was 354 ppm | O11: 208 | P11: 314.3
F12: Initial ASW = | G12: 200 | H12: CO2 in 2009 was 385 ppm | O12: 209 | P12: 314.8
O13: 210 | P13: 315.3
O14: 211 | P14: 316.2
O15: 212 | P15: 317.1
F16: Output details | O16: 213 | P16: 317.7
G17: Output frequency : | H17: a | O17: 214 | P17: 318.4
O18: 215 | P18: 319.1
O19: 216 | P19: 319.6
O20: 217 | P20: 320.2 | S20: Year | T20: GjPP, Mg (dm)/ha/yr | U20: Dev from mean | V20: fractional Dev. From Mean | X20: % of max GPP
O21: 218 | P21: 321.6 | S21: 1957 | T21: 21.08071968 | U21: =T21-18.56 -> 2.520719678 | V21: =U21/18.56 -> 0.1358146378 | X21: =(T21/27.64)*100 -> 76.26888451
O22: 219 | P22: 322.3 | S22: 1958 | T22: 23.01438132 | U22: =T22-18.56 -> 4.454381324 | V22: =U22/18.56 -> 0.2399989937 | X22: =(T22/27.64)*100 -> 83.264766
J23: Variable | K23: Simulated Change | L23: Change in Photosynthesis | O23: 220 | P23: 323 | S23: 1959 | T23: 20.3232891 | U23: 1.763289099 | V23: 0.09500480058 | X23: 73.52854233
J24: Growing Season Temp | K24: 1980 with 2009 Temp | L24: -0.03 | O24: 221 | P24: 324.2 | S24: 1960 | T24: 20.94060108 | U24: 2.380601077 | V24: 0.1282651442 | X24: 75.76194312
J25: Growing Season Temp | K25: 2009 with 1980 Temp | L25: 0.02 | O25: 222 | P25: 325.5 | S25: 1961 | T25: 21.48677064 | U25: 2.926770636 | V25: 0.1576923834 | X25: 77.73795454
O26: 223 | P26: 326.4 | S26: 1962 | T26: 19.17845875 | U26: 0.6184587508 | V26: 0.03332213097 | X26: 69.38660908
J27: CO2 Effect | K27: 1980 with 2009 CO2 (385) | L27: 0.2 | O27: 224 | P27: 327.45 | S27: 1963 | T27: 21.35337997 | U27: 2.793379968 | V27: 0.1505053862 | X27: 77.25535444
J28: CO2 Effect | K28: 2009 with 1980 CO2 (337) | L28: -0.14 | O28: 225 | P28: 329.4 | S28: 1964 | T28: 22.13503271 | U28: 3.575032713 | V28: 0.192620297 | X28: 80.08333109
O29: 226 | P29: 330.2 | S29: 1965 | T29: 20.65085935 | U29: 2.09085935 | V29: 0.1126540598 | X29: 74.71367348
J30: Frost Effect | K30: 1980 with 2009 Frost | L30: 0.42 | O30: 227 | P30: 331.4 | S30: 1966 | T30: 21.37455944 | U30: 2.814559439 | V30: 0.1516465215 | X30: 77.3319806
J31: Frost Effect | K31: 2009 with 1980 Frost | L31: -0.27 | O31: 228 | P31: 331.9 | S31: 1967 | T31: 22.73122415 | U31: 4.17122415 | V31: 0.2247426805 | X31: 82.24031892
O32: 229 | P32: 333.7 | S32: 1968 | T32: 20.41322689 | U32: 1.853226889 | V32: 0.09985058671 | X32: 73.85393231
O33: 230 | P33: 335.4 | S33: 1969 | T33: 21.90347797 | U33: 3.34347797 | V33: 0.1801442872 | X33: 79.24557876
O34: 231 | P34: 337.1 | S34: 1970 | T34: 20.54368029 | U34: 1.983680291 | V34: 0.1068793261 | X34: 74.32590554
O35: 232 | P35: 339 | S35: 1971 | T35: 22.01290187 | U35: 3.452901868 | V35: 0.1860399714 | X35: 79.64146841
A36: #Output from 3PGpjs 2.7 / 3-PG vsn 1 Sep2009 | O36: 233 | P36: 340.4 | S36: 1972 | T36: 23.74406116 | U36: 5.18406116 | V36: 0.2793136401 | X36: 85.90470752
A37: Stand development for Quilan Mountains | O37: 234 | P37: 341.6 | S37: 1973 | T37: 21.49333958 | U37: 2.933339579 | V37: 0.1580463135 | X37: 77.76172062
A38: Climate Change NW China | O38: 235 | P38: 342.5 | S38: 1974 | T38: 22.06478134 | U38: 3.504781336 | V38: 0.1888352013 | X38: 79.82916547
A39: Year & month | B39: Stand age | C39: Stems | D39: Foliage DM | E39: Root DM | F39: Stem DM | G39: Stand volume | H39: LAI | I39: MAI | J39: Mean DBH | K39: Basal area | L39: GPP | M39: Penman transp. | O39: 236 | P39: 344.2 | S39: 1975 | T39: 22.0091409 | U39: 3.449140898 | V39: 0.1858373328 | X39: 79.62786142
A40: 1733 - Dec | B40: 1.666666667 | C40: 200 | D40: 1 | E40: 0.5 | F40: 1.5 | G40: 3.269230769 | H40: 0.3734867246 | I40: 1.961538462 | J40: 7.303282465 | K40: 0.8378303202 | O40: 237 | P40: 345.7 | S40: 1976 | T40: 20.06106969 | U40: 1.501069693 | V40: 0.08087659984 | X40: 72.57984694
A41: 1734 - Dec | B41: 2.666666667 | C41: 200 | D41: 1.158433104 | E41: 0.365192648 | F41: 1.729951345 | G41: 3.770406778 | H41: 0.3877237023 | I41: 1.413902542 | J41: 7.757934024 | K41: 0.9453922569 | L41: 3.10742379 | M41: 24.5365045 | O41: 238 | P41: 347.15 | S41: 1977 | T41: 19.93804318 | U41: 1.378043184 | V41: 0.07424801637 | X41: 72.13474379
A42: 1735 - Dec | B42: 3.666666667 | C42: 200 | D42: 1.272121059 | E42: 0.3785054731 | F42: 1.979292109 | G42: 4.313841775 | H42: 0.4052339467 | I42: 1.176502302 | J42: 8.213083046 | K42: 1.05957647 | L42: 3.376875611 | M42: 23.47956814 | O42: 239 | P42: 348.9 | S42: 1978 | T42: 20.34956802 | U42: 1.789568018 | V42: 0.09642069063 | X42: 73.62361801
A43: 1736 - Dec | B43: 4.666666667 | C43: 200 | D43: 1.361280572 | E43: 0.4501665131 | F43: 2.268440932 | G43: 4.944037929 | H43: 0.4138953191 | I43: 1.059436699 | J43: 8.70122398 | K43: 1.1892703 | L43: 3.946735404 | M43: 25.75665062 | O43: 240 | P43: 351.5 | S43: 1979 | T43: 21.04753645 | U43: 2.487536452 | V43: 0.1340267485 | X43: 76.14882942
A44: 1737 - Dec | B44: 5.666666667 | C44: 200 | D44: 1.438652861 | E44: 0.5093519133 | F44: 2.593551639 | G44: 5.652612546 | H44: 0.4262921844 | I44: 0.9975198611 | J44: 9.208943748 | K44: 1.332108248 | L44: 4.441086002 | M44: 28.17557951 | O44: 241 | P44: 353.15 | S44: 1980 | T44: 19.8568744 | U44: 1.296874399 | V44: 0.06987469824 | X44: 71.84107959
A45: 1738 - Dec | B45: 6.666666667 | C45: 200 | D45: 1.47638919 | E45: 0.5005666185 | F45: 2.907051941 | G45: 6.335882436 | H45: 0.4374210458 | I45: 0.9503823655 | J45: 9.664820921 | K45: 1.467261425 | L45: 4.279810914 | M45: 25.77443834 | O45: 242 | P45: 354.3 | S45: 1981 | T45: 23.34563689 | U45: 4.785636891 | V45: 0.2578468153 | X45: 84.46323043
A46: 1739 - Dec | B46: 7.666666667 | C46: 200 | D46: 1.557017462 | E46: 0.5804275394 | F46: 3.282617758 | G46: 7.154423318 | H46: 0.45452993 | I46: 0.9331856502 | J46: 10.17505667 | K46: 1.62627337 | L46: 5.112895051 | M46: 29.28570062 | O46: 243 | P46: 355.7 | S46: 1982 | T46: 19.72849089 | U46: 1.168490895 | V46: 0.06295748356 | X46: 71.37659513
A47: 1740 - Dec | B47: 8.666666667 | C47: 200 | D47: 1.66354841 | E47: 0.6390626176 | F47: 3.706140682 | G47: 8.077486102 | H47: 0.4833906191 | I47: 0.9320176271 | J47: 10.71154072 | K47: 1.802286223 | L47: 5.718986772 | M47: 31.18538523 | O47: 244 | P47: 356.4 | S47: 1983 | T47: 20.44496537 | U47: 1.884965375 | V47: 0.1015606344 | X47: 73.9687604
A48: 1741 - Dec | B48: 9.666666667 | C48: 200 | D48: 1.74859492 | E48: 0.6424260592 | F48: 4.128571861 | G48: 8.99816944 | H48: 0.5115752955 | I48: 0.9308451145 | J48: 11.2124671 | K48: 1.974796008 | L48: 5.730193767 | M48: 31.45109435 | O48: 245 | P48: 357.1 | S48: 1984 | T48: 20.60409222 | U48: 2.044092216 | V48: 0.1101342789 | X48: 74.54447256
A49: 1742 - Dec | B49: 10.66666667 | C49: 200 | D49: 1.861035982 | E49: 0.7256328867 | F49: 4.59709793 | G49: 10.019316 | H49: 0.5396221263 | I49: 0.9393108752 | J49: 11.73459917 | K49: 2.162999385 | L49: 6.340665612 | M49: 34.14139087 | O49: 246 | P49: 358.6 | S49: 1985 | T49: 21.88482384 | U49: 3.324823841 | V49: 0.1791392156 | X49: 79.17808915
A50: 1743 - Dec | B50: 11.66666667 | C50: 200 | D50: 2.016921362 | E50: 0.81837009 | F50: 5.136097962 | G50: 11.19405966 | H50: 0.5810986921 | I50: 0.959490828 | J50: 12.29860695 | K50: 2.375919497 | L50: 7.26307041 | M50: 37.47824187 | O50: 247 | P50: 360.7 | S50: 1986 | T50: 21.34764742 | U50: 2.787647417 | V50: 0.1501965203 | X50: 77.23461439
A51: 1744 - Dec | B51: 12.66666667 | C51: 200 | D51: 2.123327606 | E51: 0.8015631406 | F51: 5.652087811 | G51: 12.31865292 | H51: 0.6195942651 | I51: 0.9725252306 | J51: 12.80737193 | K51: 2.576557984 | L51: 7.005716269 | M51: 37.93859167 | O51: 248 | P51: 362.6 | S51: 1987 | T51: 21.23634988 | U51: 2.676349884 | V51: 0.144199886 | X51: 76.83194603
A52: 1745 - Dec | B52: 13.66666667 | C52: 200 | D52: 2.278991414 | E52: 0.9047541558 | F52: 6.243268592 | G52: 13.60712386 | H52: 0.6598279019 | I52: 0.9956432089 | J52: 13.3583633 | K52: 2.803021173 | L52: 8.037198188 | M52: 43.53983498 | O52: 249 | P52: 363.5 | S52: 1988 | T52: 22.66626157 | U52: 4.106261568 | V52: 0.2212425414 | X52: 82.00528787
A53: 1746 - Dec | B53: 14.66666667 | C53: 200 | D53: 2.406161096 | E53: 0.9289449684 | F53: 6.833356265 | G53: 14.89321237 | H53: 0.7003601389 | I53: 1.015446298 | J53: 13.8790838 | K53: 3.02580874 | L53: 8.052544719 | M53: 44.58656164 | O53: 250 | P53: 366.3 | S53: 1989 | T53: 23.96287591 | U53: 5.402875906 | V53: 0.2911032277 | X53: 86.69636724
A54: 1747 - Dec | B54: 15.66666667 | C54: 200 | D54: 2.591919019 | E54: 1.054267569 | F54: 7.512395973 | G54: 16.37317071 | H54: 0.7475444371 | I54: 1.045096003 | J54: 14.44715458 | K54: 3.278570419 | L54: 9.203542593 | M54: 49.46716114 | O54: 251 | P54: 368.4 | S54: 1990 | T54: 20.72096445 | U54: 2.160964454 | V54: 0.1164312744 | X54: 74.96730989
A55: 1748 - Dec | B55: 16.66666667 | C55: 200 | D55: 2.833580353 | E55: 1.169365768 | F55: 8.291219081 | G55: 18.07060569 | H55: 0.8150227129 | I55: 1.084236341 | J55: 15.06335673 | K55: 3.564210946 | L55: 10.5627521 | M55: 56.16545717 | O55: 252 | P55: 370 | S55: 1991 | T55: 22.63889277 | U55: 4.078892772 | V55: 0.2197679295 | X55: 81.90626908
A56: 1749 - Dec | B56: 17.66666667 | C56: 200 | D56: 3.003844645 | E56: 1.161913735 | F56: 9.038670794 | G56: 19.69966711 | H56: 0.8735158492 | I56: 1.115075497 | J56: 15.62407451 | K56: 3.834497685 | L56: 10.12556765 | M56: 55.50528838 | O56: 253 | P56: 371.7 | S56: 1992 | T56: 23.35913989 | U56: 4.799139889 | V56: 0.2585743475 | X56: 84.51208353
A57: 1750 - Dec | B57: 18.66666667 | C57: 200 | D57: 3.193608083 | E57: 1.232040767 | F57: 9.841682649 | G57: 21.44982116 | H57: 0.9283114214 | I57: 1.149097562 | J57: 16.19742854 | K57: 4.121089271 | L57: 10.90949864 | M57: 60.48754172 | O57: 254 | P57: 373.4 | S57: 1993 | T57: 21.89764264 | U57: 3.337642645 | V57: 0.1798298839 | X57: 79.22446688
A58: 1751 - Dec | B58: 19.66666667 | C58: 200 | D58: 3.387607332 | E58: 1.328258317 | F58: 10.68482113 | G58: 23.28743066 | H58: 0.9824694782 | I58: 1.184106644 | J58: 16.77109476 | K58: 4.418172854 | L58: 11.39073242 | M58: 63.23984205 | O58: 255 | P58: 375.1 | S58: 1994 | T58: 23.37494051 | U58: 4.814940512 | V58: 0.2594256741 | X58: 84.56924932
A59: 1752 - Dec | B59: 20.66666667 | C59: 200 | D59: 3.508853403 | E59: 1.240125905 | F59: 11.48843688 | G59: 25.03890089 | H59: 1.030696413 | I59: 1.211559721 | J59: 17.29404519 | K59: 4.698000471 | L59: 10.81000252 | M59: 57.03986521 | O59: 256 | P59: 376.8 | S59: 1995 | T59: 22.06805392 | U59: 3.508053925 | V59: 0.1890115261 | X59: 79.84100552
A60: 1753 - Dec | B60: 21.66666667 | C60: 200 | D60: 3.624154166 | E60: 1.296625014 | F60: 12.3083806 | G60: 26.82595771 | H60: 1.064091814 | I60: 1.238121125 | J60: 17.80630825 | K60: 4.980439304 | L60: 11.10007818 | M60: 62.93367961 | O60: 257 | P60: 378.4 | S60: 1996 | T60: 22.82386439 | U60: 4.263864391 | V60: 0.2297340728 | X60: 82.57548622
A61: 1754 - Dec | B61: 22.66666667 | C61: 200 | D61: 3.750385139 | E61: 1.325820927 | F61: 13.16525492 | G61: 28.69350432 | H61: 1.103522282 | I61: 1.265889896 | J61: 18.32102929 | K61: 5.272536747 | L61: 11.69394793 | M61: 69.06851295 | O61: 258 | P61: 380.1 | S61: 1997 | T61: 22.60456713 | U61: 4.044567129 | V61: 0.2179184875 | X61: 81.78208078
A62: 1755 - Dec | B62: 23.66666667 | C62: 200 | D62: 3.91363222 | E62: 1.418202563 | F62: 14.08662369 | G62: 30.70161574 | H62: 1.145830712 | I62: 1.297251369 | J62: 18.85337306 | K62: 5.583390452 | L62: 12.47173122 | M62: 70.02176126 | O62: 259 | P62: 381.7 | S62: 1998 | T62: 25.90491344 | U62: 7.344913437 | V62: 0.3957388705 | X62: 93.72255223
A63: 1756 - Dec | B63: 24.66666667 | C63: 200 | D63: 4.018774674 | E63: 1.372721098 | F63: 14.97814327 | G63: 32.64467123 | H63: 1.186931461 | I63: 1.323432618 | J63: 19.34967868 | K63: 5.881219551 | L63: 12.11972899 | M63: 70.33506361 | O63: 260 | P63: 383.4 | S63: 1999 | T63: 24.90876988 | U63: 6.348769881 | V63: 0.3420673427 | X63: 90.11855963
A64: 1757 - Dec | B64: 25.66666667 | C64: 200 | D64: 4.280664863 | E64: 1.657714907 | F64: 16.05995032 | G64: 35.00245582 | H64: 1.241361797 | I64: 1.363732045 | J64: 19.92955781 | K64: 6.239003118 | L64: 14.66665918 | M64: 85.36195428 | O64: 261 | P64: 385 | S64: 2000 | T64: 23.39017711 | U64: 4.830177106 | V64: 0.2602466113 | X64: 84.62437448
A65: 1758 - Dec | B65: 26.66666667 | C65: 200 | D65: 4.368403836 | E65: 1.498480088 | F65: 17.0029762 | G65: 37.05776865 | H65: 1.290276178 | I65: 1.389666324 | J65: 20.41692917 | K65: 6.547880144 | L65: 12.76486647 | M65: 75.38269849 | O65: 262 | P65: 386.6 | S65: 2001 | T65: 23.49956585 | U65: 4.939565853 | V65: 0.2661404016 | X65: 85.02013695
A66: 1759 - Dec | B66: 27.66666667 | C66: 200 | D66: 4.496627668 | E66: 1.55274866 | F66: 18.0080516 | G66: 39.24831758 | H66: 1.323765173 | I66: 1.418613888 | J66: 20.91950313 | K66: 6.874207027 | L66: 13.5165106 | M66: 76.15607431 | O66: 263 | P66: 388.2 | S66: 2002 | T66: 24.94410251 | U66: 6.384102515 | V66: 0.3439710407 | X66: 90.24639115
A67: 1760 - Dec | B67: 28.66666667 | C67: 200 | D67: 4.621979145 | E67: 1.544971227 | F67: 19.03883084 | G67: 41.49488774 | H67: 1.366729827 | I67: 1.447496084 | J67: 21.41839982 | K67: 7.205994389 | L67: 13.93462632 | M67: 80.97357021 | O67: 264 | P67: 389.9 | S67: 2003 | T67: 24.66049876 | U67: 6.100498755 | V67: 0.3286906657 | X67: 89.22032835
A68: 1761 - Dec | B68: 29.66666667 | C68: 200 | D68: 4.806189902 | E68: 1.70365967 | F68: 20.15686523 | G68: 43.93162934 | H68: 1.410966156 | I68: 1.480841439 | J68: 21.94222244 | K68: 7.56277368 | L68: 15.12037574 | M68: 89.69180975 | S68: 2004 | T68: 23.98071366 | U68: 5.420713661 | V68: 0.2920643136 | X68: 86.76090326
A69: 1762 - Dec | B69: 30.66666667 | C69: 200 | D69: 4.951189878 | E69: 1.652699246 | F69: 21.27166293 | G69: 46.36131664 | H69: 1.464163739 | I69: 1.511782064 | J69: 22.44810091 | K69: 7.91551341 | L69: 15.07275708 | M69: 88.60907577 | S69: 2005 | T69: 26.63294325 | U69: 8.072943252 | V69: 0.4349646149 | X69: 96.35652407
A70: 1763 - Dec | B70: 31.66666667 | C70: 200 | D70: 5.087383213 | E70: 1.694207032 | F70: 22.4044971 | G70: 48.83031418 | H70: 1.504369941 | I70: 1.542009922 | J70: 22.94673685 | K70: 8.271070975 | L70: 15.27544834 | M70: 90.70510221 | S70: 2006 | T70: 25.66417991 | U70: 7.104179915 | V70: 0.3827683144 | X70: 92.85159159
A71: 1764 - Dec | B71: 32.66666667 | C71: 200 | D71: 5.290003684 | E71: 1.890827247 | F71: 23.63381501 | G71: 51.50959681 | H71: 1.551296597 | I71: 1.576824392 | J71: 23.47165906 | K71: 8.653811948 | L71: 16.60251388 | M71: 100.5780281 | S71: 2007 | T71: 25.76020778 | U71: 7.200207775 | V71: 0.3879422293 | X71: 93.19901511
A72: 1765 - Dec | B72: 33.66666667 | C72: 200 | D72: 5.547769638 | E72: 2.036401534 | F72: 24.96381115 | G72: 54.40830636 | H72: 1.621248658 | I72: 1.616088308 | J72: 24.02213261 | K72: 9.064482132 | L72: 17.90877902 | M72: 108.9239705 | S72: 2008 | T72: 25.28070281 | U72: 6.720702806 | V72: 0.3621068322 | X72: 91.4641925
A73: 1766 - Dec | B73: 34.66666667 | C73: 200 | D73: 5.603495337 | E73: 1.818579756 | F73: 26.12462372 | G73: 56.93828247 | H73: 1.665680595 | I73: 1.642450456 | J73: 24.48891751 | K73: 9.420176799 | L73: 15.7428189 | M73: 100.3116861 | S73: 2009 | T73: 27.63508686 | U73: 9.075086865 | V73: 0.4889594216 | X73: 99.98222455
A74: 1767 - Dec | B74: 35.66666667 | C74: 200 | D74: 5.754880797 | E74: 1.944684921 | F74: 27.40290506 | G74: 59.72428026 | H74: 1.700916985 | I74: 1.674512531 | J74: 24.98930494 | K74: 9.809078957 | L74: 17.42149352 | M74: 114.6937634 | S74: 2010 | T74: 25.84829242 | U74: 7.288292425 | V74: 0.3926881694 | X74: 93.51770052
A75: 1768 - Dec | B75: 36.66666667 | C75: 200 | D75: 5.945271697 | E75: 2.045028093 | F75: 28.75346324 | G75: 62.6678045 | H75: 1.751999653 | I75: 1.709121941 | J75: 25.50357163 | K75: 10.21696458 | L75: 18.24271756 | M75: 113.5293965 | S75: 2011 | T75: 26.371415 | U75: 7.811414998 | V75: 0.4208736529 | X75: 95.41032923
A76: 1769 - Dec | B76: 37.66666667 | C76: 200 | D76: 6.044745864 | E76: 1.961813076 | F76: 30.04140366 | G76: 65.47485413 | H76: 1.792345665 | I76: 1.738270464 | J76: 25.98117484 | K76: 10.60321208 | L76: 17.31345967 | M76: 105.2067377 | S76: 2012 | T76: 26.97148379 | U76: 8.411483789 | V76: 0.4532049455 | X76: 97.58134511
A77: 1770 - Dec | B77: 38.66666667 | C77: 200 | D77: 6.203909157 | E77: 2.094543172 | F77: 31.41582472 | G77: 68.47038721 | H77: 1.834186562 | I77: 1.770785876 | J77: 26.47799932 | K77: 11.01260876 | L77: 18.70101396 | M77: 124.2457937 | S77: AV | T77: =AVERAGE(T21:T76) -> 22.60480787
A78: 1771 - Dec | B78: 39.66666667 | C78: 200 | D78: 6.282439845 | E78: 2.067128556 | F78: 32.73035755 | G78: 71.33539467 | H78: 1.863412282 | I78: 1.798371294 | J78: 26.941581 | K78: 11.40160608 | L78: 17.83242391 | M78: 117.2081819
A79: 1772 - Dec | B79: 40.66666667 | C79: 200 | D79: 6.398350851 | E79: 2.107658834 | F79: 34.10372772 | G79: 74.32863734 | H79: 1.896661576 | I79: 1.827753377 | J79: 27.41458396 | K79: 11.80546767 | L79: 18.61650687 | M79: 123.4798243
A80: 1773 - Dec | B80: 41.66666667 | C80: 200 | D80: 6.481651349 | E80: 2.072837082 | F80: 35.46646636 | G80: 77.29870874 | H80: 1.928947184 | I80: 1.85516901 | J80: 27.87318952 | K80: 12.20374748 | L80: 18.60015803 | M80: 126.6317978
A81: 1774 - Dec | B81: 42.66666667 | C81: 200 | D81: 6.754019555 | E81: 2.379745633 | F81: 37.05239368 | G81: 80.755217 | H81: 1.985060881 | I81: 1.892700398 | J81: 28.39429049 | K81: 12.66432127 | L81: 21.52909251 | M81: 145.304743
A82: 1775 - Dec | B82: 43.66666667 | C82: 200 | D82: 6.934243744 | E82: 2.371275165 | F82: 38.59012475 | G82: 84.10668214 | H82: 2.048943672 | I82: 1.926107225 | J82: 28.88741287 | K82: 13.10802238 | L82: 20.91914919 | M82: 147.2610003
A83: 1776 - Dec | B83: 44.66666667 | C83: 200 | D83: 6.99554444 | E83: 2.268485848 | F83: 40.03289045 | G83: 87.2511715 | H83: 2.082052108 | I83: 1.953384436 | J83: 29.33988101 | K83: 13.52186431 | L83: 19.79528414 | M83: 147.9706849
A84: 1777 - Dec | B84: 45.66666667 | C84: 200 | D84: 7.068100039 | E84: 2.316126896 | F84: 41.4981388 | G84: 90.44466148 | H84: 2.099242725 | I84: 1.980540032 | J84: 29.7898764 | K84: 13.93982365 | L84: 20.00390757 | M84: 145.2029116
A85: 1778 - Dec | B85: 46.66666667 | C85: 200 | D85: 7.22111753 | E85: 2.390669094 | F85: 43.06974041 | G85: 93.86994704 | H85: 2.140247303 | I85: 2.011498865 | J85: 30.26246504 | K85: 14.3856165 | L85: 21.37845253 | M85: 150.6914803
A86: 1779 - Dec | B86: 47.66666667 | C86: 200 | D86: 7.350407888 | E86: 2.403728761 | F86: 44.64427843 | G86: 97.30163248 | H86: 2.179810075 | I86: 2.041292989 | J86: 30.72606767 | K86: 14.82975043 | L86: 21.27330748 | M86: 144.1706467
A87: 1780 - Dec | B87: 48.66666667 | C87: 200 | D87: 7.416561943 | E87: 2.364906733 | F87: 46.17548096 | G87: 100.6388688 | H87: 2.208052158 | I87: 2.067921961 | J87: 31.16795346 | K87: 15.25936462 | L87: 20.80096194 | M87: 148.2001551
A88: 1781 - Dec | B88: 49.66666667 | C88: 200 | D88: 7.634780442 | E88: 2.630417906 | F88: 47.88495406 | G88: 104.3646435 | H88: 2.251320817 | I88: 2.101301546 | J88: 31.65141661 | K88: 15.73642883 | L88: 23.23066179 | M88: 168.1843485
A89: 1782 - Dec | B89: 50.66666667 | C89: 200 | D89: 7.766600663 | E89: 2.600221369 | F89: 49.54209448 | G89: 107.9763598 | H89: 2.300464479 | I89: 2.131112364 | J89: 32.11066953 | K89: 16.19640393 | L89: 22.52228731 | M89: 167.2869302
A90: 1783 - Dec | B90: 51.66666667 | C90: 200 | D90: 7.879844029 | E90: 2.57597388 | F90: 51.20759951 | G90: 111.6063066 | H90: 2.340574549 | I90: 2.160122063 | J90: 32.56340044 | K90: 16.65633231 | L90: 22.72475156 | M90: 170.3650921
A91: 1784 - Dec | B91: 52.66666667 | C91: 200 | D91: 7.9477414 | E91: 2.524214535 | F91: 52.84725995 | G91: 115.1799255 | H91: 2.368810502 | I91: 2.186960611 | J91: 33.00088595 | K91: 17.1068905 | L91: 22.39999092 | M91: 168.483471
A92: 1785 - Dec | B92: 53.66666667 | C92: 200 | D92: 8.16343651 | E92: 2.73389475 | F92: 54.66263027 | G92: 119.1365019 | H92: 2.414541792 | I92: 2.219934818 | J92: 33.47621905 | K92: 17.60324279 | L92: 24.60098368 | M92: 178.1371873
A93: 1786 - Dec | B93: 54.66666667 | C93: 200 | D93: 8.222370653 | E93: 2.676642559 | F93: 56.34523772 | G93: 122.8037232 | H93: 2.446764479 | I93: 2.246409572 | J93: 33.90872741 | K93: 18.06104435 | L93: 23.10527519 | M93: 188.461253
A94: 1787 - Dec | B94: 55.66666667 | C94: 200 | D94: 8.313331879 | E94: 2.668445902 | F94: 58.07792842 | G94: 126.5801004 | H94: 2.474758167 | I94: 2.273894019 | J94: 34.34639547 | K94: 18.53028971 | L94: 23.65965301 | M94: 181.8899615
A95: 1788 - Dec | B95: 56.66666667 | C95: 200 | D95: 8.436322937 | E95: 2.719983564 | F95: 59.86363122 | G95: 130.4720168 | H95: 2.507158724 | I95: 2.302447354 | J95: 34.78964606 | K95: 19.01165383 | L95: 24.28020028 | M95: 182.627769
A96: 1789 - Dec | B96: 57.66666667 | C96: 200 | D96: 8.186912578 | E96: 2.217605429 | F96: 61.2624397 | G96: 133.5207019 | H96: 2.476022037 | I96: 2.315387894 | J96: 35.13156305 | K96: 19.38718802 | L96: 18.83471809 | M96: 128.9536962
A97: 1790 - Dec | B97: 58.66666667 | C97: 200 | D97: 8.092022512 | E97: 2.322606428 | F97: 62.78318676 | G97: 136.8351506 | H97: 2.430816191 | I97: 2.33241734 | J97: 35.49821712 | K97: 19.79397238 | L97: 20.54883589 | M97: 143.9669121
A98: 1791 - Dec | B98: 59.66666667 | C98: 200 | D98: 7.846251564 | E98: 2.046472433 | F98: 64.12212094 | G98: 139.7533405 | H98: 2.380459835 | I98: 2.342234757 | J98: 35.81681952 | K98: 20.15087524 | L98: 18.13001857 | M98: 129.4289549
A99: 1792 - Dec | B99: 60.66666667 | C99: 200 | D99: 7.672257079 | E99: 2.133400656 | F99: 65.48806522 | G99: 142.7303985 | H99: 2.314835017 | I99: 2.352698877 | J99: 36.13792057 | K99: 20.51380369 | L99: 18.64385998 | M99: 135.7172542
A100: 1793 - Dec | B100: 61.66666667 | C100: 200 | D100: 7.560195924 | E100: 2.193236993 | F100: 66.88667279 | G100: 145.7786458 | H100: 2.272301973 | I100: 2.36397804 | J100: 36.46272337 | K100: 20.88421148 | L100: 19.10559718 | M100: 141.8682436
A101: 1794 - Dec | B101: 62.66666667 | C101: 200 | D101: 7.330361023 | E101: 1.992746916 | F101: 68.13398715 | G101: 148.4971515 | H101: 2.218876513 | I101: 2.369635396 | J101: 36.74910315 | K101: 21.21355071 | L101: 17.02620653 | M101: 123.6451969
A102: 1795 - Dec | B102: 63.66666667 | C102: 200 | D102: 7.271765672 | E102: 2.145090577 | F102: 69.52461291 | G102: 151.5280025 | H102: 2.181097035 | I102: 2.380020982 | J102: 37.06484544 | K102: 21.57964342 | L102: 18.9308369 | M102: 133.3064843
A103: 1796 - Dec | B103: 64.66666667 | C103: 200 | D103: 7.279175017 | E103: 2.187557035 | F103: 70.97824894 | G103: 154.6961836 | H103: 2.178237472 | I103: 2.392209025 | J103: 37.39102553 | K103: 21.96112737 | L103: 19.62563307 | M103: 133.278871
A104: 1797 - Dec | B104: 65.66666667 | C104: 200 | D104: 7.189919754 | E104: 2.048377875 | F104: 72.32752911 | G104: 157.6369224 | H104: 2.164237631 | I104: 2.40056227 | J104: 37.69035985 | K104: 22.31415497 | L104: 18.30106856 | M104: 126.5086699
A105: 1798 - Dec | B105: 66.66666667 | C105: 200 | D105: 7.165064924 | E105: 2.160628132 | F105: 73.72575765 | G105: 160.6843436 | H105: 2.142576488 | I105: 2.410265154 | J105: 37.99717539 | K105: 22.67892706 | L105: 18.92144244 | M105: 129.1507243
A106: 1799 - Dec | B106: 67.66666667 | C106: 200 | D106: 7.230684648 | E106: 2.261386056 | F106: 75.21966982 | G106: 163.940306 | H106: 2.152683332 | I106: 2.422763143 | J106: 38.32130209 | K106: 23.06749269 | L106: 20.13016487 | M106: 132.3795938
A107: 1800 - Dec | B107: 68.66666667 | C107: 200 | D107: 7.135772433 | E107: 2.0649174 | F107: 76.55118697 | G107: 166.8423306 | H107: 2.145864187 | I107: 2.429742678 | J107: 38.60708049 | K107: 23.41282393 | L107: 18.07738583 | M107: 125.480458
A108: 1801 - Dec | B108: 69.66666667 | C108: 200 | D108: 7.143898898 | E108: 2.175374425 | F108: 77.97719525 | G108: 169.9502973 | H108: 2.135567338 | I108: 2.439477952 | J108: 38.90997853 | K108: 23.78164322 | L108: 19.38791656 | M108: 134.9805396
A109: 1802 - Dec | B109: 70.66666667 | C109: 200 | D109: 7.066237981 | E109: 2.092367621 | F109: 79.3089959 | G109: 172.8529398 | H109: 2.120741566 | I109: 2.446032167 | J109: 39.18999483 | K109: 24.12516484 | L109: 18.17324863 | M109: 129.5644288
A110: 1803 - Dec | B110: 71.66666667 | C110: 200 | D110: 7.098482148 | E110: 2.223880976 | F110: 80.74508121 | G110: 175.9828693 | H110: 2.115024695 | I110: 2.455574921 | J110: 39.488916 | K110: 24.49459716 | L110: 19.46749593 | M110: 134.5794553
A111: 1804 - Dec | B111: 72.66666667 | C111: 200 | D111: 7.225740895 | E111: 2.3200474 | F111: 82.29525213 | G111: 179.3614469 | H111: 2.146121481 | I111: 2.468276793 | J111: 39.80816366 | K111: 24.89225065 | L111: 21.02223251 | M111: 142.506427
A112: 1805 - Dec | B112: 73.66666667 | C112: 200 | D112: 7.200516232 | E112: 2.180806595 | F112: 83.70134299 | G112: 182.426004 | H112: 2.154965052 | I112: 2.476371094 | J112: 40.0947534 | K112: 25.2519529 | L112: 19.04524046 | M112: 131.7194887
A113: 1806 - Dec | B113: 74.66666667 | C113: 200 | D113: 7.209304162 | E113: 2.202483841 | F113: 85.14046997 | G113: 185.5625628 | H113: 2.154344777 | I113: 2.485212894 | J113: 40.3852164 | K113: 25.61914937 | L113: 19.55302051 | M113: 135.5225223
A114: 1807 - Dec | B114: 75.66666667 | C114: 200 | D114: 7.224192488 | E114: 2.268139473 | F114: 86.58428035 | G114: 188.709329 | H114: 2.152363249 | I114: 2.493955889 | J114: 40.67379374 | K114: 25.98658681 | L114: 19.50330008 | M114: 133.6413288
A115: 1808 - Dec | B115: 76.66666667 | C115: 200 | D115: 7.121887788 | E115: 2.035590934 | F115: 87.90540109 | G115: 191.5886947 | H115: 2.141155399 | I115: 2.498982974 | J115: 40.93542768 | K115: 26.32197919 | L115: 17.77207919 | M115: 114.5576127
A116: 1809 - Dec | B116: 77.66666667 | C116: 200 | D116: 7.023330955 | E116: 2.056286857 | F116: 89.20833059 | G116: 194.4284128 | H116: 2.108208258 | I116: 2.503370122 | J116: 41.19124776 | K116: 26.65199803 | L116: 17.63797631 | M116: 120.7862437
A117: 1810 - Dec | B117: 78.66666667 | C117: 200 | D117: 6.953343607 | E117: 2.035363048 | F117: 90.52622542 | G117: 197.3007477 | H117: 2.08843432 | I117: 2.508060352 | J117: 41.44782389 | K117: 26.98505733 | L117: 17.98569032 | M117: 127.0306031
A118: 1811 - Dec | B118: 79.66666667 | C118: 200 | D118: 6.947999317 | E118: 2.109898729 | F118: 91.89934946 | G118: 200.2934539 | H118: 2.075872915 | I118: 2.514143773 | J118: 41.71287167 | K118: 27.33128531 | L118: 18.58860524 | M118: 123.4803145
A119: 1812 - Dec | B119: 80.66666667 | C119: 200 | D119: 6.865379794 | E119: 1.982636949 | F119: 93.18873319 | G119: 203.1036493 | H119: 2.064204472 | I119: 2.517813834 | J119: 41.95968454 | K119: 27.65567774 | L119: 17.52833545 | M119: 119.2224442
A120: 1813 - Dec | B120: 81.66666667 | C120: 200 | D120: 7.010786379 | E120: 2.324073976 | F120: 94.70835472 | G120: 206.4156449 | H120: 2.073235986 | I120: 2.527538509 | J120: 42.24805478 | K120: 28.03711431 | L120: 20.6050146 | M120: 139.3308354
A121: 1814 - Dec | B121: 82.66666667 | C121: 200 | D121: 6.917540732 | E121: 2.043386846 | F121: 95.99533599 | G121: 209.2206041 | H121: 2.076323855 | I121: 2.530894404 | J121: 42.49019856 | K121: 28.35942351 | L121: 17.42139115 | M121: 118.4408015
A122: 1815 - Dec | B122: 83.66666667 | C122: 200 | D122: 6.890305585 | E122: 2.068862758 | F122: 97.33652507 | G122: 212.1437085 | H122: 2.060198979 | I122: 2.535582173 | J122: 42.74055796 | K122: 28.69460508 | L122: 18.03693065 | M122: 115.8374112
A123: 1816 - Dec | B123: 84.66666667 | C123: 200 | D123: 6.866981089 | E123: 2.012535015 | F123: 98.68102802 | G123: 215.0740354 | H123: 2.059397992 | I123: 2.540244513 | J123: 42.98954745 | K123: 29.02990561 | L123: 18.17526787 | M123: 119.5308078
A124: 1817 - Dec | B124: 85.66666667 | C124: 200 | D124: 6.926034262 | E124: 2.171650903 | F124: 100.1084016 | G124: 218.1849779 | H124: 2.062199868 | I124: 2.546906357 | J124: 43.25175251 | K124: 29.3851083 | L124: 19.3035468 | M124: 128.5487654
A125: 1818 - Dec | B125: 86.66666667 | C125: 200 | D125: 6.940124551 | E125: 2.063839153 | F125: 101.5021239 | G125: 221.2225778 | H125: 2.078111327 | I125: 2.552568206 | J125: 43.50570403 | K125: 29.73118909 | L125: 18.84277074 | M125: 123.5030519
A126: 1819 - Dec | B126: 87.66666667 | C126: 200 | D126: 6.949948715 | E126: 2.076865005 | F126: 102.8925119 | G126: 224.2529106 | H126: 2.079407959 | I126: 2.558017991 | J126: 43.75705247 | K126: 30.07571747 | L126: 18.7471571 | M126: 123.2093722
A127: 1820 - Dec | B127: 88.66666667 | C127: 200 | D127: 7.045579059 | E127: 2.277065571 | F127: 104.3748091 | G127: 227.4835582 | H127: 2.090744392 | I127: 2.56560404 | J127: 44.02286838 | K127: 30.44223609 | L127: 20.01949867 | M127: 133.3650602
A128: 1821 - Dec | B128: 89.66666667 | C128: 200 | D128: 7.20817579 | E128: 2.408276195 | F128: 105.9495371 | G128: 230.9156578 | H128: 2.130768707 | I128: 2.575267559 | J128: 44.30288596 | K128: 30.83073744 | L128: 21.20374209 | M128: 140.9447107
A129: 1822 - Dec | B129: 90.66666667 | C129: 200 | D129: 7.138349809 | E129: 2.119211111 | F129: 107.3029714 | G129: 233.8654504 | H129: 2.141718577 | I129: 2.57939835 | J129: 44.54164167 | K129: 31.16393692 | L129: 18.35482621 | M129: 127.1291956
A130: 1823 - Dec | B130: 91.66666667 | C130: 200 | D130: 7.18752691 | E130: 2.237011923 | F130: 108.7747624 | G130: 237.0732002 | H130: 2.143720336 | I130: 2.586253093 | J130: 44.79931384 | K130: 31.52554489 | L130: 20.05825311 | M130: 142.7044849
A131: 1824 - Dec | B131: 92.66666667 | C131: 200 | D131: 7.285541157 | E131: 2.321522895 | F131: 110.3092205 | G131: 240.4175319 | H131: 2.165769384 | I131: 2.594433798 | J131: 45.06582583 | K131: 31.90175277 | L131: 20.72672631 | M131: 138.6140125
A132: 1825 - Dec | B132: 93.66666667 | C132: 200 | D132: 7.286487069 | E132: 2.202351256 | F132: 111.7557978 | G132: 243.5703286 | H132: 2.17717934 | I132: 2.600394967 | J132: 45.31512378 | K132: 32.25568122 | L132: 19.44624478 | M132: 126.3126126
A133: 1826 - Dec | B133: 94.66666667 | C133: 200 | D133: 7.359608472 | E133: 2.325887156 | F133: 113.2831284 | G133: 246.8991259 | H133: 2.191902064 | I133: 2.608089358 | J133: 45.57632739 | K133: 32.62860673 | L133: 20.7816665 | M133: 146.9280061
A134: 1827 - Dec | B134: 95.66666667 | C134: 200 | D134: 7.349560358 | E134: 2.274548603 | F134: 114.730324 | G134: 250.0532702 | H134: 2.194392918 | I134: 2.613797249 | J134: 45.82195935 | K134: 32.98125585 | L134: 19.632771 | M134: 136.6506199
A135: 1828 - Dec | B135: 96.66666667 | C135: 200 | D135: 7.386456174 | E135: 2.299426083 | F135: 116.2294514 | G135: 253.3205992 | H135: 2.203078458 | I135: 2.620557923 | J135: 46.07452914 | K135: 33.34584202 | L135: 20.32130287 | M135: 142.1103432
A136: 1829 - Dec | B136: 97.66666667 | C136: 200 | D136: 7.393386698 | E136: 2.243939818 | F136: 117.7052929 | G136: 256.5371769 | H136: 2.212388669 | I136: 2.626660515 | J136: 46.32134757 | K136: 33.70406221 | L136: 20.14436778 | M136: 144.0558882
A137: 1830 - Dec | B137: 98.66666667 | C137: 200 | D137: 7.607647387 | E137: 2.555092809 | F137: 119.4091367 | G137: 260.2506826 | H137: 2.248704521 | I137: 2.637675837 | J137: 46.60408793 | K137: 34.11676963 | L137: 23.13045426 | M137: 163.338498
A138: 1831 - Dec | B138: 99.66666667 | C138: 200 | D138: 7.725426638 | E138: 2.526697337 | F138: 121.0483539 | G138: 263.8233354 | H138: 2.294266665 | I138: 2.647056877 | J138: 46.87391679 | K138: 34.5129726 | L138: 22.29979106 | M138: 163.6766204
A139: 1832 - Dec | B139: 100.6666667 | C139: 200 | D139: 7.721230711 | E139: 2.402460066 | F139: 122.5767916 | G139: 267.1545457 | H139: 2.308078213 | I139: 2.653853103 | J139: 47.1236188 | K139: 34.88166007 | L139: 20.97144029 | M139: 162.9685788
A140: 1833 - Dec | B140: 101.6666667 | C140: 200 | D140: 7.734208507 | E140: 2.440286587 | F140: 124.1210549 | G140: 270.5202479 | H140: 2.306477419 | I140: 2.660854897 | J140: 47.37408967 | K140: 35.25345064 | L140: 21.08353419 | M140: 158.561732
A141: 1834 - Dec | B141: 102.6666667 | C141: 200 | D141: 7.835702683 | E141: 2.505774402 | F141: 125.7688518 | G141: 274.1116002 | H141: 2.331306554 | I141: 2.669918184 | J141: 47.63937949 | K141: 35.64938723 | L141: 22.41546365 | M141: 163.2207872
A142: 1835 - Dec | B142: 103.6666667 | C142: 200 | D142: 7.915747895 | E142: 2.507483199 | F142: 127.4117568 | G142: 277.6922905 | H142: 2.355705583 | I142: 2.678703767 | J142: 47.90189399 | K142: 36.04335818 | L142: 22.19786583 | M142: 154.9683199
A143: 1836 - Dec | B143: 104.6666667 | C143: 200 | D143: 7.933768016 | E143: 2.456778352 | F143: 129.0027445 | G143: 281.1598277 | H143: 2.369377508 | I143: 2.686240392 | J143: 48.15425907 | K143: 36.42413836 | L143: 21.61399231 | M143: 158.2542083
A144: 1837 - Dec | B144: 105.6666667 | C144: 200 | D144: 8.112618918 | E144: 2.721706787 | F144: 130.7719949 | G144: 285.0158863 | H144: 2.399651309 | I144: 2.697311227 | J144: 48.43280199 | K144: 36.84673978 | L144: 24.04407254 | M144: 178.4696081
A145: 1838 - Dec | B145: 106.6666667 | C145: 200 | D145: 8.204642881 | E145: 2.680512302 | F145: 132.4805753 | G145: 288.7397153 | H145: 2.436873454 | I145: 2.706934831 | J145: 48.6997384 | K145: 37.25401917 | L145: 23.22236261 | M145: 176.4646414
A146: 1839 - Dec | B146: 107.6666667 | C146: 200 | D146: 8.280371021 | E146: 2.646920504 | F146: 134.1921779 | G146: 292.4701314 | H146: 2.465559691 | I146: 2.716440849 | J146: 48.96516412 | K146: 37.6612132 | L146: 23.35487287 | M146: 178.7902505
A147: 1840 - Dec | B147: 108.6666667 | C147: 200 | D147: 8.31254421 | E147: 2.586449455 | F147: 135.8724633 | G147: 296.1322918 | H147: 2.48290096 | I147: 2.725143789 | J147: 49.22384125 | K147: 38.06018369 | L147: 22.95611268 | M147: 175.9936138
A148: 1841 - Dec | B148: 109.6666667 | C148: 200 | D148: 8.498408412 | E148: 2.793688009 | F148: 137.72782 | G148: 300.176018 | H148: 2.518942611 | I148: 2.737167338 | J148: 49.5073366 | K148: 38.49984691 | L148: 25.14408298 | M148: 185.2453273
A149: 1842 - Dec | B149: 110.6666667 | C149: 200 | D149: 8.526608514 | E149: 2.728899863 | F149: 139.4433952 | G149: 303.9150921 | H149: 2.541932498 | I149: 2.746220712 | J149: 49.76752068 | K149: 38.90557947 | L149: 23.55912187 | M149: 195.2277021
A150: 1843 - Dec | B150: 111.6666667 | C150: 200 | D150: 8.589929307 | E150: 2.714920779 | F150: 141.2063916 | G150: 307.7575201 | H150: 2.561335407 | I150: 2.756037493 | J150: 50.03298086 | K150: 39.32173148 | L150: 24.07471311 | M150: 187.753979
A151: 1844 - Dec | B151: 112.6666667 | C151: 200 | D151: 8.688047266 | E151: 2.762222791 | F151: 143.0199259 | G151: 311.7100949 | H151: 2.585911306 | I151: 2.766657647 | J151: 50.30406425 | K151: 39.74898346 | L151: 24.65993213 | M151: 187.9027311
A152: 1845 - Dec | B152: 113.6666667 | C152: 200 | D152: 8.411093984 | E152: 2.249228948 | F152: 144.4386227 | G152: 314.8021265 | H152: 2.546766121 | I152: 2.769520174 | J152: 50.51474949 | K152: 40.08263688 | L152: 19.10365511 | M152: 132.3315039
A153: 1846 - Dec | B153: 114.6666667 | C153: 200 | D153: 8.293767504 | E153: 2.353176393 | F153: 145.9794063 | G153: 318.1602445 | H153: 2.494220521 | I153: 2.774653295 | J153: 50.74221817 | K153: 40.44443507 | L153: 20.82081741 | M153: 147.4169996
A154: 1847 - Dec | B154: 115.6666667 | C154: 200 | D154: 8.026254272 | E154: 2.071534436 | F154: 147.3346936 | G154: 321.1140758 | H154: 2.437288851 | I154: 2.776202384 | J154: 50.94116004 | K154: 40.76219274 | L154: 18.3525264 | M154: 132.2702245
A155: 1848 - Dec | B155: 116.6666667 | C155: 200 | D155: 7.833835295 | E155: 2.157830582 | F155: 148.716266 | G155: 324.1251952 | H155: 2.365658527 | I155: 2.778215959 | J155: 51.14287721 | K155: 41.08565275 | L155: 18.85836125 | M155: 138.4643479
A156: 1849 - Dec | B156: 117.6666667 | C156: 200 | D156: 7.706004958 | E156: 2.216594591 | F156: 150.129738 | G156: 327.2058392 | H156: 2.318042652 | I156: 2.780786169 | J156: 51.34813681 | K156: 41.41610532 | L156: 19.30993083 | M156: 144.5029424
A157: 1850 - Dec | B157: 118.6666667 | C157: 200 | D157: 7.460958438 | E157: 2.012540874 | F157: 151.3893869 | G157: 329.9512278 | H157: 2.259981374 | I157: 2.780487875 | J157: 51.53012181 | K157: 41.71019452 | L157: 17.19570761 | M157: 125.7543956
A158: 1851 - Dec | B158: 119.6666667 | C158: 200 | D158: 7.390285899 | E158: 2.164831662 | F158: 152.792771 | G158: 333.0098855 | H158: 2.218198029 | I158: 2.782812414 | J158: 51.73184741 | K158: 42.03740055 | L158: 19.1058462 | M158: 135.3975382
A159: 1852 - Dec | B159: 120.6666667 | C159: 200 | D159: 7.387223433 | E159: 2.205901047 | F159: 154.2585425 | G159: 336.2045157 | H159: 2.212022812 | I159: 2.786225268 | J159: 51.94140337 | K159: 42.37866151 | L159: 19.7908707 | M159: 135.1781343
A160: 1853 - Dec | B160: 121.6666667 | C160: 200 | D160: 7.287720944 | E160: 2.064130642 | F160: 155.6181164 | G160: 339.1676897 | H160: 2.194916683 | I160: 2.787679641 | J160: 52.13475274 | K160: 42.69475379 | L160: 18.44205123 | M160: 128.1561
A161: 1854 - Dec | B161: 122.6666667 | C161: 200 | D161: 7.254056284 | E161: 2.175914277 | F161: 157.0261457 | G161: 342.2364714 | H161: 2.170384166 | I161: 2.789971234 | J161: 52.33396918 | K161: 43.02166614 | L161: 19.05553704 | M161: 130.6887614
A162: 1855 - Dec | B162: 123.6666667 | C162: 200 | D162: 7.312137082 | E162: 2.275850193 | F162: 158.529511 | G162: 345.5130369 | H162: 2.178085351 | I162: 2.793905958 | J162: 52.54554069 | K162: 43.37021824 | L162: 20.25917044 | M162: 133.8080125
A163: 1856 - Dec | B163: 124.6666667 | C163: 200 | D163: 7.209386423 | E163: 2.076926503 | F163: 159.868653 | G163: 348.4316795 | H163: 2.16895621 | I163: 2.79490652 | J163: 52.73302865 | K163: 43.68026932 | L163: 18.18238832 | M163: 126.7121383
A164: 1857 - Dec | B164: 125.6666667 | C164: 200 | D164: 7.210917437 | E164: 2.186887222 | F164: 161.3020917 | G164: 351.5558409 | H164: 2.156525857 | I164: 2.797526586 | J164: 52.93271806 | K164: 44.01171254 | L164: 19.49059904 | M164: 136.1876035
A165: 1858 - Dec | B165: 126.6666667 | C165: 200 | D165: 7.126842456 | E165: 2.102480588 | F165: 162.6401983 | G165: 354.4722271 | H165: 2.139737872 | I165: 2.798464951 | J165: 53.11820564 | K165: 44.32070591 | L165: 18.26086948 | M165: 130.6187109
A166: 1859 - Dec | B166: 127.6666667 | C166: 200 | D166: 7.153690987 | E166: 2.233620099 | F166: 164.082428 | G166: 357.6155482 | H166: 2.132269326 | I166: 2.801166174 | J166: 53.31714407 | K166: 44.6533076 | L166: 19.55257418 | M166: 135.5727665
A167: 1860 - Dec | B167: 128.6666667 | C167: 200 | D167: 7.276279162 | E167: 2.329092342 | F167: 165.6384795 | G167: 361.0069426 | H167: 2.161895055 | I167: 2.80575344 | J167: 53.53065543 | K167: 45.01165681 | L167: 21.10391612 | M167: 143.4504049
A168: 1861 - Dec | B168: 129.6666667 | C168: 200 | D168: 7.246180199 | E168: 2.188383369 | F168: 167.0492887 | G168: 364.0817831 | H168: 2.169289907 | I168: 2.807828661 | J168: 53.72324019 | K168: 45.33611211 | L168: 19.11094731 | M168: 132.5001118
A169: 1862 - Dec | B169: 130.6666667 | C169: 200 | D169: 7.250599612 | E169: 2.209339453 | F169: 168.4927211 | G169: 367.2277254 | H169: 2.167298639 | I169: 2.810416266 | J169: 53.91931012 | K169: 45.66763601 | L169: 19.61344227 | M169: 136.2470602
A170: 1863 - Dec | B170: 131.6666667 | C170: 200 | D170: 7.261488283 | E170: 2.274439395 | F170: 169.9403616 | G170: 370.3828395 | H170: 2.164055202 | I170: 2.813034224 | J170: 54.11498136 | K170: 45.99968985 | L170: 19.55699793 | M170: 134.2789719
A171: 1864 - Dec | B171: 132.6666667 | C171: 200 | D171: 7.155243612 | E171: 2.040663673 | F171: 171.2645886 | G171: 373.2689752 | H171: 2.151668687 | I171: 2.81358524 | J171: 54.29313142 | K171: 46.30305635 | L171: 17.81573405 | M171: 115.0482812
A172: 1865 - Dec | B172: 133.6666667 | C172: 200 | D172: 7.053131726 | E172: 2.060899527 | F172: 172.570258 | G172: 376.1146648 | H172: 2.117599638 | I172: 2.813825422 | J172: 54.46800896 | K172: 46.60181995 | L172: 17.67694605 | M172: 121.2516164
A173: 1866 - Dec | B173: 134.6666667 | C173: 200 | D173: 6.979968164 | E173: 2.039446884 | F173: 173.8906071 | G173: 378.9923488 | H173: 2.096834576 | I173: 2.81429962 | J173: 54.64407859 | K173: 46.90359074 | L173: 18.02113798 | M173: 127.4693791
A174: 1867 - Dec | B174: 135.6666667 | C174: 200 | D174: 6.97182473 | E174: 2.113651016 | F174: 175.2659639 | G174: 381.9899213 | H174: 2.083381137 | I174: 2.815650526 | J174: 54.8266658 | K174: 47.21756084 | L174: 18.62094027 | M174: 123.8591406
A175: 1868 - Dec | B175: 136.6666667 | C175: 200 | D175: 6.886523425 | E175: 1.985730358 | F175: 176.5571548 | G175: 384.8040553 | H175: 2.070897852 | I175: 2.815639429 | J175: 54.99732912 | K175: 47.51197405 | L175: 17.5549185 | M175: 119.5451012
A176: 1869 - Dec | B176: 137.6666667 | C176: 200 | D176: 7.029727744 | E176: 2.327193728 | F176: 178.0785723 | G176: 388.1199653 | H176: 2.07920242 | I176: 2.819273356 | J176: 55.19750171 | K176: 47.85846007 | L176: 20.63182822 | M176: 139.6605529
A177: 1870 - Dec | B177: 138.6666667 | C177: 200 | D177: 6.934173754 | E177: 2.045713444 | F177: 179.3667949 | G177: 390.9276298 | H177: 2.081611956 | I177: 2.819189638 | J177: 55.36622332 | K177: 48.1514841 | L177: 17.44032353 | M177: 118.6810052
A178: 1871 - Dec | B178: 139.6666667 | C178: 200 | D178: 6.904882067 | E178: 2.070860227 | F178: 180.7090428 | G178: 393.8530419 | H178: 2.0648394 | I178: 2.819950181 | J178: 55.54127916 | K178: 48.4564543 | L178: 18.05344889 | M178: 116.0390942
A179: 1872 - Dec | B179: 140.6666667 | C179: 200 | D179: 6.879658889 | E179: 2.014134767 | F179: 182.0543715 | G179: 396.7851686 | H179: 2.063453587 | I179: 2.820747644 | J179: 55.71598612 | K179: 48.76177657 | L179: 18.18876429 | M179: 119.7069962
A180: 1873 - Dec | B180: 141.6666667 | C180: 200 | D180: 6.936987049 | E180: 2.173020029 | F180: 183.482382 | G180: 399.8974993 | H180: 2.065713938 | I180: 2.822805878 | J180: 55.90061782 | K180: 49.08548569 | L180: 19.31470348 | M180: 128.7046807
A181: 1874 - Dec | B181: 142.6666667 | C181: 200 | D181: 6.949443113 | E181: 2.064819467 | F181: 184.8764986 | G181: 402.9359585 | H181: 2.081125408 | I181: 2.824317466 | J181: 56.08006971 | K181: 49.40113951 | L181: 18.8506411 | M181: 123.6225352
A182: 1875 - Dec | B182: 143.6666667 | C182: 200 | D182: 6.95774097 | E182: 2.077554669 | F182: 186.2670733 | G182: 405.9666982 | H182: 2.081949621 | I182: 2.825754279 | J182: 56.2582901 | K182: 49.71562842 | L182: 18.75227519 | M182: 123.3006331
A183: 1876 - Dec | B183: 144.6666667 | C183: 200 | D183: 7.05193993 | E183: 2.27750757 | F183: 187.7493576 | G183: 409.1973177 | H183: 2.092844915 | I183: 2.828552888 | J183: 56.4474216 | K183: 50.05046253 | L183: 20.02217716 | M183: 133.4353673
A184: 1877 - Dec | B184: 145.6666667 | C184: 200 | D184: 7.213157586 | E184: 2.408414688 | F184: 189.3238457 | G184: 412.6288946 | H184: 2.132449935 | I184: 2.83269264 | J184: 56.64737727 | K184: 50.40568156 | L184: 21.20361643 | M184: 140.9889194
A185: 1878 - Dec | B185: 146.6666667 | C185: 200 | D185: 7.142080043 | E185: 2.119083217 | F185: 190.676905 | G185: 415.57787 | H185: 2.143007455 | I185: 2.833485477 | J185: 56.81844742 | K185: 50.71058279 | L185: 18.35246968 | M185: 127.1452812
A186: 1879 - Dec | B186: 147.6666667 | C186: 200 | D186: 7.190056551 | E186: 2.236634895 | F186: 192.1481275 | G186: 418.7843805 | H186: 2.144642157 | I186: 2.836011606 | J186: 57.00366478 | K186: 51.04173542 | L186: 20.05353813 | M186: 142.6984659
A187: 1880 - Dec | B187: 148.6666667 | C187: 200 | D187: 7.286905834 | E187: 2.320888812 | F187: 193.6818177 | G187: 422.1270385 | H187: 2.166338179 | I187: 2.839419542 | J187: 57.19587798 | K187: 51.38653557 | L187: 20.71960522 | M187: 138.5850362
A188: 1881 - Dec | B188: 149.6666667 | C188: 200 | D188: 7.286800915 | E188: 2.20154281 | F188: 195.1275207 | G188: 425.2779298 | H188: 2.177419057 | I188: 2.841500645 | J188: 57.37626212 | K188: 51.71117201 | L188: 19.437639 | M188: 126.2669179
A189: 1882 - Dec | B189: 150.6666667 | C189: 200 | D189: 7.358887343 | E189: 2.324813736 | F189: 196.6537846 | G189: 428.6044024 | H189: 2.191828437 | I189: 2.844719485 | J189: 57.56586381 | K189: 52.05349913 | L189: 20.77054031 | M189: 146.8532209
A190: 1883 - Dec | B190: 151.6666667 | C190: 200 | D190: 7.347919854 | E190: 2.2733102 | F190: 198.099837 | G190: 431.756055 | H190: 2.194032857 | I190: 2.84674322 | J190: 57.74471999 | K190: 52.37746033 | L190: 19.62055645 | M190: 136.5627536
A191: 1884 - Dec | B191: 152.6666667 | C191: 200 | D191: 7.383910878 | E191: 2.297991081 | F191: 199.5976524 | G191: 435.0205245 | H191: 2.202442503 | I191: 2.849479418 | J191: 57.92918661 | K191: 52.71263645 | L191: 20.30700748 | M191: 142.0008419
A192: 1885 - Dec | B192: 153.6666667 | C192: 200 | D192: 7.390014274 | E192: 2.24236969 | F192: 201.072085 | G192: 438.2340313 | H192: 2.211491679 | I192: 2.85184836 | J192: 58.10999556 | K192: 53.04220401 | L192: 20.12864556 | M192: 143.9275748
A193: 1886 - Dec | B193: 154.6666667 | C193: 200 | D193: 7.603274809 | E193: 2.553120571 | F193: 202.7741662 | G193: 441.9436956 | H193: 2.247531386 | I193: 2.857394584 | J193: 58.3177729 | K193: 53.42219617 | L193: 23.11068157 | M193: 163.1736858
A194: 1887 - Dec | B194: 155.6666667 | C194: 200 | D194: 7.720184896 | E194: 2.524576237 | F194: 204.4115669 | G194: 445.5123895 | H194: 2.292818283 | I194: 2.861963958 | J194: 58.51670765 | K194: 53.78728753 | L194: 22.27916496 | M194: 163.4924375
A195: 1888 - Dec | B195: 156.6666667 | C195: 200 | D195: 7.715296351 | E195: 2.400291719 | F195: 205.9382094 | G195: 448.8396872 | H195: 2.306400406 | I195: 2.864934173 | J195: 58.7013599 | K195: 54.1272798 | L195: 20.95069387 | M195: 162.7684592
A196: 1889 - Dec | B196: 157.6666667 | C196: 200 | D196: 7.727592701 | E196: 2.437940509 | F196: 207.4805548 | G196: 452.2012093 | H196: 2.304598209 | I196: 2.86808378 | J196: 58.88711175 | K196: 54.47037746 | L196: 21.06137298 | M196: 158.3523735
A197: 1890 - Dec | B197: 158.6666667 | C197: 200 | D197: 7.82832214 | E197: 2.503227778 | F197: 209.126202 | G197: 455.7878762 | H197: 2.32920156 | I197: 2.872612665 | J197: 59.08442888 | K197: 54.83602439 | L197: 22.39061415 | M197: 162.9901888
A198: 1891 - Dec | B198: 159.6666667 | C198: 200 | D198: 7.907653006 | E198: 2.504807259 | F198: 210.7668625 | G198: 459.3636747 | H198: 2.353383298 | I198: 2.877016752 | J198: 59.28025889 | K198: 55.2001249 | L198: 22.17203052 | M198: 154.7360352
A199: 1892 - Dec | B199: 160.6666667 | C199: 200 | D199: 7.925072003 | E199: 2.454029244 | F199: 212.3555875 | G199: 462.8262805 | H199: 2.366860218 | I199: 2.880661497 | J199: 59.46905399 | K199: 55.55228626 | L199: 21.58769163 | M199: 158.0033939
A200: 1893 - Dec | B200: 161.6666667 | C200: 200 | D200: 8.103109791 | E200: 2.71853195 | F200: 214.1222258 | G200: 466.6766459 | H200: 2.39692151 | I200: 2.886659665 | J200: 59.67803746 | K200: 55.94341097 | L200: 24.0136175 | M200: 178.1722546
A201: 1894 - Dec | B201: 162.6666667 | C201: 200 | D201: 8.194469973 | E201: 2.677269585 | F201: 215.8281976 | G201: 470.3947896 | H201: 2.433928032 | I201: 2.891771248 | J201: 59.87890299 | K201: 56.32063563 | L201: 23.19188817 | M201: 176.1567295
... 837 more rows

Sheet 3PGpjs2.7_Parameters
B2: Standard 3PG parameters (3PGpjs vsn 2.7, 3-PG vsn 1, September 2010)
B3: Do NOT change the format of this block. You can edit values in the
B4: value columns, or add columns of values to the right for additional species.
B6: Meaning/comments | C6: Name | D6: Units | E6: Picea crassifolia
B7: Biomass partitioning and turnover
B8: Allometric relationships & partitioning
B9: Foliage:stem partitioning ratio @ D=2 cm | C9: pFS2 | D9: - | E9: 1 | F9: these values derived to stablize LAI
B10: Foliage:stem partitioning ratio @ D=20 cm | C10: pFS20 | D10: - | E10: 1 | F10: these values derived to stablize LAI
B11: Constant in the stem mass v. diam. relationship | C11: aS | D11: - | E11: 0.0685 | F11: Derived from He et al. 2013 allometric equations and Liu's volume table 1985
B12: Power in the stem mass v. diam. relationship | C12: nS | D12: - | E12: 2.3617 | F12: Derived from He et al. 2013 allometric equations and Liu's volume table 1985
B13: Maximum fraction of NPP to roots | C13: pRx | D13: - | E13: 0.8 | F13: default
B14: Minimum fraction of NPP to roots | C14: pRn | D14: - | E14: 0.25 | F14: default
B15: Litterfall & root turnover
B16: Maximum litterfall rate | C16: gammaFx | D16: 1/month | E16: 0.0166 | F16: 0.20 per year | G16: Luo et al. 2002 | I16: LAI =2.5, if set at 0.25 turnover, LAI=1.7 and GPP drops from 25 Mg(Dry Mass)/ha/yr to 20. (stable after age 25
B17: Litterfall rate at t = 0 | C17: gammaF0 | D17: 1/month | E17: 0.001
B18: Age at which litterfall rate has median value | C18: tgammaF | D18: months | E18: 36
B19: Average monthly root turnover rate | C19: gammaR | D19: 1/month | E19: 0.2
B20: NPP & conductance modifiers
B21: Temperature modifier (fT)
B22: Minimum temperature for growth | C22: Tmin | D22: deg. C | E22: -2 | G22: for Black spruce, Lamhamedi and Bernier 1994. Ann Sci. For. 51:529-551.
B23: Optimum temperature for growth | C23: Topt | D23: deg. C | E23: 10 | F23: Note:Tranquillini's book 2012 10-15 C Picea abies | G23: Av Temp. May through Sept. is 8.4 C between 1957-2008.
B24: Maximum temperature for growth | C24: Tmax | D24: deg. C | E24: 40 | G24: No difference if Tmax at 20-40
B25: Frost modifier (fFRost)
B26: Days production lost per frost day | C26: kF | D26: days | E26: 1
B27: Soil water modifier (fSW)
B28: Moisture ratio deficit for fq = 0.5 | C28: SWconst | D28: - | E28: 0.7
B29: Power of moisture ratio deficit | C29: SWpower | D29: - | E29: 9
B30: Atmospheric CO2 modifier (fCO2)
B31: Assimialtion enhancement factor at 700 ppm | C31: fCalpha700 | D31: - | E31: 1.3
B32: Canopy conductance enhancement factor at 700 ppm | C32: fCg700 | D32: - | E32: 0.9
B33: Fertitlity effects
B34: Value of 'm' when FR = 0 | C34: m0 | D34: - | E34: 0
B35: Value of 'fNutr' when FR = 0 | C35: fN0 | D35: - | E35: 1
B36: Power of (1-FR) in 'fNutr' | C36: fNn | D36: - | E36: 0
B37: Age modifier (fAge)
B38: Maximum stand age used in age modifier | C38: MaxAge | D38: years | E38: 1000 | F38: shut age-effect off
B39: Power of relative age in function for fAge | C39: nAge | D39: - | E39: 4
B40: Relative age to give fAge = 0.5 | C40: rAge | D40: - | E40: 0.95
B41: Stem mortality & self-thinning
B42: Mortality rate for large t | C42: gammaNx | D42: %/year | E42: 0
B43: Seedling mortality rate (t = 0) | C43: gammaN0 | D43: %/year | E43: 0
B44: Age at which mortality rate has median value | C44: tgammaN | D44: years | E44: 0
B45: Shape of mortality response | C45: ngammaN | D45: - | E45: 1
B46: Max. stem mass per tree @ 1000 trees/hectare | C46: wSx1000 | D46: kg/tree | E46: 300 | F46: Stops self thinning at stocking <600 trees/ha up to age 250 | G46: 200 trees/ha, no effect on GPP even with self-thinning up to 600 trees/ha
B47: Power in self-thinning rule | C47: thinPower | D47: - | E47: 1.5
B48: Fraction mean single-tree foliage biomass lost per dead tree | C48: mF | D48: - | E48: 0
B49: Fraction mean single-tree root biomass lost per dead tree | C49: mR | D49: - | E49: 0.2
B50: Fraction mean single-tree stem biomass lost per dead tree | C50: mS | D50: - | E50: 0.2
B51: Canopy structure and processes
B52: Specific leaf area
B53: Specific leaf area at age 0 | C53: SLA0 | D53: m2/kg | E53: 4
B54: Specific leaf area for mature leaves | C54: SLA1 | D54: m2/kg | E54: 3 | F54: Zhao et al. (2008) (at 3200 m) | H54: Tree Physiol. 28: 133-141. (0.34 kg/m2) | N54: equivalent to 2.94 m2/kg
B55: Age at which specific leaf area = (SLA0+SLA1)/2 | C55: tSLA | D55: years | E55: 2.5
B56: Light interception
B57: Extinction coefficient for absorption of PAR by canopy | C57: k | D57: - | E57: 0.5
B58: Age at canopy cover | C58: fullCanAge | D58: years | E58: 15
B59: Maximum proportion of rainfall evaporated from canopy | C59: MaxIntcptn | D59: - | E59: 0.1
B60: LAI for maximum rainfall interception | C60: LAImaxIntcptn | D60: - | E60: 5
B61: Production and respiration
B62: Canopy quantum efficiency | C62: alpha | D62: molC/molPAR | E62: 0.03
B63: Ratio NPP/GPP | C63: Y | D63: - | E63: 0.47
B64: Conductance
B65: Minimum canopy conductance | C65: MinCond | D65: m/s | E65: 0
B66: Maximum canopy conductance | C66: MaxCond | D66: m/s | E66: 0.01 | F66: Schultze et al. 1994 and to keep max transpiration per day < 3mm at LAI of 3.0 as reported
B67: LAI for maximum canopy conductance | C67: LAIgcx | D67: - | E67: 3.33 | F67: Tian et al. 2011 (av. 1 mm/day transpiration May through Sept. with LAI =3.0 ET total 300 mm for period
B68: Defines stomatal response to VPD | C68: CoeffCond | D68: 1/mBar | E68: 0.05
B69: Canopy boundary layer conductance | C69: BLcond | D69: m/s | E69: 0.2
B70: Wood and stand properties
B71: Branch and bark fraction (fracBB)
B72: Branch and bark fraction at age 0 | C72: fracBB0 | D72: - | E72: 0.15
B73: Branch and bark fraction for mature stands | C73: fracBB1 | D73: - | E73: 0.15
B74: Age at which fracBB = (fracBB0+fracBB1)/2 | C74: tBB | D74: years | E74: 1.5
B75: Basic Density
B76: Minimum basic density - for young trees | C76: rhoMin | D76: t/m3 | E76: 0.39 | F76: derived from allometric equations and Liu's volume table 1985 | J76: also Handbook Wood technology 1964
B77: Maximum basic density - for older trees | C77: rhoMax | D77: t/m3 | E77: 0.39 | K77: black spruce
B78: Age at which rho = (rhoMin+rhoMax)/2 | C78: tRho | D78: years | E78: 0.39
B79: Stem height
B80: Constant in the stem height relationship | C80: aH | D80: - | E80: 0
B81: Power of DBH in the stem height relationship | C81: nHB | D81: - | E81: 0
B82: Power of stocking in the stem height relationship | C82: nHN | D82: - | E82: 0
B83: Stem volume
B84: Constant in the stem volume relationship | C84: aV | D84: - | E84: 0
B85: Power of DBH in the stem volume relationship | C85: nVB | D85: - | E85: 0
B86: Power of stocking in the stem volume relationship | C86: nVN | D86: - | E86: 0
B87: Conversion factors
B88: Intercept of net v. solar radiation relationship | C88: Qa | D88: W/m2 | E88: -90
B89: Slope of net v. solar radiation relationship | C89: Qb | D89: - | E89: 0.8
B90: Molecular weight of dry matter | C90: gDM_mol | D90: gDM/mol | E90: 24
B91: Conversion of solar radiation to PAR | C91: molPAR_MJ | D91: mol/MJ | E91: 2.3
B96: Standard 3PGpjs options
B98: Interpolate lookups? (Yes/No) | C98: no
B99: Output frequency (None, Rotation, Annual or Monthly) | C99: Monthly
B100: Clear output region? (Yes/No) | C100: yes
B101: Output data (3-PG names from 3PGpjs_Outputs) | C101: stemNo, WF, WR, WS, standVol, LAI, MAI, avDBH, BasArea, NPP, ET, CO2

Sheet Ex 7 Chinese spruce 2
A2: Run type : | B2: SingleSite | E2: Stand initialisation and site factor data | O2: Vary Block | R2: =AVERAGE(X4:X16) -> 
A3: Site : | B3: Quilan Mountains | F3: Year planted = | G3: 2000 | I3: Latitude = | J3: 38
A4: Species : | B4: Picea crassifolia | F4: Month planted = | G4: April | I4: Fertility rating = | J4: 0.4 | O4: Age | P4: CO2
A5: Climate data : | B5: Metdata2 | F5: Initial year = | G5: 1 | I5: Soil class = | J5: cl | O5: 1 | P5: 368.865
A6: Met station : | B6: Mean data | F6: Initial month = | G6: Dec | I6: Maximum ASW = | J6: 200 | O6: 2 | P6: 370.4675
A7: Title : | B7: Climate Change NW China | F7: End age = | G7: 100 | I7: Minimum ASW = | J7: 0 | O7: =+O6+1 -> 3 | P7: 372.5225
F8: Initial WF = | G8: 1 | I8: Atmospheric CO2 = | J8: 350 | O8: 4 | P8: 374.76 | R8: CO2 in 1950 was 311 ppm
F9: Initial WR = | G9: 0.5 | O9: 5 | P9: 376.8125 | R9: CO2 in 1990 was 354 ppm
F10: Initial WS = | G10: 1.5 | O10: 6 | P10: 378.8125 | R10: CO2 in 2009 was 385 ppm
F11: Initial stocking = | G11: 400 | O11: 7 | P11: 380.8275
F12: Initial ASW = | G12: 200 | O12: 8 | P12: 382.7775
O13: 9 | P13: 384.8
O14: 10 | P14: 386.9516
O15: 11 | P15: 389.12785
F16: Output details | O16: 12 | P16: 391.27357
G17: Output frequency : | H17: a | O17: 13 | P17: 393.4211
O18: 14 | P18: 395.58283
O19: 15 | P19: 397.76408
O20: 16 | P20: 399.96631 | S20: Stand age | T20: NPP Mg (dm)/ha/yr | U20: ET | V20: WUE
O21: 17 | P21: 402.18432 | S21: 1.666666667
O22: 18 | P22: 404.41077 | S22: 2.666666667 | T22: 1.709843622 | U22: 34.54953423 | V22: =+U22/T22 -> 20.20625382
O23: 19 | P23: 406.64292 | S23: 3.666666667 | T23: 2.309742739 | U23: 42.73598004 | V23: =+U23/T23 -> 18.50248485
O24: 20 | P24: 408.8817 | S24: 4.666666667 | T24: 2.906677537 | U24: 51.49110865 | V24: 17.71476471
O25: 21 | P25: 411.12868 | S25: 5.666666667 | T25: 3.530075076 | U25: 61.23734492 | V25: 17.34732084
O26: 22 | P26: 413.37804 | S26: 6.666666667 | T26: 4.204216136 | U26: 72.47391814 | V26: 17.23839018
O27: 23 | P27: 415.63944 | S27: 7.666666667 | T27: 4.938398273 | U27: 85.39841754 | V27: 17.29273599
O28: 24 | P28: 417.93551 | S28: 8.666666667 | T28: 5.731826087 | U28: 100.0199062 | V28: 17.44991991
O29: 25 | P29: 420.27395 | S29: 9.666666667 | T29: 6.579741463 | U29: 116.282982 | V29: 17.67288011
O30: 26 | P30: 422.65593 | S30: 10.66666667 | T30: 7.475707079 | U30: 134.095081 | V30: 17.93744452
O31: 27 | P31: 425.07983 | S31: 11.66666667 | T31: 8.412375347 | U31: 153.3249412 | V31: 18.22611746
O32: 28 | P32: 427.53791 | S32: 12.66666667 | T32: 9.38214273 | U32: 173.8077953 | V32: 18.52538384
O33: 29 | P33: 430.0206 | S33: 13.66666667 | T33: 10.37774952 | U33: 195.3572549 | V33: 18.82462614
O34: 30 | P34: 432.5234 | S34: 14.66666667 | T34: 11.39268865 | U34: 217.7780635 | V34: 19.11559863
O35: 31 | P35: 435.04594 | S35: 15.66666667 | T35: 12.3392833 | U35: 239.2981513 | V35: 19.39319694
A36: #Output from 3PGpjs 2.7 / 3-PG vsn 1 Sep2009 | O36: 32 | P36: 437.58886 | S36: 16.66666667 | T36: 12.82782577 | U36: 252.8313454 | V36: 19.70960239
A37: Stand development for Quilan Mountains | O37: 33 | P37: 440.13137 | S37: 17.66666667 | T37: 13.21157377 | U37: 258.0853644 | V37: 19.53479342
A38: Climate Change NW China | O38: 34 | P38: 442.66419 | S38: 18.66666667 | T38: 13.51295325 | U38: 260.5436139 | V38: 19.28102681
A39: Year & month | B39: Stand age | C39: Stems | D39: Foliage DM | E39: Root DM | F39: Stem DM | G39: Stand volume | H39: LAI | I39: MAI | J39: Mean DBH | K39: Basal area | L39: NPP | M39: ET | N39: CO2 | O39: 35 | P39: 445.20699 | S39: 19.66666667 | T39: 13.75014368 | U39: 262.7330256 | V39: 19.10765674
A40: 2001 - Dec | B40: 1.666666667 | C40: 400 | D40: 1 | E40: 0.5 | F40: 1.5 | G40: 3.269230769 | H40: 0.3734867246 | I40: 1.961538462 | J40: 5.445714033 | K40: 0.931664476 | O40: 36 | P40: 447.76978 | S40: 20.66666667 | T40: 13.93764438 | U40: 264.6647451 | V40: 18.98920204
A41: 2002 - Dec | B41: 2.666666667 | C41: 400 | D41: 1.36674866 | E41: 0.3062004256 | F41: 1.945285747 | G41: 4.239725346 | H41: 0.4257448402 | I41: 1.589897005 | J41: 6.079334691 | K41: 1.161079561 | L41: 1.709843622 | M41: 33.37803301 | N41: 350 | O41: 37 | P41: 450.35539 | S41: 21.66666667 | T41: 14.08671135 | U41: 266.3399821 | V41: 18.90717964
A42: 2003 - Dec | B42: 3.666666667 | C42: 400 | D42: 1.792500729 | E42: 0.3876297176 | F42: 2.546815846 | G42: 5.550752484 | H42: 0.5275778053 | I42: 1.513841586 | J42: 6.814007785 | K42: 1.458663526 | L42: 2.309742739 | M42: 41.28239429 | N42: 350 | O42: 38 | P42: 452.96337 | S42: 22.66666667 | T42: 14.20596401 | U42: 267.4962018 | V42: 18.82985214
A43: 2004 - Dec | B43: 4.666666667 | C43: 400 | D43: 2.244055451 | E43: 0.4874982918 | F43: 3.303818149 | G43: 7.2006293 | H43: 0.6373528116 | I43: 1.542991993 | J43: 7.607770227 | K43: 1.818296269 | L43: 2.906677537 | M43: 49.73406711 | N43: 350 | O43: 39 | P43: 455.58649 | S43: 23.66666667 | T43: 14.30196823 | U43: 268.2499093 | V43: 18.75615335
A44: 2005 - Dec | B44: 5.666666667 | C44: 400 | D44: 2.7255807 | E44: 0.5928568234 | F44: 4.223183147 | G44: 9.204373526 | H44: 0.7607069586 | I44: 1.624301211 | J44: 8.441204748 | K44: 2.238508469 | L44: 3.530075076 | M44: 59.13993116 | N44: 350 | O44: 40 | P44: 458.2152 | S44: 24.66666667 | T44: 14.37972647 | U44: 268.8231841 | V44: 18.69459649
A45: 2006 - Dec | B45: 6.666666667 | C45: 400 | D45: 3.257320723 | E45: 0.7065593381 | F45: 5.318126662 | G45: 11.59078888 | H45: 0.904015457 | I45: 1.738618332 | J45: 9.306729712 | K45: 2.721097324 | L45: 4.204216136 | M45: 69.98085442 | N45: 350 | O45: 41 | P45: 460.84499 | S45: 25.66666667 | T45: 14.44306378 | U45: 269.1690388 | V45: 18.63656097
A46: 2007 - Dec | B46: 7.666666667 | C46: 400 | D46: 3.855557309 | E46: 0.8301618045 | F46: 6.604288372 | G46: 14.39396184 | H46: 1.070169296 | I46: 1.877473283 | J46: 10.20064085 | K46: 3.268923723 | L46: 4.938398273 | M46: 82.44609154 | N46: 350 | O46: 42 | P46: 463.47549 | S46: 26.66666667 | T46: 14.49492176 | U46: 269.3877834 | V46: 18.58497671
A47: 2008 - Dec | B47: 8.666666667 | C47: 400 | D47: 4.528628848 | E47: 0.9635886975 | F47: 8.097102126 | G47: 17.64753027 | H47: 1.259896605 | I47: 2.036253493 | J47: 11.11992821 | K47: 3.884667386 | L47: 5.731826087 | M47: 96.54258962 | N47: 350 | O47: 43 | P47: 466.09336 | S47: 27.66666667 | T47: 14.53757838 | U47: 269.4470854 | V47: 18.53452332
A48: 2009 - Dec | B48: 9.666666667 | C48: 400 | D48: 5.279047826 | E48: 1.106063537 | F48: 9.810763076 | G48: 21.38243235 | H48: 1.473206925 | I48: 2.21197576 | J48: 12.06157908 | K48: 4.570442084 | L48: 6.579741463 | M48: 112.2148396 | N48: 350 | O48: 44 | P48: 468.67807 | S48: 28.66666667 | T48: 14.57281107 | U48: 269.4470647 | V48: 18.48971097
A49: 2010 - Dec | B49: 10.66666667 | C49: 400 | D49: 6.105674559 | E49: 1.25651548 | F49: 11.75778995 | G49: 25.62595246 | H49: 1.709693729 | I49: 2.402433043 | J49: 13.02251841 | K49: 5.327700872 | L49: 7.475707079 | M49: 129.3713225 | N49: 350 | O49: 45 | P49: 471.23389 | S49: 29.66666667 | T49: 14.60201754 | U49: 269.4470418 | V49: 18.4527269
A50: 2011 - Dec | B50: 11.66666667 | C50: 400 | D50: 7.005024979 | E50: 1.413722273 | F50: 13.94878774 | G50: 30.40120405 | H50: 1.968478327 | I50: 2.60581749 | J50: 13.99966315 | K50: 6.157225293 | L50: 8.412375347 | M50: 147.883154 | N50: 350 | O50: 46 | P50: 473.78031 | S50: 30.66666667 | T50: 14.62630525 | U50: 269.4470163 | V50: 18.42208348
A51: 2012 - Dec | B51: 12.66666667 | C51: 400 | D51: 7.972063108 | E51: 1.5764202 | F51: 16.39238082 | G51: 35.72698385 | H51: 2.248229666 | I51: 2.820551356 | J51: 14.99001105 | K51: 7.059172239 | L51: 9.38214273 | M51: 167.5892288 | N51: 350 | O51: 47 | P51: 476.32819 | S51: 31.66666667 | T51: 14.64655817 | U51: 269.4469882 | V51: 18.39660793
A52: 2013 - Dec | B52: 13.66666667 | C52: 400 | D52: 9.000767381 | E52: 1.743402828 | F52: 19.0953024 | G52: 41.61796676 | H52: 2.547271574 | I52: 3.04521708 | J52: 15.99073368 | K52: 8.033164373 | L52: 10.37774952 | M52: 188.3078049 | N52: 350 | O52: 48 | P52: 478.88085 | S52: 32.66666667 | T52: 14.66348675 | U52: 269.4469572 | V52: 18.37536745
A53: 2014 - Dec | B53: 14.66666667 | C53: 400 | D53: 10.08458306 | E53: 1.913588875 | F53: 22.0625904 | G53: 48.08513292 | H53: 2.863711724 | I53: 3.27853179 | J53: 16.99924955 | K53: 9.078401205 | L53: 11.39268865 | M53: 209.8488935 | N53: 350 | O53: 49 | P53: 481.43826 | S53: 33.66666667 | T53: 14.67766561 | U53: 269.4469232 | V53: 18.35761424
A54: 2015 - Dec | B54: 15.66666667 | C54: 400 | D54: 11.19692839 | E54: 2.070710709 | F54: 25.27648599 | G54: 55.08977715 | H54: 3.192820417 | I54: 3.516368754 | J54: 18.00682906 | K54: 10.18648515 | L54: 12.3392833 | M54: 230.4511068 | N54: 350 | O54: 50 | P54: 483.99308 | S54: 34.66666667 | T54: 14.68956222 | U54: 269.446886 | V54: 18.34274446
A55: 2016 - Dec | B55: 16.66666667 | C55: 400 | D55: 12.22329179 | E55: 2.155731559 | F55: 28.61768195 | G55: 62.37187093 | H55: 3.511863942 | I55: 3.742312256 | J55: 18.97873681 | K55: 11.31577958 | L55: 12.82782577 | M55: 243.0901176 | N55: 350 | O55: 51 | P55: 486.53532 | S55: 35.66666667 | T55: 14.6995589 | U55: 269.4468454 | V55: 18.3302674
A56: 2017 - Dec | B56: 17.66666667 | C56: 400 | D56: 13.15433801 | E56: 2.219810874 | F56: 32.05887046 | G56: 69.87189715 | H56: 3.80361561 | I56: 3.955013046 | J56: 19.91351496 | K56: 12.45792529 | L56: 13.21157377 | M56: 247.5259141 | N56: 350 | O56: 52 | P56: 489.06035 | S56: 36.66666667 | T56: 14.7079698 | U56: 269.4468012 | V56: 18.31978205
A57: 2018 - Dec | B57: 18.66666667 | C57: 400 | D57: 13.98777702 | E57: 2.26988972 | F57: 35.57859046 | G57: 77.54308178 | H57: 4.066441802 | I57: 4.154093667 | J57: 20.81152181 | K57: 13.60684852 | L57: 13.51295325 | M57: 249.2466872 | N57: 350 | O57: 53 | P57: 491.53558 | S57: 37.66666667 | T57: 14.71505411 | U57: 269.4467531 | V57: 18.31095904
A58: 2019 - Dec | B58: 19.66666667 | C58: 400 | D58: 14.72607103 | E58: 2.309243611 | F58: 39.16011689 | G58: 85.34897271 | H58: 4.300434675 | I58: 4.339778273 | J58: 21.67412927 | K58: 14.75819319 | L58: 13.75014368 | M58: 250.7792735 | N58: 350 | O58: 54 | P58: 493.93186 | S58: 38.66666667 | T58: 14.7210265 | U58: 269.446701 | V58: 18.30352666
A59: 2020 - Dec | B59: 20.66666667 | C59: 400 | D59: 15.37469131 | E59: 2.34031746 | F59: 42.79050222 | G59: 93.26135098 | H59: 4.506825838 | I59: 4.512646015 | J59: 22.50323301 | K59: 15.9088837 | L59: 13.93764438 | M59: 252.1314749 | N59: 350 | O59: 55 | P59: 496.24365 | S59: 39.66666667 | T59: 14.72606533 | U59: 269.4466446 | V59: 18.2972599
A60: 2021 - Dec | B60: 21.66666667 | C60: 400 | D60: 15.94079691 | E60: 2.364996075 | F60: 46.45973165 | G60: 101.2583895 | H60: 4.687532036 | I60: 4.673464131 | J60: 23.3009463 | K60: 17.05677775 | L60: 14.08671135 | M60: 253.3041383 | N60: 350 | O60: 56 | P60: 498.47436 | S60: 40.66666667 | T60: 14.7303192 | U60: 269.4465838 | V60: 18.29197182
A61: 2022 - Dec | B61: 22.66666667 | C61: 400 | D61: 16.4322987 | E61: 2.384720145 | F61: 50.16003627 | G61: 109.323156 | H61: 4.844821971 | I61: 4.823080411 | J61: 24.06941793 | K61: 18.20040485 | L61: 14.20596401 | M61: 254.113489 | N61: 350 | O61: 57 | P61: 500.64502 | S61: 41.66666667 | T61: 14.73391223 | U61: 269.4465182 | V61: 18.28750667
A62: 2023 - Dec | B62: 23.66666667 | C62: 400 | D62: 16.85723291 | E62: 2.400585561 | F62: 53.88535799 | G62: 117.4424469 | H62: 4.981086505 | I62: 4.962356912 | J62: 24.81073005 | K62: 19.33877496 | L62: 14.30196823 | M62: 254.6410809 | N62: 350 | O62: 58 | P62: 502.76788 | S62: 42.66666667 | T62: 14.73694832 | U62: 269.4464477 | V62: 18.28373431
A63: 2024 - Dec | B63: 24.66666667 | C63: 400 | D63: 17.22336556 | E63: 2.413426098 | F63: 57.63094224 | G63: 125.6058998 | H63: 5.098688868 | I63: 5.092131071 | J63: 25.52684522 | K63: 20.47124061 | L63: 14.37972647 | M63: 255.0423693 | N63: 350 | O63: 59 | P63: 504.84729 | S63: 43.66666667 | T63: 14.73951459 | U63: 269.4463719 | V63: 18.28054583
A64: 2025 - Dec | B64: 25.66666667 | C64: 400 | D64: 17.537961 | E64: 2.42387842 | F64: 61.39303116 | G64: 133.8053243 | H64: 5.199873133 | I64: 5.213194454 | J64: 26.21958321 | K64: 21.59739843 | L64: 14.44306378 | M64: 255.2844632 | N64: 350 | O64: 60 | P64: 506.88408 | S64: 44.66666667 | T64: 14.74168419 | U64: 269.4462908 | V64: 18.27784989
A65: 2026 - Dec | B65: 26.66666667 | C65: 400 | D65: 17.80766262 | E65: 2.432431502 | F65: 65.1686334 | G65: 142.034201 | H65: 5.286713351 | I65: 5.326282537 | J65: 26.89061488 | K65: 22.71701886 | L65: 14.49492176 | M65: 255.4375795 | N65: 350 | O65: 61 | P65: 508.87135 | S65: 45.66666667 | T65: 14.74351868 | U65: 269.4462039 | V65: 18.27556974
A66: 2027 - Dec | B66: 27.66666667 | C66: 400 | D66: 18.03844768 | E66: 2.439463539 | F66: 68.95535121 | G66: 150.2873039 | H66: 5.361090036 | I66: 5.432071226 | J66: 27.54146567 | K66: 23.82999599 | L66: 14.53757838 | M66: 255.4790854 | N66: 350 | O66: 62 | P66: 510.79905 | S66: 46.66666667 | T66: 14.74506987 | U66: 269.446111 | V66: 18.27364084
A67: 2028 - Dec | B67: 28.66666667 | C67: 400 | D67: 18.23562924 | E67: 2.445269293 | F67: 72.75125001 | G67: 158.5604167 | H67: 5.424684416 | I67: 5.531177326 | J67: 28.17352398 | K67: 24.93631168 | L67: 14.57281107 | M67: 255.4790647 | N67: 350 | O67: 63 | P67: 512.64717 | S67: 47.66666667 | T67: 14.74638142 | U67: 269.4460119 | V67: 18.27200886
A68: 2029 - Dec | B68: 29.66666667 | C68: 400 | D68: 18.40388656 | E68: 2.450080304 | F68: 76.55475944 | G68: 166.8501167 | H68: 5.47898371 | I68: 5.624161238 | J68: 28.78805187 | K68: 26.03600976 | L68: 14.60201754 | M68: 255.4790418 | N68: 350 | O68: 64 | P68: 514.40151 | S68: 48.66666667 | T68: 14.74749017 | U68: 269.4459063 | V68: 18.27062797
A69: 2030 - Dec | B69: 30.66666667 | C69: 400 | D69: 18.54731125 | E69: 2.454079862 | F69: 80.36459773 | G69: 175.1536104 | H69: 5.525292848 | I69: 5.711530775 | J69: 29.38619638 | K69: 27.12917742 | L69: 14.62630525 | M69: 255.4790163 | N69: 350 | O69: 65 | P69: 516.06461 | S69: 49.66666667 | T69: 14.7484272 | U69: 269.4457939 | V69: 18.26945953
A70: 2031 - Dec | B70: 31.66666667 | C70: 400 | D70: 18.66946095 | E70: 2.457414141 | F70: 84.17971344 | G70: 183.4686062 | H70: 5.564749547 | I70: 5.79374546 | J70: 29.96900068 | K70: 28.21593174 | L70: 14.64655817 | M70: 255.4789882 | N70: 350 | O70: 66 | P70: 517.62854 | S70: 50.66666667 | T70: 14.74921879 | U70: 269.4456745 | V70: 18.26847091
A71: 2032 - Dec | B71: 32.66666667 | C71: 400 | D71: 18.77341517 | E71: 2.460200531 | F71: 87.99924028 | G71: 191.793216 | H71: 5.598340752 | I71: 5.871220898 | J71: 30.53741456 | K71: 29.29640984 | L71: 14.66348675 | M71: 255.4789572 | N71: 350 | O71: =+O70+1 -> 67 | P71: 519.09606 | S71: 51.66666667 | T71: 14.74988712 | U71: 269.4455476 | V71: 18.26763455
A72: 2033 - Dec | B72: 33.66666667 | C72: 400 | D72: 18.86182993 | E72: 2.462533911 | F72: 91.82246169 | G72: 200.1258781 | H72: 5.626919174 | I72: 5.944333011 | J72: 31.09230407 | K72: 30.37076179 | L72: 14.67766561 | M72: 255.4789232 | N72: 350 | O72: 68 | P72: 520.48828 | S72: 52.66666667 | T72: 14.75045096 | U72: 269.4454132 | V72: 18.26692716
A73: 2034 - Dec | B73: 34.66666667 | C73: 400 | D73: 18.9369893 | E73: 2.464491428 | F73: 95.64878293 | G73: 208.4652961 | H73: 5.651219147 | I73: 6.013422004 | J73: 31.63446027 | K73: 31.43914531 | L73: 14.68956222 | M73: 255.478886 | N73: 350 | O73: 69 | P73: 521.81772 | S73: 53.66666667 | T73: 14.75092616 | U73: 269.4452707 | V73: 18.26632903
A74: 2035 - Dec | B74: 35.66666667 | C74: 400 | D74: 19.00085277 | E74: 2.466136136 | F74: 99.47770887 | G74: 216.8103911 | H74: 5.671871388 | I74: 6.078796013 | J74: 32.16460699 | K74: 32.50172201 | L74: 14.6995589 | M74: 255.4788454 | N74: 350 | O74: 70 | P74: 523.08871 | S74: 54.66666667 | T74: 14.75132614 | U74: 269.44512 | V74: 18.26582352
A75: 2036 - Dec | B75: 36.66666667 | C75: 400 | D75: 19.05509811 | E75: 2.467519826 | F75: 103.3088263 | G75: 225.1602623 | H75: 5.689416446 | I75: 6.140734428 | J75: 32.68340788 | K75: 33.55865455 | L75: 14.7079698 | M75: 255.4788012 | N75: 350 | O75: 71 | P75: 524.30217 | S75: 55.66666667 | T75: 14.75166227 | U75: 269.4449607 | V75: 18.26539653
A76: 2037 - Dec | B76: 37.66666667 | C76: 400 | D76: 19.10115951 | E76: 2.468685211 | F76: 107.1417894 | G76: 233.5141563 | H76: 5.704316759 | I76: 6.199490875 | J76: 33.19147252 | K76: 34.61010468 | L76: 14.71505411 | M76: 255.4787531 | N76: 350 | O76: 72 | P76: 525.45089 | S76: 56.66666667 | T76: 14.75194414 | U76: 269.4447925 | V76: 18.26503612
A77: 2038 - Dec | B77: 38.66666667 | C77: 400 | D77: 19.14026133 | E77: 2.469667653 | F77: 110.9763084 | G77: 241.8714414 | H77: 5.716967363 | I77: 6.255295899 | J77: 33.68936191 | K77: 35.65623173 | L77: 14.7210265 | M77: 255.478701 | N77: 350 | O77: 73 | P77: 526.50901 | S77: 57.66666667 | T77: 14.75217988 | U77: 269.4446151 | V77: 18.26473221
A78: 2039 - Dec | B78: 39.66666667 | C78: 400 | D78: 19.17344762 | E78: 2.470496525 | F78: 114.8121401 | G78: 250.2315875 | H78: 5.727705299 | I78: 6.308359348 | J78: 34.17759337 | K78: 36.69719162 | L78: 14.72606533 | M78: 255.4786446 | N78: 350 | O78: 74 | P78: 527.45707 | S78: 58.66666667 | T78: 14.75237638 | U78: 269.4444281 | V78: 18.26447625
A79: 2040 - Dec | B79: 40.66666667 | C79: 400 | D79: 19.20160781 | E79: 2.471196294 | F79: 118.6490799 | G79: 258.5941485 | H79: 5.73681783 | I79: 6.358872504 | J79: 34.65664476 | K79: 37.73313612 | L79: 14.7303192 | M79: 255.4785838 | N79: 350 | O79: 75 | P79: 528.29593 | S79: 59.66666667 | T79: 14.75253946 | U79: 269.4442312 | V79: 18.26426101
A80: 2041 - Dec | B80: 41.66666667 | C80: 400 | D80: 19.22549907 | E80: 2.47178739 | F80: 122.4869555 | G80: 266.9587492 | H80: 5.744549592 | I80: 6.40700998 | J80: 35.12695836 | K80: 38.7642124 | L80: 14.73391223 | M80: 255.4785182 | N80: 350 | O80: 76 | P80: 529.02718 | S80: 60.66666667 | T80: 14.75267405 | U80: 269.4440241 | V80: 18.26408034
A81: 2042 - Dec | B81: 42.66666667 | C81: 400 | D81: 19.24576553 | E81: 2.472286912 | F81: 126.3256218 | G81: 275.3250731 | H81: 5.751108763 | I81: 6.4529314 | J81: 35.5889442 | K81: 39.79056274 | L81: 14.73694832 | M81: 255.4784477 | N81: 350 | O81: 77 | P81: 529.64253 | S81: 61.66666667 | T81: 14.75278431 | U81: 269.4438064 | V81: 18.26392908
A82: 2043 - Dec | B82: 43.66666667 | C82: 400 | D82: 19.26295486 | E82: 2.472709196 | F82: 130.1649562 | G82: 283.6928533 | H82: 5.756672392 | I82: 6.496782899 | J82: 36.0429831 | K82: 40.81232432 | L82: 14.73951459 | M82: 255.4783719 | N82: 350 | O82: 78 | P82: 530.14419 | S82: 62.66666667 | T82: 14.75287377 | U82: 269.4435777 | V82: 18.26380283
A83: 2044 - Dec | B83: 44.66666667 | C83: 400 | D83: 19.27753247 | E83: 2.473066279 | F83: 134.0048554 | G83: 292.0618644 | H83: 5.761390979 | I83: 6.538698458 | J83: 36.48942931 | K83: 41.82962921 | L83: 14.74168419 | M83: 255.4782908 | N83: 350 | O83: 79 | P83: 530.55341 | S83: 63.66666667 | T83: 14.75294542 | U83: 269.4433377 | V83: 18.26369787
A84: 2045 - Dec | B84: 45.66666667 | C84: 400 | D84: 19.28989378 | E84: 2.473368286 | F84: 137.8452321 | G84: 300.4319161 | H84: 5.765392401 | I84: 6.578801083 | J84: 36.92861292 | K84: 42.84260438 | L84: 14.74351868 | M84: 255.4782039 | N84: 350 | O84: 80 | P84: 530.88313 | S84: 64.66666667 | T84: 14.75300177 | U84: 269.4430861 | V84: 18.26361105
A85: 2046 - Dec | B85: 46.66666667 | C85: 400 | D85: 19.30037456 | E85: 2.47362374 | F85: 141.6860123 | G85: 308.8028474 | H85: 5.768785273 | I85: 6.617203873 | J85: 37.36084199 | K85: 43.85137173 | L85: 14.74506987 | M85: 255.478111 | N85: 350 | O85: 81 | P85: 531.13797 | S85: 65.66666667 | T85: 14.75304496 | U85: 269.4428224 | V85: 18.2635397
A86: 2047 - Dec | B86: 47.66666667 | C86: 400 | D86: 19.30925989 | E86: 2.473839823 | F86: 145.5271336 | G86: 317.174522 | H86: 5.771661822 | I86: 6.654010951 | J86: 37.78640444 | K86: 44.85604823 | L86: 14.74638142 | M86: 255.4780119 | N86: 350 | O86: 82 | P86: 531.31935 | S86: 66.66666667 | T86: 14.7530768 | U86: 269.4425463 | V86: 18.26348158
A87: 2048 - Dec | B87: 48.66666667 | C87: 400 | D87: 19.31679174 | E87: 2.474022595 | F87: 149.3685431 | G87: 325.5468246 | H87: 5.774100339 | I87: 6.689318314 | J87: 38.20556977 | K87: 45.85674605 | L87: 14.74749017 | M87: 255.4779063 | N87: 350 | O87: 83 | P87: 531.48991 | S87: 67.66666667 | T87: 14.75309879 | U87: 269.4422574 | V87: =+U87/T87 -> 18.26343477
A88: 2049 - Dec | B88: 49.66666667 | C88: 400 | D88: 19.32317548 | E88: 2.474177169 | F88: 153.2101959 | G88: 333.9196577 | H88: 5.776167272 | I88: 6.723214585 | J88: 38.6185906 | K88: 46.85357272 | L88: 14.7484272 | M88: 255.4777939 | N88: 350 | O88: 84 | P88: 531.70213 | S88: 68.66666667 | T88: 14.75311223 | U88: 269.4419553 | V88: 18.26339765
A89: 2050 - Dec | B89: 50.66666667 | C89: 400 | D89: 19.32858532 | E89: 2.474307864 | F89: 157.0520542 | G89: 342.2929385 | H89: 5.777919003 | I89: 6.755781682 | J89: 39.02570404 | K89: 47.84663128 | L89: 14.74921879 | M89: 255.4776745 | N89: 350 | O89: 85 | P89: 531.94208 | S89: 69.66666667 | T89: 14.7531182 | U89: 269.4416396 | V89: 18.26336887
A90: 2051 - Dec | B90: 51.66666667 | C90: 400 | D90: 19.33316908 | E90: 2.474418332 | F90: 160.8940857 | G90: 350.666597 | H90: 5.77940337 | I90: 6.787095425 | J90: 39.42713294 | K90: 48.83602048 | L90: 14.74988712 | M90: 255.4775476 | N90: 350 | O90: 86 | P90: 532.20472 | S90: 70.66666667 | T90: 14.75311759 | U90: 269.4413099 | V90: 18.26334727
A91: 2052 - Dec | B91: 52.66666667 | C91: 400 | D91: 19.33705215 | E91: 2.474511658 | F91: 164.7362631 | G91: 359.0405735 | H91: 5.780660952 | I91: 6.817226079 | J91: 39.82308703 | K91: 49.82183494 | L91: 14.75045096 | M91: 255.4774132 | N91: 350 | O91: 87 | P91: 532.48672 | S91: 71.66666667 | T91: 14.75311119 | U91: 269.4409658 | V91: 18.26333187
A92: 2053 - Dec | B92: 53.66666667 | C92: 400 | D92: 19.34034086 | E92: 2.47459045 | F92: 168.5785634 | G92: 367.4148178 | H92: 5.781726169 | I92: 6.84623884 | J92: 40.21376392 | K92: 50.80416535 | L92: 14.75092616 | M92: 255.4772707 | N92: 350 | O92: 88 | P92: 532.77553 | S92: 72.66666667 | T92: 14.75309963 | U92: 269.4406069 | V92: 18.26332185
A93: 2054 - Dec | B93: 54.66666667 | C93: 400 | D93: 19.3431254 | E93: 2.474656918 | F93: 172.4209669 | G93: 375.7892868 | H93: 5.782628213 | I93: 6.874194271 | J93: 40.59935003 | K93: 51.78309864 | L93: 14.75132614 | M93: 255.47712 | N93: 350 | O93: 89 | P93: 533.06978 | S93: 73.66666667 | T93: 14.75308345 | U93: 269.4402327 | V93: 18.26331652
A94: 2055 - Dec | B94: 55.66666667 | C94: 400 | D94: 19.34548225 | E94: 2.474712928 | F94: 176.2634568 | G94: 384.1639443 | H94: 5.783391839 | I94: 6.9011487 | J94: 40.98002143 | K94: 52.75871813 | L94: 14.75166227 | M94: 255.4769607 | N94: 350 | O94: 90 | P94: 533.38792 | S94: 74.66666667 | T94: 14.7530631 | U94: 269.4398429 | V94: 18.2633153
A95: 2056 - Dec | B95: 56.66666667 | C95: 400 | D95: 19.34747625 | E95: 2.474760063 | F95: 180.106019 | G95: 392.5387593 | H95: 5.784038039 | I95: 6.927154575 | J95: 41.35594458 | K95: 53.73110376 | L95: 14.75194414 | M95: 255.4767925 | N95: 350 | O95: 91 | P95: 533.74072 | S95: 75.66666667 | T95: 14.75303895 | U95: 269.439437 | V95: 18.26331768
A96: 2057 - Dec | B96: 57.66666667 | C96: 400 | D96: 19.34916239 | E96: 2.474799658 | F96: 183.9486413 | G96: 400.9137054 | H96: 5.784584612 | I96: 6.952260787 | J96: 41.72727706 | K96: 54.70033219 | L96: 14.75217988 | M96: 255.4766151 | N96: 350 | O96: 92 | P96: 534.13086 | S96: 76.66666667 | T96: 14.75301131 | U96: 269.4390146 | V96: 18.26332325
A97: 2058 - Dec | B97: 58.66666667 | C97: 400 | D97: 19.35058727 | E97: 2.474832849 | F97: 187.7913135 | G97: 409.2887602 | H97: 5.785046647 | I97: 6.976512957 | J97: 42.09416819 | K97: 55.666477 | L97: 14.75237638 | M97: 255.4764281 | N97: 350 | O97: 93 | P97: 534.55754 | S97: 77.66666667 | T97: 14.75298045 | U97: 269.4385752 | V97: 18.26333167
A98: 2059 - Dec | B98: 59.66666667 | C98: 400 | D98: 19.35179041 | E98: 2.474860592 | F98: 191.6340268 | G98: 417.6639045 | H98: 5.785436937 | I98: 6.999953707 | J98: 42.45675958 | K98: 56.62960883 | L98: 14.75253946 | M98: 255.4762312 | N98: 350 | O98: 94 | P98: 535.01142 | S98: 78.66666667 | T98: 14.75294657 | U98: 269.4381183 | V98: 18.26334265
A99: 2060 - Dec | B99: 60.66666667 | C99: 400 | D99: 19.3528053 | E99: 2.4748837 | F99: 195.4767737 | G99: 426.0391221 | H99: 5.785766327 | I99: 7.022622892 | J99: 42.81518569 | K99: 57.58979552 | L99: 14.75267405 | M99: 255.4760241 | N99: 350 | O99: 95 | P99: 535.47962 | S99: 79.66666667 | T99: 14.75290984 | U99: 269.4376437 | V99: 18.26335595
A100: 2061 - Dec | B100: 61.66666667 | C100: 400 | D100: 19.35366034 | E100: 2.47490286 | F100: 199.3195477 | G100: 434.4143989 | H100: 5.786044009 | I100: 7.04455782 | J100: 43.16957431 | K100: 58.54710227 | L100: 14.75278431 | M100: 255.4758064 | N100: 350 | O100: 96 | P100: 535.95487 | S100: 80.66666667 | T100: 14.7528704 | U100: 269.4371506 | V100: 18.26337135
A101: 2062 - Dec | B101: 62.66666667 | C101: 400 | D101: 19.3543796 | E101: 2.474918653 | F101: 203.1623435 | G101: 442.789723 | H101: 5.786277774 | I101: 7.065793452 | J101: 43.52004698 | K101: 59.50159175 | L101: 14.75287377 | M101: 255.4755777 | N101: 350 | O101: 97 | P101: 536.4351 | S101: 81.66666667 | T101: 14.75282837 | U101: 269.4366388 | V101: 18.2633887
A102: 2063 - Dec | B102: 63.66666667 | C102: 400 | D102: 19.35498345 | E102: 2.474931571 | F102: 207.0051562 | G102: 451.165084 | H102: 5.786474225 | I102: 7.086362577 | J102: 43.86671944 | K102: 60.45332421 | L102: 14.75294542 | M102: 255.4753377 | N102: 350 | O102: 98 | P102: 536.91986 | S102: 82.66666667 | T102: 14.75278382 | U102: 269.4361077 | V102: 18.26340785
A103: 2064 - Dec | B103: 64.66666667 | C103: 400 | D103: 19.35548918 | E103: 2.474942031 | F103: 210.8479818 | G103: 459.5404732 | H103: 5.786638957 | I103: 7.106295977 | J103: 44.20970196 | K103: 61.40235767 | L103: 14.75300177 | M103: 255.4750861 | N103: 350 | O103: 99 | P103: 537.39855 | S103: 83.66666667 | T103: 14.75273682 | U103: 269.4355569 | V103: 18.26342869
A104: 2065 - Dec | B104: 65.66666667 | C104: 400 | D104: 19.35591144 | E104: 2.474950385 | F104: 214.6908168 | G104: 467.9158828 | H104: 5.786776713 | I104: 7.12562258 | J104: 44.54909972 | K104: 62.34874793 | L104: 14.75304496 | M104: 255.4748224 | N104: 350 | O104: 100 | P104: 537.87136 | S104: 84.66666667 | T104: 14.75268742 | U104: 269.4349858 | V104: 18.26345113
A105: 2066 - Dec | B105: 66.66666667 | C105: 400 | D105: 19.35626262 | E105: 2.47495693 | F105: 218.5336581 | G105: 476.2913061 | H105: 5.786891508 | I105: 7.144369592 | J105: 44.88501309 | K105: 63.29254879 | L105: 14.7530768 | M105: 255.4745463 | N105: 350 | S105: 85.66666667 | T105: 14.75263566 | U105: 269.434394 | V105: 18.26347509
A106: 2067 - Dec | B106: 67.66666667 | C106: 400 | D106: 19.35655323 | E106: 2.474961919 | F106: 222.3765031 | G106: 484.6667375 | H106: 5.786986745 | I106: 7.162562623 | J106: 45.21753796 | K106: 64.23381203 | L106: 14.75309879 | M106: 255.4742574 | N106: 350 | S106: 86.66666667 | T106: 14.75258156 | U106: 269.433781 | V106: 18.26350052
A107: 2068 - Dec | B107: 68.66666667 | C107: 400 | D107: 19.35679217 | E107: 2.474965565 | F107: 226.2193494 | G107: 493.0421718 | H107: 5.787065306 | I107: 7.180225803 | J107: 45.54676602 | K107: 65.17258763 | L107: 14.75311223 | M107: 255.4739553 | N107: 350 | S107: 87.66666667 | T107: 14.75252512 | U107: 269.4331463 | V107: 18.26352737
A108: 2069 - Dec | B108: 69.66666667 | C108: 400 | D108: 19.35698697 | E108: 2.474968046 | F108: 230.0621951 | G108: 501.4176046 | H108: 5.787129631 | I108: 7.197381885 | J108: 45.87278495 | K108: 66.10892374 | L108: 14.7531182 | M108: 255.4736396 | N108: 350 | S108: 88.66666667 | T108: 14.75246635 | U108: 269.4324893 | V108: 18.2635556
A109: 2070 - Dec | B109: 70.66666667 | C109: 400 | D109: 19.357144 | E109: 2.474969514 | F109: 233.9050382 | G109: 509.793032 | H109: 5.787181787 | I109: 7.214052339 | J109: 46.19567872 | K109: 67.04286687 | L109: 14.75311759 | M109: 255.4733099 | N109: 350 | S109: 89.66666667 | T109: 14.75240523 | U109: 269.4318096 | V109: 18.26358518
A110: 2071 - Dec | B110: 71.66666667 | C110: 400 | D110: 19.35726867 | E110: 2.474970097 | F110: 237.7478772 | G110: 518.1684504 | H110: 5.787223521 | I110: 7.230257447 | J110: 46.51552776 | K110: 67.97446191 | L110: 14.75311119 | M110: 255.4729658 | N110: 350 | S110: 90.66666667 | T110: 14.75234176 | U110: 269.4311067 | V110: 18.26361611
A111: 2072 - Dec | B111: 72.66666667 | C111: 400 | D111: 19.35736553 | E111: 2.474969903 | F111: 241.5907107 | G111: 526.5438566 | H111: 5.787256312 | I111: 7.246016375 | J111: 46.8324092 | K111: 68.90375219 | L111: 14.75309963 | M111: 255.4726069 | N111: 350 | S111: 91.66666667 | T111: 14.75227592 | U111: 269.43038 | V111: 18.26364837
A112: 2073 - Dec | B112: 73.66666667 | C112: 400 | D112: 19.35743845 | E112: 2.474969021 | F112: 245.4335372 | G112: 534.9192478 | H112: 5.787281412 | I112: 7.261347255 | J112: 47.14639701 | K112: 69.83077963 | L112: 14.75308345 | M112: 255.4722327 | N112: 350 | S112: 92.66666667 | T112: 14.75220767 | U112: 269.429629 | V112: 18.26368195
A113: 2074 - Dec | B113: 74.66666667 | C113: 400 | D113: 19.35749068 | E113: 2.474967529 | F113: 249.2763557 | G113: 543.2946214 | H113: 5.787299877 | I113: 7.276267251 | J113: 47.45756222 | K113: 70.75558472 | L113: 14.7530631 | M113: 255.4718429 | N113: 350 | S113: 93.66666667 | T113: 14.752137 | U113: 269.4288531 | V113: 18.26371685
A114: 2075 - Dec | B114: 75.66666667 | C114: 400 | D114: 19.35752498 | E114: 2.474965489 | F114: 253.119165 | G114: 551.669975 | H114: 5.787312602 | I114: 7.290792621 | J114: 47.76597303 | K114: 71.67820665 | L114: 14.75303895 | M114: 255.471437 | N114: 350 | S114: 94.66666667 | T114: 14.75206386 | U114: 269.4280518 | V114: 18.26375308
A115: 2076 - Dec | B115: 76.66666667 | C115: 400 | D115: 19.35754367 | E115: 2.474962954 | F115: 256.9619641 | G115: 560.0453064 | H115: 5.78732034 | I115: 7.304938779 | J115: 48.07169502 | K115: 72.59868331 | L115: 14.75301131 | M115: 255.4710146 | N115: 350 | S115: 95.66666667 | T115: 14.75198823 | U115: 269.4272246 | V115: 18.26379065
A116: 2077 - Dec | B116: 77.66666667 | C116: 400 | D116: 19.35754872 | E116: 2.474959969 | F116: 260.804752 | G116: 568.4206134 | H116: 5.787323726 | I116: 7.318720344 | J116: 48.37479123 | K116: 73.51705142 | L116: 14.75298045 | M116: 255.4705752 | N116: 350 | S116: 96.66666667 | T116: 14.75191006 | U116: 269.426371 | V116: 18.26382956
A117: 2078 - Dec | B117: 78.66666667 | C117: 400 | D117: 19.35754176 | E117: 2.474956571 | F117: 264.6475278 | G117: 576.795894 | H117: 5.787323298 | I117: 7.332151195 | J117: 48.67532235 | K117: 74.43334652 | L117: 14.75294657 | M117: 255.4701183 | N117: 350 | S117: 97.66666667 | T117: 14.7518293 | U117: 269.4254902 | V117: 18.26386983
A118: 2079 - Dec | B118: 79.66666667 | C118: 400 | D118: 19.3575242 | E118: 2.474952789 | F118: 268.4902907 | G118: 585.1711464 | H118: 5.787319506 | I118: 7.345244516 | J118: 48.97334678 | K118: 75.34760305 | L118: 14.75290984 | M118: 255.4696437 | N118: 350 | S118: 98.66666667 | T118: 14.75174593 | U118: 269.4245819 | V118: 18.26391149
A119: 2080 - Dec | B119: 80.66666667 | C119: 400 | D119: 19.35749718 | E119: 2.474948649 | F119: 272.3330398 | G119: 593.5463688 | H119: 5.787312729 | I119: 7.358012837 | J119: 49.2689208 | K119: 76.25985438 | L119: 14.7528704 | M119: 255.4691506 | N119: 350 | S119: 99.66666667 | T119: 14.75165988 | U119: 269.4236454 | V119: 18.26395453
A120: 2081 - Dec | B120: 81.66666667 | C120: 400 | D120: 19.3574617 | E120: 2.474944172 | F120: 276.1757743 | G120: 601.9215594 | H120: 5.787303285 | I120: 7.370468074 | J120: 49.56209864 | K120: 77.1701329 | L120: 14.75282837 | M120: 255.4686388 | N120: 350 | S120: 100.6666667 | T120: 14.75157112 | U120: 269.4226801 | V120: 18.263999
A121: 2082 - Dec | B121: 82.66666667 | C121: 400 | D121: 19.35741857 | E121: 2.474939372 | F121: 280.0184934 | G121: 610.2967164 | H121: 5.78729144 | I121: 7.382621569 | J121: 49.85293261 | K121: 78.07847 | L121: 14.75278382 | M121: 255.4681077 | N121: 350
A122: 2083 - Dec | B122: 83.66666667 | C122: 400 | D122: 19.35736846 | E122: 2.474934265 | F122: 283.8611963 | G122: 618.6718381 | H122: 5.787277415 | I122: 7.394484121 | J122: 50.14147315 | K122: 78.98489615 | L122: 14.75273682 | M122: 255.4675569 | N122: 350 | T122: NPP | U122: ET | V122: WUE
A123: 2084 - Dec | B123: 84.66666667 | C123: 400 | D123: 19.35731194 | E123: 2.474928859 | F123: 287.7038823 | G123: 627.046923 | H123: 5.787261396 | I123: 7.406066019 | J123: 50.42776899 | K123: 79.88944094 | L123: 14.75268742 | M123: 255.4669858 | N123: 350 | R123: Climatic Conditions | S123: Run No. | T123: Mg(dm)/ha/yr | U123: mm/yr | V123: kg NPP/mm ET | W123: % NPP Baseline | X123: % ET baseline | Y123: % WUE baseline
A124: 2085 - Dec | B124: 85.66666667 | C124: 400 | D124: 19.35724947 | E124: 2.474923163 | F124: 291.5465506 | G124: 635.4219692 | H124: 5.787243536 | I124: 7.417377073 | J124: 50.71186714 | K124: 80.79213311 | L124: 14.75263566 | M124: 255.466394 | N124: 350 | R124: Baseline, 350 CO2 | S124: 1 | T124: 14.75157112 | U124: 269.4226801 | V124: =T124*1000/U124 -> 54.75252162 | W124: 100 | X124: 100 | Y124: 100
A125: 2086 - Dec | B125: 86.66666667 | C125: 400 | D125: 19.35718145 | E125: 2.474917182 | F125: 295.3892004 | G125: 643.7969752 | H125: 5.78722396 | I125: 7.428426637 | J125: 50.99381306 | K125: 81.69300056 | L125: 14.75258156 | M125: 255.465781 | N125: 350 | R125: Temp + 2C | S125: 2 | T125: 14.6562481 | U125: 283.7393725 | V125: 51.65391034 | W125: =T125/T124*100 -> 99.35381111 | X125: =U125/U124*100 -> 105.3138408 | Y125: 94.34069667
A126: 2087 - Dec | B126: 87.66666667 | C126: 400 | D126: 19.35710818 | E126: 2.47491092 | F126: 299.231831 | G126: 652.1719393 | H126: 5.787202772 | I126: 7.439223643 | J126: 51.27365068 | K126: 82.59207044 | L126: 14.75252512 | M126: 255.4651463 | N126: 350 | R126: Precip +30% | S126: 3 | T126: 14.75157112 | U126: 255.4546801 | V126: 57.74633337 | W126: =T126/T125*100 -> 100.6503916 | X126: =U126/U125*100 -> 90.03145313 | Y126: =V126/V125*100 -> 111.7946986
A127: 2088 - Dec | B127: 88.66666667 | C127: 400 | D127: 19.35702991 | E127: 2.47490438 | F127: 303.0744416 | G127: 660.5468598 | H127: 5.787180056 | I127: 7.449776615 | J127: 51.55142246 | K127: 83.4893691 | L127: 14.75246635 | M127: 255.4644893 | N127: 350 | R127: Frost days -30% | S127: 4 | T127: 16.74884229 | U127: 322.6779893 | V127: 51.90574765 | W127: 113.5393793 | X127: 126.3151606 | Y127: 89.88578949
A128: 2089 - Dec | B128: 89.66666667 | C128: 400 | D128: 19.35694685 | E128: 2.474897564 | F128: 306.9170314 | G128: 668.9217351 | H128: 5.787155878 | I128: 7.4600937 | J128: 51.8271695 | K128: 84.38492222 | L128: 14.75240523 | M128: 255.4638096 | N128: 350 | R128: Baseline, RCP 4.5 CO2 | S128: 5 | T128: 18.09521023 | U128: 258.1758497 | V128: 70.08870214 | W128: 108.0385732 | X128: 80.01036892 | Y128: 135.0307149
A129: 2090 - Dec | B129: 90.66666667 | C129: 400 | D129: 19.35685916 | E129: 2.47489047 | F129: 310.7595997 | G129: 677.2965634 | H129: 5.787130293 | I129: 7.470182684 | J129: 52.10093157 | K129: 85.27875473 | L129: 14.75234176 | M129: 255.4631067 | N129: 350 | R129: Temp + 2C,-Rain and Frost -30%, 350 CO2 | S129: 6 | T129: 14.75157112 | U129: 269.4226801 | V129: 54.75252162 | W129: 81.52196594 | X129: 104.3562674 | Y129: 78.11889784
A130: 2091 - Dec | B130: 91.66666667 | C130: 400 | D130: 19.35676695 | E130: 2.474883099 | F130: 314.6021456 | G130: 685.671343 | H130: 5.787103341 | I130: 7.480051015 | J130: 52.37274719 | K130: 86.17089093 | L130: 14.75227592 | M130: 255.46238 | N130: 350 | R130: Ditto with RCP 4.5 CO2 | S130: 7 | T130: 20.60679079 | U130: 313.3376832 | V130: 65.76544057 | W130: 139.6921767 | X130: 116.2996683 | Y130: 120.1139941
A131: 2092 - Dec | B131: 92.66666667 | C131: 400 | D131: 19.35667031 | E131: 2.474875449 | F131: 318.4446684 | G131: 694.0460722 | H131: 5.787075054 | I131: 7.489705815 | J131: 52.64265364 | K131: 87.06135445 | L131: 14.75220767 | M131: 255.461629 | N131: 350
A132: 2093 - Dec | B132: 93.66666667 | C132: 400 | D132: 19.35656932 | E132: 2.474867518 | F132: 322.2871673 | G132: 702.4207492 | H132: 5.787045454 | I132: 7.499153906 | J132: 52.91068708 | K132: 87.95016833 | L132: 14.752137 | M132: 255.4608531 | N132: 350
A133: 2094 - Dec | B133: 94.66666667 | C133: 400 | D133: 19.356464 | E133: 2.474859302 | F133: 326.1296414 | G133: 710.7953722 | H133: 5.787014556 | I133: 7.508401819 | J133: 53.17688252 | K133: 88.83735499 | L133: 14.75206386 | M133: 255.4600518 | N133: 350
A134: 2095 - Dec | B134: 95.66666667 | C134: 400 | D134: 19.35635438 | E134: 2.474850799 | F134: 329.9720899 | G134: 719.1699395 | H134: 5.786982369 | I134: 7.517455813 | J134: 53.44127396 | K134: 89.72293626 | L134: 14.75198823 | M134: 255.4592246 | N134: 350 | R134: Climatic Conditions | S134: Run No. | T134: % NPP Baseline | U134: % ET baseline | V134: % WUE baseline
A135: 2096 - Dec | B135: 96.66666667 | C135: 400 | D135: 19.35624047 | E135: 2.474842004 | F135: 333.8145119 | G135: 727.544449 | H135: 5.786948896 | I135: 7.526321887 | J135: 53.70389434 | K135: 90.60693347 | L135: 14.75191006 | M135: 255.458371 | N135: 350 | R135: Baseline, 350 CO2 | S135: 1 | T135: 100 | U135: 100 | V135: 100
A136: 2097 - Dec | B136: 97.66666667 | C136: 400 | D136: 19.35612224 | E136: 2.474832914 | F136: 337.6569066 | G136: 735.9188991 | H136: 5.786914136 | I136: 7.535005793 | J136: 53.96477565 | K136: 91.48936735 | L136: 14.7518293 | M136: 255.4574902 | N136: 350 | R136: Temp + 2C | S136: 2 | T136: 99.35381111 | U136: 105.3138408 | V136: 94.34069667
A137: 2098 - Dec | B137: 98.66666667 | C137: 400 | D137: 19.35599969 | E137: 2.474823523 | F137: 341.4992732 | G137: 744.2932877 | H137: 5.786878085 | I137: 7.543513051 | J137: 54.22394892 | K137: 92.37025816 | L137: 14.75174593 | M137: 255.4565819 | N137: 350 | R137: Precip +30% | S137: 3 | T137: 100.6503916 | U137: 90.03145313 | V137: 111.7946986
A138: 2099 - Dec | B138: 99.66666667 | C138: 400 | D138: 19.35587277 | E138: 2.474813827 | F138: 345.3416106 | G138: 752.6676128 | H138: 5.786840732 | I138: 7.551848958 | J138: 54.4814443 | K138: 93.24962566 | L138: 14.75165988 | M138: 255.4556454 | N138: 350 | R138: Frost days -30% | S138: 4 | T138: 113.5393793 | U138: 126.3151606 | V138: 89.88578949
A139: 2100 - Dec | B139: 100.6666667 | C139: 400 | D139: 19.35574144 | E139: 2.474803821 | F139: 349.183918 | G139: 761.0418726 | H139: 5.786802068 | I139: 7.560018602 | J139: 54.73729107 | K139: 94.1274891 | L139: 14.75157112 | M139: 255.4546801 | N139: 350 | R139: Baseline, RCP 4.5 CO2 | S139: 5 | T139: 108.0385732 | U139: 80.01036892 | V139: 135.0307149
R140: Temp + 2C,-Rain and Frost -30%, 350 CO2 | S140: 6 | T140: 81.52196594 | U140: 104.3562674 | V140: 78.11889784
R141: Ditto with RCP 4.5 CO2 | S141: 7 | T141: 139.6921767 | U141: 116.2996683 | V141: 120.1139941
T262: 390
A321: Year | C321: Av CO2 | D321: Varying CO2
A322: 1957 | C322: 18.98410925 | D322: 17.04141249
A323: 1958 | C323: 20.6873592 | D323: 18.627956
A324: 1959 | C324: 18.23194121 | D324: 16.44816816
A325: 1960 | C325: 18.73087352 | D325: 16.96067563
A326: 1961 | C326: 19.17592932 | D326: 17.43267935
A327: 1962 | C327: 17.07311992 | D327: 15.58516439
A328: 1963 | C328: 18.9660606 | D328: 17.39348818
A329: 1964 | C329: 19.64298537 | D329: 18.09911954
A330: 1965 | C330: 18.30110102 | D330: 16.93524874
A331: 1966 | C331: 18.90629006 | D331: 17.55685246
A332: 1967 | C332: 20.09743449 | D332: 18.76618891
A333: 1968 | C333: 18.03429965 | D333: 16.92580121
A334: 1969 | C334: 19.32845552 | D334: 18.22773609
A335: 1970 | C335: 18.10564354 | D335: 17.16768412
A336: 1971 | C336: 19.3829754 | D336: 18.50596748
A337: 1972 | C337: 20.91808663 | D337: 20.09717322
A338: 1973 | C338: 18.9399692 | D338: 18.29338855
A339: 1974 | C339: 19.43481585 | D339: 18.86993922
A340: 1975 | C340: 19.3756355 | D340: 18.89126645
A341: 1976 | C341: 17.64745865 | D341: 17.27298853
A342: 1977 | C342: 17.5062438 | D342: 17.21678111
A343: 1978 | C343: 17.8435404 | D343: 17.65192107
A344: 1979 | C344: 18.43370546 | D344: 18.34262425
A345: 1980 | C345: 17.375051 | D345: 17.36552325
A346: 1981 | C346: 20.41661827 | D346: 20.55565087
A347: 1982 | C347: 17.2555812 | D347: 17.4904362
A348: 1983 | C348: 17.85841051 | D348: 18.2031408
A349: 1984 | C349: 17.98896625 | D349: 18.44291884
A350: 1985 | C350: 19.0989223 | D350: 19.69808561
A351: 1986 | C351: 18.637107 | D351: 19.33646836
A352: 1987 | C352: 18.53649979 | D352: 19.34439528
A353: 1988 | C353: 19.78842678 | D353: 20.77080493
A354: 1989 | C354: 20.95370344 | D354: 22.12256869
A355: 1990 | C355: 18.13360433 | D355: 19.25173829
A356: 1991 | C356: 19.81091022 | D356: 21.14862238
A357: 1992 | C357: 20.46632056 | D357: 21.96569828
A358: 1993 | C358: 19.197145 | D358: 20.71305093
A359: 1994 | C359: 20.51077785 | D359: 22.24386992
A360: 1995 | C360: 19.37203762 | D360: 21.12209502
A361: 1996 | C361: 20.04676609 | D361: 21.9172247
A362: 1997 | C362: 19.86775037 | D362: 21.77411526
A363: 1998 | C363: 22.80883955 | D363: 25.04721482
A364: 1999 | C364: 21.98681446 | D364: 24.18194631
A365: 2000 | C365: 20.67337284 | D365: 22.77186901
A366: 2001 | C366: 20.77929812 | D366: 22.92340947
A367: 2002 | C367: 22.08841329 | D367: 24.39346709
A368: 2003 | C368: 21.87054692 | D368: 24.17409308
A369: 2004 | C369: 21.29163822 | D369: 23.55322396
A370: 2005 | C370: 23.68191297 | D370: 26.21239815
A371: 2006 | C371: 22.87008307 | D371: 25.31947624
A372: 2007 | C372: 22.99781655 | D372: 25.46594604
A373: 2008 | C373: 22.60197395 | D373: 25.03341963
A374: 2009 | C374: 24.75346346 | D374: 27.41541152
A375: 2010 | C375: 23.19021134 | D375: 25.68357222
C376: 23.69469711 | D376: 26.24133914
C377: 24.26748204 | D377: 26.87335614
Q2728: 1957 | R2728: =SUM(L2717:L2728) -> 0
R2729: =SUM(L2718:L2729) -> 0
... 659 more rows

Sheet CO2
C1: IPCC
A2: YEARS | B2: RCP_2.6 | C2: RCP_4.5 | D2: RCP_6.0 | E2: RCP_8.5 | F2: PRE_2015
A3: 1900 | B3: 295.8 | C3: 295.8 | D3: 295.8 | E3: 295.8 | F3: 295.8
A4: 1901 | B4: 296.125 | C4: 296.125 | D4: 296.125 | E4: 296.125 | F4: 296.125
A5: 1902 | B5: 296.475 | C5: 296.475 | D5: 296.475 | E5: 296.475 | F5: 296.475
A6: 1903 | B6: 296.825 | C6: 296.825 | D6: 296.825 | E6: 296.825 | F6: 296.825
A7: 1904 | B7: 297.2 | C7: 297.2 | D7: 297.2 | E7: 297.2 | F7: 297.2
A8: 1905 | B8: 297.625 | C8: 297.625 | D8: 297.625 | E8: 297.625 | F8: 297.625
A9: 1906 | B9: 298.075 | C9: 298.075 | D9: 298.075 | E9: 298.075 | F9: 298.075
A10: 1907 | B10: 298.5 | C10: 298.5 | D10: 298.5 | E10: 298.5 | F10: 298.5
A11: 1908 | B11: 298.9 | C11: 298.9 | D11: 298.9 | E11: 298.9 | F11: 298.9
A12: 1909 | B12: 299.3 | C12: 299.3 | D12: 299.3 | E12: 299.3 | F12: 299.3
A13: 1910 | B13: 299.7 | C13: 299.7 | D13: 299.7 | E13: 299.7 | F13: 299.7
A14: 1911 | B14: 300.075 | C14: 300.075 | D14: 300.075 | E14: 300.075 | F14: 300.075
A15: 1912 | B15: 300.425 | C15: 300.425 | D15: 300.425 | E15: 300.425 | F15: 300.425
A16: 1913 | B16: 300.775 | C16: 300.775 | D16: 300.775 | E16: 300.775 | F16: 300.775
A17: 1914 | B17: 301.1 | C17: 301.1 | D17: 301.1 | E17: 301.1 | F17: 301.1
A18: 1915 | B18: 301.4 | C18: 301.4 | D18: 301.4 | E18: 301.4 | F18: 301.4
A19: 1916 | B19: 301.725 | C19: 301.725 | D19: 301.725 | E19: 301.725 | F19: 301.725
A20: 1917 | B20: 302.075 | C20: 302.075 | D20: 302.075 | E20: 302.075 | F20: 302.075
A21: 1918 | B21: 302.4 | C21: 302.4 | D21: 302.4 | E21: 302.4 | F21: 302.4
A22: 1919 | B22: 302.7 | C22: 302.7 | D22: 302.7 | E22: 302.7 | F22: 302.7
A23: 1920 | B23: 303.025 | C23: 303.025 | D23: 303.025 | E23: 303.025 | F23: 303.025
A24: 1921 | B24: 303.4 | C24: 303.4 | D24: 303.4 | E24: 303.4 | F24: 303.4
A25: 1922 | B25: 303.775 | C25: 303.775 | D25: 303.775 | E25: 303.775 | F25: 303.775
A26: 1923 | B26: 304.125 | C26: 304.125 | D26: 304.125 | E26: 304.125 | F26: 304.125
A27: 1924 | B27: 304.525 | C27: 304.525 | D27: 304.525 | E27: 304.525 | F27: 304.525
A28: 1925 | B28: 304.975 | C28: 304.975 | D28: 304.975 | E28: 304.975 | F28: 304.975
A29: 1926 | B29: 305.4 | C29: 305.4 | D29: 305.4 | E29: 305.4 | F29: 305.4
A30: 1927 | B30: 305.825 | C30: 305.825 | D30: 305.825 | E30: 305.825 | F30: 305.825
A31: 1928 | B31: 306.3 | C31: 306.3 | D31: 306.3 | E31: 306.3 | F31: 306.3
A32: 1929 | B32: 306.775 | C32: 306.775 | D32: 306.775 | E32: 306.775 | F32: 306.775
A33: 1930 | B33: 307.225 | C33: 307.225 | D33: 307.225 | E33: 307.225 | F33: 307.225
A34: 1931 | B34: 307.7 | C34: 307.7 | D34: 307.7 | E34: 307.7 | F34: 307.7
A35: 1932 | B35: 308.175 | C35: 308.175 | D35: 308.175 | E35: 308.175 | F35: 308.175
A36: 1933 | B36: 308.6 | C36: 308.6 | D36: 308.6 | E36: 308.6 | F36: 308.6
A37: 1934 | B37: 309 | C37: 309 | D37: 309 | E37: 309 | F37: 309
A38: 1935 | B38: 309.4 | C38: 309.4 | D38: 309.4 | E38: 309.4 | F38: 309.4
A39: 1936 | B39: 309.75 | C39: 309.75 | D39: 309.75 | E39: 309.75 | F39: 309.75
A40: 1937 | B40: 310 | C40: 310 | D40: 310 | E40: 310 | F40: 310
A41: 1938 | B41: 310.175 | C41: 310.175 | D41: 310.175 | E41: 310.175 | F41: 310.175
A42: 1939 | B42: 310.3 | C42: 310.3 | D42: 310.3 | E42: 310.3 | F42: 310.3
A43: 1940 | B43: 310.375 | C43: 310.375 | D43: 310.375 | E43: 310.375 | F43: 310.375
A44: 1941 | B44: 310.375 | C44: 310.375 | D44: 310.375 | E44: 310.375 | F44: 310.375
A45: 1942 | B45: 310.3 | C45: 310.3 | D45: 310.3 | E45: 310.3 | F45: 310.3
A46: 1943 | B46: 310.2 | C46: 310.2 | D46: 310.2 | E46: 310.2 | F46: 310.2
A47: 1944 | B47: 310.125 | C47: 310.125 | D47: 310.125 | E47: 310.125 | F47: 310.125
A48: 1945 | B48: 310.1 | C48: 310.1 | D48: 310.1 | E48: 310.1 | F48: 310.1
A49: 1946 | B49: 310.125 | C49: 310.125 | D49: 310.125 | E49: 310.125 | F49: 310.125
A50: 1947 | B50: 310.2 | C50: 310.2 | D50: 310.2 | E50: 310.2 | F50: 310.2
A51: 1948 | B51: 310.325 | C51: 310.325 | D51: 310.325 | E51: 310.325 | F51: 310.325
A52: 1949 | B52: 310.5 | C52: 310.5 | D52: 310.5 | E52: 310.5 | F52: 310.5
A53: 1950 | B53: 310.75 | C53: 310.75 | D53: 310.75 | E53: 310.75 | F53: 310.75
A54: 1951 | B54: 311.1 | C54: 311.1 | D54: 311.1 | E54: 311.1 | F54: 311.1
A55: 1952 | B55: 311.5 | C55: 311.5 | D55: 311.5 | E55: 311.5 | F55: 311.5
A56: 1953 | B56: 311.925 | C56: 311.925 | D56: 311.925 | E56: 311.925 | F56: 311.925
A57: 1954 | B57: 312.425 | C57: 312.425 | D57: 312.425 | E57: 312.425 | F57: 312.425
A58: 1955 | B58: 313 | C58: 313 | D58: 313 | E58: 313 | F58: 313
A59: 1956 | B59: 313.6 | C59: 313.6 | D59: 313.6 | E59: 313.6 | F59: 313.6
A60: 1957 | B60: 314.225 | C60: 314.225 | D60: 314.225 | E60: 314.225 | F60: 314.225
A61: 1958 | B61: 314.8475 | C61: 314.8475 | D61: 314.8475 | E61: 314.8475 | F61: 314.8475
A62: 1959 | B62: 315.5 | C62: 315.5 | D62: 315.5 | E62: 315.5 | F62: 315.5
A63: 1960 | B63: 316.2725 | C63: 316.2725 | D63: 316.2725 | E63: 316.2725 | F63: 316.2725
A64: 1961 | B64: 317.075 | C64: 317.075 | D64: 317.075 | E64: 317.075 | F64: 317.075
A65: 1962 | B65: 317.795 | C65: 317.795 | D65: 317.795 | E65: 317.795 | F65: 317.795
A66: 1963 | B66: 318.3975 | C66: 318.3975 | D66: 318.3975 | E66: 318.3975 | F66: 318.3975
A67: 1964 | B67: 318.925 | C67: 318.925 | D67: 318.925 | E67: 318.925 | F67: 318.925
A68: 1965 | B68: 319.6475 | C68: 319.6475 | D68: 319.6475 | E68: 319.6475 | F68: 319.6475
A69: 1966 | B69: 320.6475 | C69: 320.6475 | D69: 320.6475 | E69: 320.6475 | F69: 320.6475
A70: 1967 | B70: 321.605 | C70: 321.605 | D70: 321.605 | E70: 321.605 | F70: 321.605
A71: 1968 | B71: 322.635 | C71: 322.635 | D71: 322.635 | E71: 322.635 | F71: 322.635
A72: 1969 | B72: 323.9025 | C72: 323.9025 | D72: 323.9025 | E72: 323.9025 | F72: 323.9025
A73: 1970 | B73: 324.985 | C73: 324.985 | D73: 324.985 | E73: 324.985 | F73: 324.985
A74: 1971 | B74: 325.855 | C74: 325.855 | D74: 325.855 | E74: 325.855 | F74: 325.855
A75: 1972 | B75: 327.14 | C75: 327.14 | D75: 327.14 | E75: 327.14 | F75: 327.14
A76: 1973 | B76: 328.6775 | C76: 328.6775 | D76: 328.6775 | E76: 328.6775 | F76: 328.6775
A77: 1974 | B77: 329.7425 | C77: 329.7425 | D77: 329.7425 | E77: 329.7425 | F77: 329.7425
A78: 1975 | B78: 330.585 | C78: 330.585 | D78: 330.585 | E78: 330.585 | F78: 330.585
A79: 1976 | B79: 331.7475 | C79: 331.7475 | D79: 331.7475 | E79: 331.7475 | F79: 331.7475
A80: 1977 | B80: 333.2725 | C80: 333.2725 | D80: 333.2725 | E80: 333.2725 | F80: 333.2725
A81: 1978 | B81: 334.8475 | C81: 334.8475 | D81: 334.8475 | E81: 334.8475 | F81: 334.8475
A82: 1979 | B82: 336.525 | C82: 336.525 | D82: 336.525 | E82: 336.525 | F82: 336.525
A83: 1980 | B83: 338.36 | C83: 338.36 | D83: 338.36 | E83: 338.36 | F83: 338.36
A84: 1981 | B84: 339.7275 | C84: 339.7275 | D84: 339.7275 | E84: 339.7275 | F84: 339.7275
A85: 1982 | B85: 340.7925 | C85: 340.7925 | D85: 340.7925 | E85: 340.7925 | F85: 340.7925
A86: 1983 | B86: 342.1975 | C86: 342.1975 | D86: 342.1975 | E86: 342.1975 | F86: 342.1975
A87: 1984 | B87: 343.7825 | C87: 343.7825 | D87: 343.7825 | E87: 343.7825 | F87: 343.7825
A88: 1985 | B88: 345.2825 | C88: 345.2825 | D88: 345.2825 | E88: 345.2825 | F88: 345.2825
A89: 1986 | B89: 346.7975 | C89: 346.7975 | D89: 346.7975 | E89: 346.7975 | F89: 346.7975
A90: 1987 | B90: 348.645 | C90: 348.645 | D90: 348.645 | E90: 348.645 | F90: 348.645
A91: 1988 | B91: 350.7375 | C91: 350.7375 | D91: 350.7375 | E91: 350.7375 | F91: 350.7375
A92: 1989 | B92: 352.4875 | C92: 352.4875 | D92: 352.4875 | E92: 352.4875 | F92: 352.4875
A93: 1990 | B93: 353.855 | C93: 353.855 | D93: 353.855 | E93: 353.855 | F93: 353.855
A94: 1991 | B94: 355.0175 | C94: 355.0175 | D94: 355.0175 | E94: 355.0175 | F94: 355.0175
A95: 1992 | B95: 355.885 | C95: 355.885 | D95: 355.885 | E95: 355.885 | F95: 355.885
A96: 1993 | B96: 356.7775 | C96: 356.7775 | D96: 356.7775 | E96: 356.7775 | F96: 356.7775
A97: 1994 | B97: 358.1275 | C97: 358.1275 | D97: 358.1275 | E97: 358.1275 | F97: 358.1275
A98: 1995 | B98: 359.8375 | C98: 359.8375 | D98: 359.8375 | E98: 359.8375 | F98: 359.8375
A99: 1996 | B99: 361.4625 | C99: 361.4625 | D99: 361.4625 | E99: 361.4625 | F99: 361.4625
A100: 1997 | B100: 363.155 | C100: 363.155 | D100: 363.155 | E100: 363.155 | F100: 363.155
A101: 1998 | B101: 365.3225 | C101: 365.3225 | D101: 365.3225 | E101: 365.3225 | F101: 365.3225
A102: 1999 | B102: 367.3475 | C102: 367.3475 | D102: 367.3475 | E102: 367.3475 | F102: 367.3475
A103: 2000 | B103: 368.865 | C103: 368.865 | D103: 368.865 | E103: 368.865 | F103: 368.865 | H103: Planting Year
A104: 2001 | B104: 370.4675 | C104: 370.4675 | D104: 370.4675 | E104: 370.4675 | F104: 370.4675
A105: 2002 | B105: 372.5225 | C105: 372.5225 | D105: 372.5225 | E105: 372.5225 | F105: 372.5225
A106: 2003 | B106: 374.76 | C106: 374.76 | D106: 374.76 | E106: 374.76 | F106: 374.76
A107: 2004 | B107: 376.8125 | C107: 376.8125 | D107: 376.8125 | E107: 376.8125 | F107: 376.8125
A108: 2005 | B108: 378.8125 | C108: 378.8125 | D108: 378.8125 | E108: 378.8125 | F108: 378.8125
A109: 2006 | B109: 380.8275 | C109: 380.8275 | D109: 380.8275 | E109: 380.8275 | F109: 380.8275
A110: 2007 | B110: 382.7775 | C110: 382.7775 | D110: 382.7775 | E110: 382.7775 | F110: 382.7775
A111: 2008 | B111: 384.8 | C111: 384.8 | D111: 384.8 | E111: 384.8 | F111: 384.8
A112: 2009 | B112: 387.00054 | C112: 386.9516 | D112: 386.93455 | E112: 387.01226 | F112: 386.9516
A113: 2010 | B113: 389.28521 | C113: 389.12785 | D113: 389.0715 | E113: 389.32416 | F113: 389.12785
A114: 2011 | B114: 391.56252 | C114: 391.27357 | D114: 391.1665 | E114: 391.63801 | F114: 391.27357
A115: 2012 | B115: 393.84273 | C115: 393.4211 | D115: 393.24066 | E115: 394.00866 | F115: 393.4211
A116: 2013 | B116: 396.11734 | C116: 395.58283 | D116: 395.29786 | E116: 396.46384 | F116: 395.58283
A117: 2014 | B117: 398.39568 | C117: 397.76408 | D117: 397.34576 | E117: 399.00402 | F117: 397.76408
A118: 2015 | B118: 400.68068 | C118: 399.96631 | D118: 399.38717 | E118: 401.62793 | F118: 399.96631
A119: 2016 | B119: 402.9683 | C119: 402.18432 | D119: 401.41789 | E119: 404.32819
A120: 2017 | B120: 405.25182 | C120: 404.41077 | D120: 403.43127 | E120: 407.09588
A121: 2018 | B121: 407.52882 | C121: 406.64292 | D121: 405.42513 | E121: 409.92701
A122: 2019 | B122: 409.80029 | C122: 408.8817 | D122: 407.40083 | E122: 412.82151
A123: 2020 | B123: 412.06783 | C123: 411.12868 | D123: 409.36026 | E123: 415.78022
A124: 2021 | B124: 414.32565 | C124: 413.37804 | D124: 411.29764 | E124: 418.79629
A125: 2022 | B125: 416.51662 | C125: 415.63944 | D125: 413.21903 | E125: 421.86439
A126: 2023 | B126: 418.60322 | C126: 417.93551 | D126: 415.14445 | E126: 424.99469
A127: 2024 | B127: 420.60132 | C127: 420.27395 | D127: 417.08292 | E127: 428.19734
A128: 2025 | B128: 422.51575 | C128: 422.65593 | D128: 419.03635 | E128: 431.47473
A129: 2026 | B129: 424.34901 | C129: 425.07983 | D129: 421.0038 | E129: 434.82619
A130: 2027 | B130: 426.09675 | C130: 427.53791 | D130: 422.97812 | E130: 438.24456
A131: 2028 | B131: 427.75232 | C131: 430.0206 | D131: 424.95028 | E131: 441.7208
A132: 2029 | B132: 429.31381 | C132: 432.5234 | D132: 426.91631 | E132: 445.25085
A133: 2030 | B133: 430.78315 | C133: 435.04594 | D133: 428.87629 | E133: 448.83485
A134: 2031 | B134: 432.16344 | C134: 437.58886 | D134: 430.832 | E134: 452.47359
A135: 2032 | B135: 433.43618 | C135: 440.13137 | D135: 432.80746 | E135: 456.177
A136: 2033 | B136: 434.59273 | C136: 442.66419 | D136: 434.83148 | E136: 459.96398
A137: 2034 | B137: 435.65302 | C137: 445.20699 | D137: 436.91619 | E137: 463.85181
A138: 2035 | B138: 436.62804 | C138: 447.76978 | D138: 439.06785 | E138: 467.85003
A139: 2036 | B139: 437.52158 | C139: 450.35539 | D139: 441.28581 | E139: 471.96047
A140: 2037 | B140: 438.33433 | C140: 452.96337 | D140: 443.5672 | E140: 476.18237
A141: 2038 | B141: 439.06015 | C141: 455.58649 | D141: 445.90288 | E141: 480.50799
A142: 2039 | B142: 439.69061 | C142: 458.2152 | D142: 448.28176 | E142: 484.92724
A143: 2040 | B143: 440.2224 | C143: 460.84499 | D143: 450.69811 | E143: 489.43545
A144: 2041 | B144: 440.65666 | C144: 463.47549 | D144: 453.15021 | E144: 494.03235
A145: 2042 | B145: 441.02476 | C145: 466.09336 | D145: 455.64509 | E145: 498.7297
A146: 2043 | B146: 441.34651 | C146: 468.67807 | D146: 458.18181 | E146: 503.52959
A147: 2044 | B147: 441.621 | C147: 471.23389 | D147: 460.76247 | E147: 508.43266
A148: 2045 | B148: 441.8644 | C148: 473.78031 | D148: 463.4053 | E148: 513.45614
A149: 2046 | B149: 442.08482 | C149: 476.32819 | D149: 466.11968 | E149: 518.61062
A150: 2047 | B150: 442.2834 | C150: 478.88085 | D150: 468.90757 | E150: 523.90006
A151: 2048 | B151: 442.4583 | C151: 481.43826 | D151: 471.76784 | E151: 529.32418
A152: 2049 | B152: 442.60091 | C152: 483.99308 | D152: 474.69236 | E152: 534.8752
A153: 2050 | B153: 442.70046 | C153: 486.53532 | D153: 477.67043 | E153: 540.54279
A154: 2051 | B154: 442.75184 | C154: 489.06035 | D154: 480.69694 | E154: 546.32201
A155: 2052 | B155: 442.761 | C155: 491.53558 | D155: 483.77696 | E155: 552.21189
A156: 2053 | B156: 442.73417 | C156: 493.93186 | D156: 486.9156 | E156: 558.2122
A157: 2054 | B157: 442.66263 | C157: 496.24365 | D157: 490.1025 | E157: 564.31311
A158: 2055 | B158: 442.54767 | C158: 498.47436 | D158: 493.33845 | E158: 570.51669
A159: 2056 | B159: 442.40642 | C159: 500.64502 | D159: 496.64173 | E159: 576.84343
A160: 2057 | B160: 442.24833 | C160: 502.76788 | D160: 500.02229 | E160: 583.30471
A161: 2058 | B161: 442.07535 | C161: 504.84729 | D161: 503.48287 | E161: 589.90539
A162: 2059 | B162: 441.88625 | C162: 506.88408 | D162: 507.02296 | E162: 596.64656
A163: 2060 | B163: 441.67274 | C163: 508.87135 | D163: 510.63443 | E163: 603.52045
A164: 2061 | B164: 441.42415 | C164: 510.79905 | D164: 514.30531 | E164: 610.5165
A165: 2062 | B165: 441.1345 | C165: 512.64717 | D165: 518.02671 | E165: 617.60526
A166: 2063 | B166: 440.80284 | C166: 514.40151 | D166: 521.79702 | E166: 624.76367
A167: 2064 | B167: 440.43041 | C167: 516.06461 | D167: 525.61935 | E167: 631.99471
A168: 2065 | B168: 440.01021 | C168: 517.62854 | D168: 529.48604 | E168: 639.29052
A169: 2066 | B169: 439.54473 | C169: 519.09606 | D169: 533.3998 | E169: 646.65274
A170: 2067 | B170: 439.05222 | C170: 520.48828 | D170: 537.38147 | E170: 654.09843
A171: 2068 | B171: 438.54291 | C171: 521.81772 | D171: 541.44308 | E171: 661.64491
A172: 2069 | B172: 438.01932 | C172: 523.08871 | D172: 545.58888 | E172: 669.30474
A173: 2070 | B173: 437.48062 | C173: 524.30217 | D173: 549.81989 | E173: 677.07762
A174: 2071 | B174: 436.91878 | C174: 525.45089 | D174: 554.12904 | E174: 684.95429
A175: 2072 | B175: 436.34251 | C175: 526.50901 | D175: 558.48622 | E175: 692.90196
A176: 2073 | B176: 435.76436 | C176: 527.45707 | D176: 562.86724 | E176: 700.89416
A177: 2074 | B177: 435.18189 | C177: 528.29593 | D177: 567.27205 | E177: 708.93159
A178: 2075 | B178: 434.595 | C178: 529.02718 | D178: 571.70141 | E178: 717.01548
A179: 2076 | B179: 433.99542 | C179: 529.64253 | D179: 576.14574 | E179: 725.13597
A180: 2077 | B180: 433.38456 | C180: 530.14419 | D180: 580.6064 | E180: 733.30667
A181: 2078 | B181: 432.77961 | C181: 530.55341 | D181: 585.10462 | E181: 741.52368
A182: 2079 | B182: 432.18978 | C182: 530.88313 | D182: 589.65317 | E182: 749.80466
A183: 2080 | B183: 431.61659 | C183: 531.13797 | D183: 594.25683 | E183: 758.1823
A184: 2081 | B184: 431.05847 | C184: 531.31935 | D184: 598.9179 | E184: 766.64451
A185: 2082 | B185: 430.51026 | C185: 531.48991 | D185: 603.53811 | E185: 775.17446
A186: 2083 | B186: 429.96413 | C186: 531.70213 | D186: 608.01988 | E186: 783.75141
A187: 2084 | B187: 429.41411 | C187: 531.94208 | D187: 612.36372 | E187: 792.36578
A188: 2085 | B188: 428.85906 | C188: 532.20472 | D188: 616.57173 | E188: 801.0188
A189: 2086 | B189: 428.2991 | C189: 532.48672 | D189: 620.64773 | E189: 809.71464
A190: 2087 | B190: 427.72652 | C190: 532.77553 | D190: 624.58304 | E190: 818.42214
A191: 2088 | B191: 427.14308 | C191: 533.06978 | D191: 628.38085 | E191: 827.15719
A192: 2089 | B192: 426.56607 | C192: 533.38792 | D192: 632.06458 | E192: 835.95594
A193: 2090 | B193: 426.00472 | C193: 533.74072 | D193: 635.64876 | E193: 844.80471
A194: 2091 | B194: 425.46065 | C194: 534.13086 | D194: 639.14086 | E194: 853.72536
A195: 2092 | B195: 424.93745 | C195: 534.55754 | D195: 642.59729 | E195: 862.72597
A196: 2093 | B196: 424.43129 | C196: 535.01142 | D196: 646.06094 | E196: 871.7768
A197: 2094 | B197: 423.93083 | C197: 535.47962 | D197: 649.51513 | E197: 880.86435
A198: 2095 | B198: 423.43058 | C198: 535.95487 | D198: 652.95074 | E198: 889.98162
A199: 2096 | B199: 422.92945 | C199: 536.4351 | D199: 656.36419 | E199: 899.12407
A200: 2097 | B200: 422.42761 | C200: 536.91986 | D200: 659.75421 | E200: 908.28871
... 3 more rows

Sheet Metdata2
C2: Database format : | D2: Table format
B15: CASE 1 | E15: Baseline Climate 350 ppm CO2 | I15: CASE 2 | AQ15: CASE 3
B16: NW China | D16: 1957-2009 | I16: Plus 2 C | L16: Historic | S16: Temperature Increase + 2C | Z16: Temperature Increase + 2C + Rainfall Decrease 30% | AG16: Temperature Increase + 2C + Frost Days Reduction 30% | AR16: Precip reduced 30%
A17: Station = | AQ17: Mean data
A18: Year | B18: Month | C18: Tmax | D18: Tmin | E18: Rain | F18: Solar rad | G18: Frost Days | I18: Month | J18: Tmax | K18: Tmin | L18: Rain | M18: Solar rad | N18: Frost Days | O18: Rain | P18: Solar rad | Q18: Frost Days | S18: Month | T18: Tmax | U18: Tmin | V18: Rain | W18: Solar rad | X18: Frost Days | Z18: Month | AA18: Tmax | AB18: Tmin | AC18: Rain | AD18: Solar rad | AE18: Frost Days | AG18: Month | AH18: Tmax | AI18: Tmin | AJ18: Rain | AK18: Solar rad | AL18: Frost Days | AM18: Rain | AN18: Solar rad | AO18: Frost Days | AQ18: Month | AR18: Tmax | AS18: Tmin | AT18: Rain | AU18: Solar rad | AV18: Frost Days
B19: Jan | C19: -4.9 | D19: -23.2 | E19: 1.5 | F19: 1.2 | G19: 30 | I19: Jan | J19: =C19+2 -> -2.9 | K19: =D19+2 -> -21.2 | L19: 1.5 | M19: 1.2 | N19: 30 | O19: 1.5 | P19: 1.2 | Q19: 30 | S19: Jan | T19: =+M19+2 -> 3.2 | U19: =+N19+2 -> 32 | V19: 1.5 | W19: 1.2 | X19: 30 | Z19: Jan | AA19: =+M19+2 -> 3.2 | AB19: =+N19+2 -> 32 | AC19: =+O19*0.7 -> 1.05 | AD19: 1.2 | AE19: 30 | AG19: Jan | AH19: =+M19+2 -> 3.2 | AI19: =+N19+2 -> 32 | AJ19: 1.5 | AK19: 1.2 | AL19: =+Q19*0.7 -> 21 | AM19: 1.5 | AN19: 1.2 | AO19: 30 | AQ19: Jan | AR19: -4.9 | AS19: -23.2 | AT19: =E19*0.7 -> 1.05 | AU19: 1.2 | AV19: 30
B20: Feb | C20: -1.4 | D20: -19.6 | E20: 2.8 | F20: 4.1 | G20: 30 | I20: Feb | J20: =C20+2 -> 0.6 | K20: =D20+2 -> -17.6 | L20: 2.8 | M20: 4.1 | N20: 30 | O20: 2.8 | P20: 4.1 | Q20: 30 | S20: Feb | T20: =+M20+2 -> 6.1 | U20: 32 | V20: 2.8 | W20: 4.1 | X20: 30 | Z20: Feb | AA20: 6.1 | AB20: 32 | AC20: 1.96 | AD20: 4.1 | AE20: 30 | AG20: Feb | AH20: 6.1 | AI20: 32 | AJ20: 2.8 | AK20: 4.1 | AL20: 21 | AM20: 2.8 | AN20: 4.1 | AO20: 30 | AQ20: Feb | AR20: -1.4 | AS20: -19.6 | AT20: =E20*0.7 -> 1.96 | AU20: 4.1 | AV20: 30
B21: March | C21: 3.7 | D21: -12.8 | E21: 11.2 | F21: 10.1 | G21: 30 | I21: March | J21: 5.7 | K21: -10.8 | L21: 11.2 | M21: 10.1 | N21: 30 | O21: 11.2 | P21: 10.1 | Q21: 30 | S21: March | T21: 12.1 | U21: 32 | V21: 11.2 | W21: 10.1 | X21: 30 | Z21: March | AA21: 12.1 | AB21: 32 | AC21: 7.84 | AD21: 10.1 | AE21: 30 | AG21: March | AH21: 12.1 | AI21: 32 | AJ21: 11.2 | AK21: 10.1 | AL21: 21 | AM21: 11.2 | AN21: 10.1 | AO21: 30 | AQ21: March | AR21: 3.7 | AS21: -12.8 | AT21: 7.84 | AU21: 10.1 | AV21: 30
B22: April | C22: 9.2 | D22: -6.4 | E22: 23.5 | F22: 18.3 | G22: 24.4 | I22: April | J22: 11.2 | K22: -4.4 | L22: 23.5 | M22: 18.3 | N22: 24.4 | O22: 23.5 | P22: 18.3 | Q22: 24.4 | S22: April | T22: 20.3 | U22: 26.4 | V22: 23.5 | W22: 18.3 | X22: 24.4 | Z22: April | AA22: 20.3 | AB22: 26.4 | AC22: 16.45 | AD22: 18.3 | AE22: 24.4 | AG22: April | AH22: 20.3 | AI22: 26.4 | AJ22: 23.5 | AK22: 18.3 | AL22: 17.08 | AM22: 23.5 | AN22: 18.3 | AO22: 24.4 | AQ22: April | AR22: 9.2 | AS22: -6.4 | AT22: 16.45 | AU22: 18.3 | AV22: 24.4
B23: May | C23: 12.34 | D23: -2.41 | E23: 55.3 | F23: 24.8 | G23: 12.56 | I23: May | J23: 14.34 | K23: -0.41 | L23: 55.3 | M23: 24.8 | N23: 12.56 | O23: 55.3 | P23: 24.8 | Q23: 12.56 | S23: May | T23: 26.8 | U23: 14.56 | V23: 55.3 | W23: 24.8 | X23: 12.56 | Z23: May | AA23: 26.8 | AB23: 14.56 | AC23: 38.71 | AD23: 24.8 | AE23: 12.56 | AG23: May | AH23: 26.8 | AI23: 14.56 | AJ23: 55.3 | AK23: 24.8 | AL23: 8.792 | AM23: 55.3 | AN23: 24.8 | AO23: 12.56 | AQ23: May | AR23: 12.34 | AS23: -2.41 | AT23: 38.71 | AU23: 24.8 | AV23: 12.56
B24: June | C24: 15.34 | D24: 0.89 | E24: 77.3 | F24: 27.5 | G24: 6.16 | I24: June | J24: 17.34 | K24: 2.89 | L24: 77.3 | M24: 27.5 | N24: 6.16 | O24: 77.3 | P24: 27.5 | Q24: 6.16 | S24: June | T24: 29.5 | U24: 8.16 | V24: 77.3 | W24: 27.5 | X24: 6.16 | Z24: June | AA24: 29.5 | AB24: 8.16 | AC24: 54.11 | AD24: 27.5 | AE24: 6.16 | AG24: June | AH24: 29.5 | AI24: 8.16 | AJ24: 77.3 | AK24: 27.5 | AL24: 4.312 | AM24: 77.3 | AN24: 27.5 | AO24: 6.16 | AQ24: June | AR24: 15.34 | AS24: 0.89 | AT24: 54.11 | AU24: 27.5 | AV24: 6.16
B25: July | C25: 17.24 | D25: 3.29 | E25: 101.8 | F25: 25.8 | G25: 1.46 | I25: July | J25: 19.24 | K25: 5.29 | L25: 101.8 | M25: 25.8 | N25: 1.46 | O25: 101.8 | P25: 25.8 | Q25: 1.46 | S25: July | T25: 27.8 | U25: 3.46 | V25: 101.8 | W25: 25.8 | X25: 1.46 | Z25: July | AA25: 27.8 | AB25: 3.46 | AC25: 71.26 | AD25: 25.8 | AE25: 1.46 | AG25: July | AH25: 27.8 | AI25: 3.46 | AJ25: 101.8 | AK25: 25.8 | AL25: 1.022 | AM25: 101.8 | AN25: 25.8 | AO25: 1.46 | AQ25: July | AR25: 17.24 | AS25: 3.29 | AT25: 71.26 | AU25: 25.8 | AV25: 1.46
B26: Aug | C26: 16.84 | D26: 2.39 | E26: 96.2 | F26: 20.5 | G26: 3.16 | I26: Aug | J26: 18.84 | K26: 4.39 | L26: 96.2 | M26: 20.5 | N26: 3.16 | O26: 96.2 | P26: 20.5 | Q26: 3.16 | S26: Aug | T26: 22.5 | U26: 5.16 | V26: 96.2 | W26: 20.5 | X26: 3.16 | Z26: Aug | AA26: 22.5 | AB26: 5.16 | AC26: 67.34 | AD26: 20.5 | AE26: 3.16 | AG26: Aug | AH26: 22.5 | AI26: 5.16 | AJ26: 96.2 | AK26: 20.5 | AL26: 2.212 | AM26: 96.2 | AN26: 20.5 | AO26: 3.16 | AQ26: Aug | AR26: 16.84 | AS26: 2.39 | AT26: 67.34 | AU26: 20.5 | AV26: 3.16
B27: Sep | C27: 12.74 | D27: -1.01 | E27: 71 | F27: 12.2 | G27: 9.96 | I27: Sep | J27: 14.74 | K27: 0.99 | L27: 71 | M27: 12.2 | N27: 9.96 | O27: 71 | P27: 12.2 | Q27: 9.96 | S27: Sep | T27: 14.2 | U27: 11.96 | V27: 71 | W27: 12.2 | X27: 9.96 | Z27: Sep | AA27: 14.2 | AB27: 11.96 | AC27: 49.7 | AD27: 12.2 | AE27: 9.96 | AG27: Sep | AH27: 14.2 | AI27: 11.96 | AJ27: 71 | AK27: 12.2 | AL27: 6.972 | AM27: 71 | AN27: 12.2 | AO27: 9.96 | AQ27: Sep | AR27: 12.74 | AS27: -1.01 | AT27: 49.7 | AU27: 12.2 | AV27: 9.96
B28: Oct | C28: 8.3 | D28: -6.7 | E28: 20.6 | F28: 5.3 | G28: 24.9 | I28: Oct | J28: 10.3 | K28: -4.7 | L28: 20.6 | M28: 5.3 | N28: 24.9 | O28: 20.6 | P28: 5.3 | Q28: 24.9 | S28: Oct | T28: 7.3 | U28: 26.9 | V28: 20.6 | W28: 5.3 | X28: 24.9 | Z28: Oct | AA28: 7.3 | AB28: 26.9 | AC28: 14.42 | AD28: 5.3 | AE28: 24.9 | AG28: Oct | AH28: 7.3 | AI28: 26.9 | AJ28: 20.6 | AK28: 5.3 | AL28: 17.43 | AM28: 20.6 | AN28: 5.3 | AO28: 24.9 | AQ28: Oct | AR28: 8.3 | AS28: -6.7 | AT28: 14.42 | AU28: 5.3 | AV28: 24.9
B29: Nov | C29: 1.5 | D29: -15.3 | E29: 3.4 | F29: 1.6 | G29: 30 | I29: Nov | J29: 3.5 | K29: -13.3 | L29: 3.4 | M29: 1.6 | N29: 30 | O29: 3.4 | P29: 1.6 | Q29: 30 | S29: Nov | T29: 3.6 | U29: 32 | V29: 3.4 | W29: 1.6 | X29: 30 | Z29: Nov | AA29: 3.6 | AB29: 32 | AC29: 2.38 | AD29: 1.6 | AE29: 30 | AG29: Nov | AH29: 3.6 | AI29: 32 | AJ29: 3.4 | AK29: 1.6 | AL29: 21 | AM29: 3.4 | AN29: 1.6 | AO29: 30 | AQ29: Nov | AR29: 1.5 | AS29: -15.3 | AT29: 2.38 | AU29: 1.6 | AV29: 30
B30: Dec | C30: -3.6 | D30: -21.4 | E30: 1 | F30: 0.6 | G30: 30 | I30: Dec | J30: -1.6 | K30: -19.4 | L30: 1 | M30: 0.6 | N30: 30 | O30: 1 | P30: 0.6 | Q30: 30 | S30: Dec | T30: 2.6 | U30: 32 | V30: 1 | W30: 0.6 | X30: 30 | Z30: Dec | AA30: 2.6 | AB30: 32 | AC30: 0.7 | AD30: 0.6 | AE30: 30 | AG30: Dec | AH30: 2.6 | AI30: 32 | AJ30: 1 | AK30: 0.6 | AL30: 21 | AM30: 1 | AN30: 0.6 | AO30: 30 | AQ30: Dec | AR30: -3.6 | AS30: -21.4 | AT30: 0.7 | AU30: 0.6 | AV30: 30
B32: CASE 4 | I32: CASE 5 | AQ32: CASE 6 | AX32: CASE 7
B33: Frost reduced 30% | J33: Baseline climate with RCP4.5 CO2 | AS33: Temp +2, Rain-30%, Frost -30%, CO2 350ppm | AX33: (Case 6 with RCP 4.5 CO2
B35: Month | C35: Tmax | D35: Tmin | E35: Rain | F35: Solar rad | G35: Frost Days | I35: Year | J35: Month | K35: Tmax | L35: Tmin | M35: Rain | N35: Solar rad | O35: Frost Days | AM35: Rain | AN35: Solar rad | AO35: Frost Days | AQ35: Month | AR35: Tmax | AS35: Tmin | AT35: Rain | AU35: Solar rad | AV35: Frost Days
B36: Jan | C36: -4.9 | D36: -23.2 | E36: 1.5 | F36: 1.2 | G36: =G19*0.7 -> 21 | J36: Jan | K36: -4.9 | L36: -23.2 | M36: 1.5 | N36: 1.2 | O36: 30 | AM36: 1.5 | AN36: 1.2 | AO36: 30 | AQ36: Jan | AR36: =C19+2 -> -2.9 | AS36: =D19+2 -> -21.2 | AT36: =E19*0.7 -> 1.05 | AU36: 1.2 | AV36: =G19*0.7 -> 21
B37: Feb | C37: -1.4 | D37: -19.6 | E37: 2.8 | F37: 4.1 | G37: =G20*0.7 -> 21 | J37: Feb | K37: -1.4 | L37: -19.6 | M37: 2.8 | N37: 4.1 | O37: 30 | AM37: 2.8 | AN37: 4.1 | AO37: 30 | AQ37: Feb | AR37: =C20+2 -> 0.6 | AS37: -17.6 | AT37: =E20*0.7 -> 1.96 | AU37: 4.1 | AV37: =G20*0.7 -> 21
B38: March | C38: 3.7 | D38: -12.8 | E38: 11.2 | F38: 10.1 | G38: 21 | J38: March | K38: 3.7 | L38: -12.8 | M38: 11.2 | N38: 10.1 | O38: 30 | AM38: 11.2 | AN38: 10.1 | AO38: 30 | AQ38: March | AR38: =C21+2 -> 5.7 | AS38: -10.8 | AT38: 7.84 | AU38: 10.1 | AV38: 21
B39: April | C39: 9.2 | D39: -6.4 | E39: 23.5 | F39: 18.3 | G39: 17.08 | J39: April | K39: 9.2 | L39: -6.4 | M39: 23.5 | N39: 18.3 | O39: 24.4 | AM39: 23.5 | AN39: 18.3 | AO39: 24.4 | AQ39: April | AR39: =C22+2 -> 11.2 | AS39: -4.4 | AT39: 16.45 | AU39: 18.3 | AV39: 17.08
B40: May | C40: 12.34 | D40: -2.41 | E40: 55.3 | F40: 24.8 | G40: 8.792 | J40: May | K40: 12.34 | L40: -2.41 | M40: 55.3 | N40: 24.8 | O40: 12.56 | AM40: 55.3 | AN40: 24.8 | AO40: 12.56 | AQ40: May | AR40: =C23+2 -> 14.34 | AS40: -0.41 | AT40: 38.71 | AU40: 24.8 | AV40: 8.792
B41: June | C41: 15.34 | D41: 0.89 | E41: 77.3 | F41: 27.5 | G41: 4.312 | J41: June | K41: 15.34 | L41: 0.89 | M41: 77.3 | N41: 27.5 | O41: 6.16 | AM41: 77.3 | AN41: 27.5 | AO41: 6.16 | AQ41: June | AR41: =C24+2 -> 17.34 | AS41: 2.89 | AT41: 54.11 | AU41: 27.5 | AV41: 4.312
B42: July | C42: 17.24 | D42: 3.29 | E42: 101.8 | F42: 25.8 | G42: 1.022 | J42: July | K42: 17.24 | L42: 3.29 | M42: 101.8 | N42: 25.8 | O42: 1.46 | AM42: 101.8 | AN42: 25.8 | AO42: 1.46 | AQ42: July | AR42: =C25+2 -> 19.24 | AS42: 5.29 | AT42: 71.26 | AU42: 25.8 | AV42: 1.022
B43: Aug | C43: 16.84 | D43: 2.39 | E43: 96.2 | F43: 20.5 | G43: 2.212 | J43: Aug | K43: 16.84 | L43: 2.39 | M43: 96.2 | N43: 20.5 | O43: 3.16 | AM43: 96.2 | AN43: 20.5 | AO43: 3.16 | AQ43: Aug | AR43: =C26+2 -> 18.84 | AS43: 4.39 | AT43: 67.34 | AU43: 20.5 | AV43: 2.212
B44: Sep | C44: 12.74 | D44: -1.01 | E44: 71 | F44: 12.2 | G44: 6.972 | J44: Sep | K44: 12.74 | L44: -1.01 | M44: 71 | N44: 12.2 | O44: 9.96 | AM44: 71 | AN44: 12.2 | AO44: 9.96 | AQ44: Sep | AR44: =C27+2 -> 14.74 | AS44: 0.99 | AT44: 49.7 | AU44: 12.2 | AV44: 6.972
B45: Oct | C45: 8.3 | D45: -6.7 | E45: 20.6 | F45: 5.3 | G45: 17.43 | J45: Oct | K45: 8.3 | L45: -6.7 | M45: 20.6 | N45: 5.3 | O45: 24.9 | AM45: 20.6 | AN45: 5.3 | AO45: 24.9 | AQ45: Oct | AR45: =C28+2 -> 10.3 | AS45: -4.7 | AT45: 14.42 | AU45: 5.3 | AV45: 17.43
B46: Nov | C46: 1.5 | D46: -15.3 | E46: 3.4 | F46: 1.6 | G46: 21 | J46: Nov | K46: 1.5 | L46: -15.3 | M46: 3.4 | N46: 1.6 | O46: 30 | AM46: 3.4 | AN46: 1.6 | AO46: 30 | AQ46: Nov | AR46: =C29+2 -> 3.5 | AS46: -13.3 | AT46: 2.38 | AU46: 1.6 | AV46: 21
B47: Dec | C47: -3.6 | D47: -21.4 | E47: 1 | F47: 0.6 | G47: 21 | J47: Dec | K47: -3.6 | L47: -21.4 | M47: 1 | N47: 0.6 | O47: 30 | AM47: 1 | AN47: 0.6 | AO47: 30 | AQ47: Dec | AR47: =C30+2 -> -1.6 | AS47: -19.4 | AT47: 0.7 | AU47: 0.6 | AV47: 21

Sheet Metdata (hidden)
C2: Database format : | D2: Table format
B12: Note well: the location of the name of the met station - in the case below
B13: "mean data" - is critical: It must appear above the heading of the month
B14: column in the table of climate data.
B16: NW China | D16: 1957-2009 | K16: NW China
A17: Station = | B17: Mean data | K17: Station = | L17: Yearly data
A18: Year | B18: Month | C18: Tmax | D18: Tmin | E18: Rain | F18: Solar rad | G18: Frost Days | K18: Year | L18: Month | M18: Tmax | N18: Tmin | O18: Rain | P18: Solar rad | Q18: Frost Days
B19: Jan | C19: -4.9 | D19: -23.2 | E19: 1.5 | F19: 1.2 | G19: 30 | K19: 1957 | L19: Jan | M19: -5.26107956 | N19: -22.29703961 | O19: 1.855875229 | P19: 1.147716873 | Q19: 30
B20: Feb | C20: -1.4 | D20: -19.6 | E20: 2.8 | F20: 4.1 | G20: 30 | L20: Feb | M20: -5.042195751 | N20: -23.48933475 | O20: 1.638999362 | P20: 4.116530575 | Q20: 30
B21: March | C21: 3.7 | D21: -12.8 | E21: 11.2 | F21: 10.1 | G21: 30 | L21: March | M21: 5.156468815 | N21: -14.49470577 | O21: 3.738008884 | P21: 10.82113782 | Q21: 30
B22: April | C22: 9.2 | D22: -6.4 | E22: 23.5 | F22: 18.3 | G22: 24.4 | L22: April | M22: 8.57945652 | N22: -8.138186477 | O22: 31.20637831 | P22: 18.72819476 | Q22: 27.87637295
B23: May | C23: 12.34 | D23: -2.41 | E23: 55.3 | F23: 24.8 | G23: 12.56 | L23: May | M23: 10.4793837 | N23: -3.692324595 | O23: 59.36284975 | P23: 24.50336899 | Q23: 18.98464919
B24: June | C24: 15.34 | D24: 0.89 | E24: 77.3 | F24: 27.5 | G24: 6.16 | L24: June | M24: 15.32146932 | N24: -0.027672798 | O24: 75.63800281 | P24: 27.8923144 | Q24: 11.6553456
B25: July | C25: 17.24 | D25: 3.29 | E25: 101.8 | F25: 25.8 | G25: 1.46 | L25: July | M25: 16.75559199 | N25: 4.338365266 | O25: 117.3755401 | P25: 25.03878653 | Q25: 2.923269468
B26: Aug | C26: 16.84 | D26: 2.39 | E26: 96.2 | F26: 20.5 | G26: 3.16 | L26: Aug | M26: 16.32704572 | N26: 2.378793965 | O26: 109.8250206 | P26: 20.26374351 | Q26: 6.84241207
B27: Sep | C27: 12.74 | D27: -1.01 | E27: 71 | F27: 12.2 | G27: 9.96 | L27: Sep | M27: 11.41197789 | N27: -0.538263412 | O27: 74.19402018 | P27: 11.57115498 | Q27: 12.67652682
B28: Oct | C28: 8.3 | D28: -6.7 | E28: 20.6 | F28: 5.3 | G28: 24.9 | L28: Oct | M28: 6.847421817 | N28: -10.64028228 | O28: 10.52834238 | P28: 5.713237637 | Q28: 30 | W28: Frost Days
B29: Nov | C29: 1.5 | D29: -15.3 | E29: 3.4 | F29: 1.6 | G29: 30 | L29: Nov | M29: 2.047286968 | N29: -15.53986611 | O29: 0.304315732 | P29: 1.703649335 | Q29: 30 | V29: YEAR | W29: May-Sept
B30: Dec | C30: -3.6 | D30: -21.4 | E30: 1 | F30: 0.6 | G30: 30 | L30: Dec | M30: -3.034760103 | N30: -20.78141824 | O30: 0.91757537 | P30: 0.6365428211 | Q30: 30 | S30: 1 | V30: 1957 | W30: =Q23+Q24+Q25+Q26+Q27 -> 53.08220315
K31: 1958 | L31: =L19 -> Jan | M31: -6.16062004 | N31: -23.59805313 | O31: 1.548929083 | P31: 1.172041242 | Q31: 30 | V31: 1958 | W31: =Q35+Q36+Q37+Q38+Q39 -> 47.99657106
L32: Feb | M32: -1.511129856 | N32: -22.21568594 | O32: 0.542424361 | P32: 4.374421726 | Q32: 30 | V32: 1959 | W32: =Q47+Q48+Q49+Q50+Q51 -> 59.91435641
L33: March | M33: 5.331413134 | N33: -13.22637756 | O33: 7.452099928 | P33: 10.59970062 | Q33: 30 | V33: 1960 | W33: =Q59+Q60+Q61+Q62+Q63 -> 52.06115917
L34: April | M34: 10.93584096 | N34: -6.539446827 | O34: 14.55484431 | P34: 18.97467135 | Q34: 24.67889365 | V34: 1961 | W34: =Q71+Q72+Q73+Q74+Q75 -> 52.17072863
L35: May | M35: 12.14142908 | N35: -2.769859424 | O35: 44.36335874 | P35: 24.83629164 | Q35: 17.13971885 | V35: 1962 | W35: =Q83+Q84+Q85+Q86+Q87 -> 58.70011129
L36: June | M36: 15.17150831 | N36: 1.376958552 | O36: 120.3738423 | P36: 27.14354333 | Q36: 8.846082896 | V36: 1963 | W36: =Q95+Q96+Q97+Q98+Q99 -> 49.03065042
L37: July | M37: 18.07676146 | N37: 4.133066728 | O37: 106.1871428 | P37: 25.80956448 | Q37: 3.333866544 | V37: 1964 | W37: =Q107+Q108+Q109+Q110+Q111 -> 49.35916673
L38: Aug | M38: 15.82966756 | N38: 3.212803025 | O38: 101.6385867 | P38: 19.69052284 | Q38: 5.17439395 | V38: 1965 | W38: =Q119+Q120+Q121+Q122+Q123 -> 55.83934646
L39: Sep | M39: 14.31968761 | N39: -0.951254413 | O39: 82.83194032 | P39: 12.61936855 | Q39: 13.50250883 | V39: 1966 | W39: =Q131+Q132+Q133+Q134+Q135 -> 46.21355074
L40: Oct | M40: 6.923981708 | N40: -8.313561468 | O40: 28.52087033 | P40: 5.334967689 | Q40: 28.22712294 | V40: 1967 | W40: =Q143+Q144+Q145+Q146+Q147 -> 42.7526517
L41: Nov | M41: 1.800474518 | N41: -13.82976972 | O41: 3.361476847 | P41: 1.551200249 | Q41: 30 | V41: 1968 | W41: =Q155+Q156+Q157+Q158+Q159 -> 54.14372682
L42: Dec | M42: -2.780264577 | N42: -20.13825717 | O42: 1.941925193 | P42: 0.6211178686 | Q42: 30 | S42: 2 | V42: 1969 | W42: =Q179+Q180+Q181+Q182+Q183 -> 49.47587002
K43: 1959 | L43: Jan | M43: -6.514381117 | N43: -23.75617814 | O43: 3.703340217 | P43: 1.160219577 | Q43: 30 | V43: 1970 | W43: =Q167+Q168+Q169+Q170+Q171 -> 48.77649389
L44: Feb | M44: -3.870865372 | N44: -20.83363277 | O44: 2.264862336 | P44: 3.92591654 | Q44: 30 | V44: 1971 | W44: =Q191+Q192+Q193+Q194+Q195 -> 43.26481343
L45: March | M45: 3.862477476 | N45: -12.77695883 | O45: 12.4916261 | P45: 10.16937411 | Q45: 30 | V45: 1972 | W45: =Q216+Q217+Q218+Q219+Q220 -> 56.27593437
L46: April | M46: 9.61565693 | N46: -6.171031025 | O46: 15.53913439 | P46: 18.41039843 | Q46: 23.94206205 | V46: 1973 | W46: =Q203+Q204+Q205+Q206+Q207 -> 39.14732155
L47: May | M47: 9.84414695 | N47: -3.044467479 | O47: 54.63202776 | P47: 23.89131322 | Q47: 17.68893496 | V47: 1974 | W47: =Q239+Q240+Q241+Q242+Q243 -> 43.25462497
L48: June | M48: 14.53728072 | N48: 0.004748065 | O48: 99.30994121 | P48: 27.50691722 | Q48: 11.59050387 | V48: 1975 | W48: =Q227+Q228+Q229+Q230+Q231 -> 46.84692681
L49: July | M49: 18.38017228 | N49: 4.118041583 | O49: 139.3153866 | P49: 25.96140797 | Q49: 3.363916834 | V49: 1976 | W49: =Q251+Q252+Q253+Q254+Q255 -> 54.72964186
L50: Aug | M50: 16.81383674 | N50: 2.362998281 | O50: 66.8290965 | P50: 20.46876333 | Q50: 6.874003438 | V50: 1977 | W50: =Q263+Q264+Q265+Q266+Q267 -> 51.64511688
L51: Sep | M51: 12.76437869 | N51: -4.398498655 | O51: 38.64919307 | P51: 13.14175304 | Q51: 20.39699731 | V51: 1978 | W51: =Q275+Q276+Q277+Q278+Q279 -> 53.66015834
L52: Oct | M52: 10.52077659 | N52: -8.489612284 | O52: 5.492357255 | P52: 5.94590082 | Q52: 28.57922457 | V52: 1979 | W52: =Q287+Q288+Q289+Q290+Q291 -> 49.17448084
L53: Nov | M53: 1.25862765 | N53: -15.67225392 | O53: 2.87783372 | P53: 1.653419309 | Q53: 30 | V53: 1980 | W53: =Q299+Q300+Q301+Q302+Q303 -> 55.10247499
L54: Dec | M54: -4.089594247 | N54: -21.52992672 | O54: 1.558093539 | P54: 0.6243943692 | Q54: 30 | S54: 3 | V54: 1981 | W54: =Q311+Q312+Q313+Q314+Q315 -> 35.34844093
L55: Jan | M55: -4.408339336 | N55: -24.58465104 | O55: 0.585398514 | P55: 1.328243007 | Q55: 30 | V55: 1982 | W55: =Q324+Q325+Q326+Q327+Q328 -> 58.81872804
L56: Feb | M56: 0.936683652 | N56: -19.0514692 | O56: 1.291139051 | P56: 4.297348419 | Q56: 30 | V56: 1983 | W56: =Q335+Q336+Q337+Q338+Q339 -> 52.04861814
L57: March | M57: 5.670706485 | N57: -11.17688076 | O57: 11.28485218 | P57: 10.21839151 | Q57: 30 | V57: 1984 | W57: =Q347+Q348+Q349+Q350+Q351 -> 52.8784205
L58: April | M58: 6.203221827 | N58: -8.073608589 | O58: 40.4077823 | P58: 17.86128193 | Q58: 27.74721718 | V58: 1985 | W58: =Q359+Q360+Q361+Q362+Q363 -> 44.33676471
L59: May | M59: 13.03482831 | N59: -2.379322762 | O59: 42.53066862 | P59: 25.05531786 | Q59: 16.35864552 | V59: 1986 | W59: =Q371+Q372+Q373+Q374+Q375 -> 50.73129366
L60: June | M60: 16.48114644 | N60: 0.362627802 | O60: 53.27584404 | P60: 28.24025151 | Q60: 10.8747444 | V60: 1987 | W60: =Q383+Q384+Q385+Q386+Q387 -> 51.16808584
L61: July | M61: 18.347656 | N61: 3.484905832 | O61: 103.4904406 | P61: 26.24070254 | Q61: 4.630188336 | V61: 1988 | W61: =Q395+Q396+Q397+Q398+Q399 -> 40.84562599
L62: Aug | M62: 17.60991438 | N62: 2.358460309 | O62: 110.246384 | P62: 20.78438059 | Q62: 6.883079382 | V62: 1989 | W62: =Q407+Q408+Q409+Q410+Q411 -> 37.20098525
L63: =L51 -> Sep | M63: 13.68208473 | N63: -0.857250765 | O63: 84.41921473 | P63: 12.40403526 | Q63: 13.31450153 | V63: 1990 | W63: =Q419+Q420+Q421+Q422+Q423 -> 51.5847624
L64: Oct | M64: 5.516033212 | N64: -8.599189412 | O64: 39.44504224 | P64: 5.13351945 | Q64: 28.79837882 | V64: 1991 | W64: =Q431+Q432+Q433+Q434+Q435 -> 43.96571258
L65: Nov | M65: -0.68703414 | N65: -15.99557387 | O65: 2.894009188 | P65: 1.525490956 | Q65: 30 | V65: 1992 | W65: =Q443+Q444+Q445+Q446+Q447 -> 40.44901347
L66: Dec | M66: -4.098136451 | N66: -21.80639784 | O66: 0.248915986 | P66: 0.6350239165 | Q66: 30 | S66: 4 | V66: 1993 | W66: =Q455+Q456+Q457+Q458+Q459 -> 48.05120393
K67: 1961 | L67: Jan | M67: -6.755819136 | N67: -24.35843552 | O67: 0.740110038 | P67: 1.181972254 | Q67: 30 | V67: 1994 | W67: =Q467+Q468+Q469+Q470+Q471 -> 41.01378353
L68: Feb | M68: -4.136752548 | N68: -21.95818949 | O68: 4.57100937 | P68: 4.037927174 | Q68: 30 | V68: 1995 | W68: =Q479+Q480+Q481+Q482+Q483 -> 44.76033278
L69: March | M69: 1.780891052 | N69: -13.20007112 | O69: 18.71345432 | P69: 9.760808405 | Q69: 30 | V69: 1996 | W69: =Q491+Q492+Q493+Q494+Q495 -> 43.60960918
L70: April | M70: 9.43051381 | N70: -6.934232076 | O70: 18.31867779 | P70: 18.60961712 | Q70: 25.46846415 | V70: 1997 | W70: =Q503+Q504+Q505+Q506+Q507 -> 46.23585034
L71: May | M71: 13.67732366 | N71: -4.521045436 | O71: 34.12960222 | P71: 26.16130061 | Q71: 20.64209087 | V71: 1998 | W71: =Q515+Q516+Q517+Q518+Q519 -> 34.55080566
L72: June | M72: 17.2830026 | N72: 2.605646867 | O72: 60.48982394 | P72: 27.57650286 | Q72: 6.388706266 | V72: 1999 | W72: =Q527+Q528+Q529+Q530+Q531 -> 36.71388009
L73: July | M73: 18.33871336 | N73: 3.721297995 | O73: 122.3817815 | P73: 26.12770794 | Q73: 4.15740401 | V73: 2000 | W73: =Q539+Q540+Q541+Q542+Q543 -> 39.33709077
L74: Aug | M74: 17.96233212 | N74: 3.785049408 | O74: 95.46535745 | P74: 20.35786161 | Q74: 4.029901184 | V74: 2001 | W74: =Q551+Q552+Q553+Q554+Q555 -> 38.8823558
L75: Sep | M75: 13.57846765 | N75: -2.67631315 | O75: 53.99138871 | P75: 12.89733352 | Q75: 16.9526263 | V75: 2002 | W75: =Q563+Q564+Q565+Q566+Q567 -> 36.05546975
L76: Oct | M76: 7.8141454 | N76: -5.425541366 | O76: 37.16521426 | P76: 4.970199741 | Q76: 22.45108273 | V76: 2003 | W76: =Q575+Q576+Q577+Q578+Q579 -> 39.75384907
L77: Nov | M77: -0.131896338 | N77: -16.91305656 | O77: 9.178338745 | P77: 1.64181702 | Q77: 30 | V77: 2004 | W77: =Q587+Q588+Q589+Q590+Q591 -> 41.80105079
L78: Dec | M78: -5.357148095 | N78: -24.13940734 | O78: 0.448674315 | P78: 0.6769569254 | Q78: 30 | S78: 5 | V78: 2005 | W78: =Q599+Q600+Q601+Q602+Q603 -> 27.80157949
K79: 1962 | L79: Jan | M79: -5.908704421 | N79: -26.05356759 | O79: 0.164067825 | P79: 1.326577352 | Q79: 30 | V79: 2006 | W79: =Q611+Q612+Q613+Q614+Q615 -> 31.57124702
L80: Feb | M80: -0.851403964 | N80: -21.47127554 | O80: 1.481766863 | P80: 4.365559192 | Q80: 30 | V80: 2007 | W80: =Q623+Q624+Q625+Q626+Q627 -> 34.78842705
L81: March | M81: 1.914841617 | N81: -16.92425781 | O81: 2.54417401 | P81: 10.65845121 | Q81: 30 | V81: 2008 | W81: =Q635+Q636+Q637+Q638+Q639 -> 39.1511212
L82: April | M82: 9.66107896 | N82: -8.926626688 | O82: 5.677350136 | P82: 19.3152254 | Q82: 29.45325338 | V82: 2009 | W82: =Q647+Q648+Q649+Q650+Q651 -> 30.53789017
L83: May | M83: 12.70197669 | N83: -3.566041035 | O83: 37.25345952 | P83: 25.41402906 | Q83: 18.73208207 | V83: 2010 | W83: =Q659+Q660+Q661+Q662+Q663 -> 27.73995847
L84: June | M84: 16.16085405 | N84: -0.179336889 | O84: 50.04087321 | P84: 28.33777914 | Q84: 11.95867378 | V84: 2011 | W84: =Q671+Q672+Q673+Q674+Q675 -> 33.23524546
L85: July | M85: 17.09637981 | N85: 3.756308088 | O85: 104.5617697 | P85: 25.5139058 | Q85: 4.087383824 | V85: 2012 | W85: =Q683+Q684+Q685+Q686+Q687 -> 30.82157229
L86: Aug | M86: 18.98469783 | N86: 0.555394772 | O86: 67.78428406 | P86: 21.90779977 | Q86: 10.48921046
L87: Sep | M87: 14.17917121 | N87: -0.91638058 | O87: 64.56608394 | P87: 12.56842122 | Q87: 13.43276116
L88: Oct | M88: 7.589495132 | N88: -6.631107432 | O88: 18.68648328 | P88: 5.152792596 | Q88: 24.86221486
L89: Nov | M89: -2.752378469 | N89: -16.79426744 | O89: 7.442103158 | P89: 1.422940244 | Q89: 30
L90: Dec | M90: -3.702670095 | N90: -23.37197641 | O90: 0.208964321 | P90: 0.7104173923 | Q90: 30 | S90: 6
K91: 1963 | L91: Jan | M91: -5.710093874 | N91: -26.73101801 | O91: 0.034237082 | P91: 1.371580311 | Q91: 30
L92: Feb | M92: -2.238391492 | N92: -22.32767512 | O92: 2.924231239 | P92: 4.308512831 | Q92: 30
L93: March | M93: 6.180837329 | N93: -12.8250474 | O93: 7.153406085 | P93: 10.69271327 | Q93: 30
L94: April | M94: 9.602621 | N94: -6.941424717 | O94: 28.56913505 | P94: 18.67015664 | Q94: 25.48284943
L95: =L83 -> May | M95: 14.57353416 | N95: -1.230755978 | O95: 53.42678601 | P95: 25.22127592 | Q95: 14.06151196
L96: June | M96: 15.21285988 | N96: -0.225774553 | O96: 76.98464746 | P96: 27.93353598 | Q96: 12.05154911
L97: July | M97: 17.61110084 | N97: 2.912685562 | O97: 107.4281296 | P97: 26.16517795 | Q97: 5.774628876
L98: Aug | M98: 18.02248387 | N98: 2.908130987 | O98: 99.77334463 | P98: 20.7312539 | Q98: 5.783738026
L99: Sep | M99: 14.15121739 | N99: 0.120388774 | O99: 44.89531435 | P99: 12.2498682 | Q99: 11.35922245
L100: Oct | M100: 8.05251847 | N100: -8.349174097 | O100: 21.72340578 | P100: 5.535188769 | Q100: 28.29834819
L101: Nov | M101: 1.130091683 | N101: -15.74412107 | O101: 6.343732704 | P101: 1.649033662 | Q101: 30
L102: Dec | M102: -3.30232633 | N102: -22.61103527 | O102: 1.355752176 | P102: 0.696971279 | Q102: 30 | S102: 7
L103: Jan | M103: -5.844100701 | N103: -24.09753064 | O103: 2.696059704 | P103: 1.220586163 | Q103: 30
L104: Feb | M104: -2.479465251 | N104: -21.36646604 | O104: 6.924348278 | P104: 4.170090905 | Q104: 30
L105: March | M105: 5.051076559 | N105: -12.89712272 | O105: 8.654326467 | P105: 10.46838632 | Q105: 30
L106: April | M106: 11.10087009 | N106: -4.378798118 | O106: 64.32012468 | P106: 18.30211688 | Q106: 20.35759624
A107: 2009 | L107: May | M107: 11.79070883 | N107: -0.987086637 | O107: 110.0056787 | P107: 23.83604739 | Q107: 13.57417327
A108: frost 33.3 | L108: June | M108: 14.43722086 | N108: 0.215018605 | O108: 66.60044457 | P108: 27.3559436 | Q108: 11.16996279
A109: tmax +1.7 | L109: July | M109: 17.26296144 | N109: 2.850177151 | O109: 106.4040751 | P109: 26.03231713 | Q109: 5.899645698
A110: tmin +1.87 | L110: Aug | M110: 17.63400581 | N110: 1.835371609 | O110: 92.76406206 | P110: 20.99269429 | Q110: 7.929256782
A111: av. 9.55 | L111: Sep | M111: 13.04279173 | N111: 0.406935906 | O111: 64.8698466 | P111: 11.80489125 | Q111: 10.78612819
A112: May-Step. | L112: Oct | M112: 10.04646009 | N112: -6.699835244 | O112: 6.661291498 | P112: 5.592659147 | Q112: 24.99967049
A113: Av Max/min | L113: Nov | M113: 1.641789981 | N113: -17.27051937 | O113: 1.75083362 | P113: 1.80120667 | Q113: 30
A114: =AVERAGE(C112:C116) ->  | L114: Dec | M114: -5.177992947 | N114: -23.5708617 | O114: 0.648432644 | P114: 0.6619018865 | Q114: 30 | S114: 8
A115: =AVERAGE(D112:D116) ->  | K115: 1965 | L115: Jan | M115: -2.922412193 | N115: -23.12332436 | O115: 0.034237082 | P115: 1.329543461 | Q115: 30
L116: Feb | M116: -1.542251588 | N116: -19.87262835 | O116: 2.58819655 | P116: 4.102071168 | Q116: 30
L117: March | M117: 2.650135537 | N117: -15.40994272 | O117: 16.09929189 | P117: 10.49288586 | Q117: 30
L118: April | M118: 9.97254972 | N118: -5.819298513 | O118: 23.89550628 | P118: 18.41220381 | Q118: 23.23859703
L119: May | M119: 13.10985864 | N119: -2.020606748 | O119: 50.89372968 | P119: 24.9324692 | Q119: 15.6412135
L120: June | M120: 15.7691121 | N120: 0.912220626 | O120: 55.24864702 | P120: 27.66201748 | Q120: 9.775558748
L121: July | M121: 17.03049908 | N121: 2.924824977 | O121: 107.5183175 | P121: 25.88714161 | Q121: 5.750350046
L122: Aug | M122: 17.31066439 | N122: 0.485255205 | O122: 56.36366714 | P122: 21.36742032 | Q122: 10.62948959
L123: Sep | M123: 12.84681086 | N123: -1.22136729 | O123: 79.50416026 | P123: 12.26132337 | Q123: 14.04273458
L124: Oct | M124: 8.81395301 | N124: -6.715498349 | O124: 39.33570776 | P124: 5.386017873 | Q124: 25.0309967
L125: Nov | M125: 1.873025645 | N125: -14.27375089 | O125: 4.928785456 | P125: 1.592155324 | Q125: 30
L126: Dec | M126: -4.087157064 | N126: -22.55429224 | O126: 0.30261538 | P126: 0.6647879199 | Q126: 30 | S126: 9
K127: 1966 | L127: =L115 -> Jan | M127: -3.423370625 | N127: -22.94767433 | O127: 1.038567663 | P127: 1.293005529 | Q127: 30
L128: Feb | M128: 0.811284071 | N128: -19.39566894 | O128: 1.931784052 | P128: 4.32138707 | Q128: 30
L129: March | M129: 5.257690358 | N129: -12.74450941 | O129: 10.13710296 | P129: 10.48023344 | Q129: 30
L130: April | M130: 9.00329674 | N130: -6.624535002 | O130: 17.34345456 | P130: 18.35458489 | Q130: 24.84907
L131: May | M131: 11.79418559 | N131: -2.196177089 | O131: 68.74897353 | P131: 24.41967124 | Q131: 15.99235418
L132: June | M132: 16.29794894 | N132: -0.409051919 | O132: 66.48193635 | P132: 28.49644716 | Q132: 12.41810384
L133: July | M133: 16.66360266 | N133: 4.621447984 | O133: 106.2489417 | P133: 24.83602328 | Q133: 2.357104032
L134: Aug | M134: 18.84180398 | N134: 4.377017921 | O134: 83.30994949 | P134: 20.47437481 | Q134: 2.845964158
L135: Sep | M135: 11.86816956 | N135: -0.500012265 | O135: 60.32308278 | P135: 11.71503826 | Q135: 12.60002453
L136: Oct | M136: 6.054984971 | N136: -8.13670746 | O136: 28.69768659 | P136: 5.147512857 | Q136: 27.87341492
L137: Nov | M137: -0.933949222 | N137: -17.64656913 | O137: 2.979207925 | P137: 1.636489596 | Q137: 30
L138: Dec | M138: -3.136782804 | N138: -20.69405246 | O138: 0.11595902 | P138: 0.6290399439 | Q138: 30 | S138: 10
K139: 1967 | L139: Jan | M139: -6.336967056 | N139: -24.51321096 | O139: 0.396371626 | P139: 1.216053377 | Q139: 30
L140: Feb | M140: -3.206410862 | N140: -21.58742861 | O140: 3.184606084 | P140: 4.108354491 | Q140: 30
L141: March | M141: 3.173884786 | N141: -13.06402712 | O141: 14.23404189 | P141: 10.07335061 | Q141: 30
L142: April | M142: 7.82795694 | N142: -6.833865257 | O142: 17.75234052 | P142: 18.0053166 | Q142: 25.26773051
L143: May | M143: 12.83152975 | N143: 0.340096667 | O143: 82.05240869 | P143: 23.69116382 | Q143: 10.91980667
L144: June | M144: 15.30443516 | N144: 0.202516815 | O144: 72.74169488 | P144: 27.77740843 | Q144: 11.19496637
L145: July | M145: 17.68899684 | N145: 3.598475639 | O145: 103.8329027 | P145: 25.87991443 | Q145: 4.403048722
L146: Aug | M146: 16.23568416 | N146: 4.101049211 | O146: 153.5012231 | P146: 19.46961829 | Q146: 3.397901578
L147: Sep | M147: 12.79649914 | N147: -0.618464183 | O147: 43.32551647 | P147: 12.05775423 | Q147: 12.83692837
L148: Oct | M148: 7.687281607 | N148: -6.222839535 | O148: 18.60257949 | P148: 5.095782765 | Q148: 24.04567907
L149: Nov | M149: -1.807152684 | N149: -16.77002856 | O149: 7.124446014 | P149: 1.497710368 | Q149: 30
L150: Dec | M150: -5.466770953 | N150: -24.4247019 | O150: 0.089109323 | P150: 0.6836821993 | Q150: 30 | S150: 11
K151: 1968 | L151: Jan | M151: -4.913693415 | N151: -23.84725501 | O151: 0.931613828 | P151: 1.259898735 | Q151: 30
L152: Feb | M152: -5.481527278 | N152: -23.27716694 | O152: 3.05978343 | P152: 4.034629112 | Q152: 30
L153: March | M153: 4.699890554 | N153: -11.560041 | O153: 8.370589676 | P153: 10.07866577 | Q153: 30
L154: April | M154: 9.70968035 | N154: -6.986066112 | O154: 21.7936332 | P154: 18.72090565 | Q154: 25.57213222
L155: May | M155: 12.10156439 | N155: -2.020722772 | O155: 68.80564101 | P155: 24.48064309 | Q155: 15.64144554
L156: June | M156: 16.53883673 | N156: 0.967862256 | O156: 54.03304847 | P156: 27.99413179 | Q156: 9.664275488
L157: July | M157: 17.23757167 | N157: 2.352316652 | O157: 96.63967248 | P157: 26.25099399 | Q157: 6.895366696
L158: Aug | M158: 16.71309682 | N158: 1.433379958 | O158: 63.25089281 | P158: 20.79528584 | Q158: 8.733240084
L159: Sep | M159: 13.7687025 | N159: -0.804699506 | O159: 88.86991984 | P159: 12.41422841 | Q159: 13.20939901
L160: Oct | M160: 8.21482023 | N160: -6.449094777 | O160: 24.35211189 | P160: 5.23304301 | Q160: 24.49818955
L161: Nov | M161: 2.658125495 | N161: -14.49244745 | O161: 6.342262207 | P161: 1.67035225 | Q161: 30
L162: Dec | M162: -1.487752157 | N162: -19.37270962 | O162: 0.049157658 | P162: 0.6420035588 | Q162: 30 | S162: 12
K163: 1969 | L163: Jan | M163: -3.807527653 | N163: -21.82133751 | O163: 0.467006225 | P163: 1.206471268 | Q163: 30
L164: Feb | M164: -1.933594427 | N164: -19.65486727 | O164: 2.455490148 | P164: 4.02509732 | Q164: 30
L165: March | M165: 5.608335333 | N165: -11.86708999 | O165: 7.950796574 | P165: 10.36295289 | Q165: 30
L166: April | M166: 11.31626747 | N166: -6.294208689 | O166: 32.98259468 | P166: 19.01744814 | Q166: 24.18841738
L167: May | M167: 14.98960613 | N167: -0.834443778 | O167: 72.96447413 | P167: 25.22958939 | Q167: 13.26888756
L168: June | M168: 15.72732485 | N168: 0.260261419 | O168: 61.6707362 | P168: 27.94658946 | Q168: 11.07947716
L169: July | M169: 18.00678674 | N169: 3.457481807 | O169: 108.3684974 | P169: 26.09607436 | Q169: 4.685036386
L170: Aug | M170: 16.81098256 | N170: 2.384864516 | O170: 78.92232764 | P170: 20.45880754 | Q170: 6.830270968
L171: Sep | M171: 13.06113976 | N171: -0.656410907 | O171: 75.10195879 | P171: 12.15292319 | Q171: 12.91282181
L172: Oct | M172: 9.89674879 | N172: -6.001488035 | O172: 22.94276882 | P172: 5.449715035 | Q172: 23.60297607
L173: Nov | M173: -1.687185247 | N173: -16.88228308 | O173: 10.64946494 | P173: 1.516391149 | Q173: 30
L174: Dec | M174: -4.12517879 | N174: -22.83761664 | O174: 0.049157658 | P174: 0.674271906 | Q174: 30 | S174: 13
K175: 1970 | L175: Jan | M175: -5.77382956 | N175: -23.24995464 | O175: 1.27535224 | P175: 1.17437173 | Q175: 30
L176: Feb | M176: -2.478811645 | N176: -20.24334408 | O176: 4.516919217 | P176: 4.030646398 | Q176: 30
L177: March | M177: 0.097847679 | N177: -15.83442866 | O177: 13.84702101 | P177: 9.998997076 | Q177: 30
L178: April | M178: 6.872991711 | N178: -7.793990938 | O178: 27.25445883 | P178: 18.00722803 | Q178: 27.18798188
L179: May | M179: 13.38066642 | N179: -1.836476062 | O179: 49.81735577 | P179: 24.97019926 | Q179: 15.27295212
L180: June | M180: 15.31754899 | N180: -0.160418901 | O180: 45.91457754 | P180: 27.95159106 | Q180: 11.9208378
L181: July | M181: 19.31619006 | N181: 4.303019475 | O181: 76.72320715 | P181: 26.30925693 | Q181: 2.99396105
L182: Aug | M182: 17.87088158 | N182: 2.809534461 | O182: 150.5133423 | P182: 20.71061346 | Q182: 5.980931078
L183: Sep | M183: 13.25717601 | N183: -0.853593984 | O183: 56.58805292 | P183: 12.2743603 | Q183: 13.30718797
L184: Oct | M184: 8.9949035 | N184: -8.005318458 | O184: 11.04572657 | P184: 5.634442013 | Q184: 27.61063692
L185: Nov | M185: 2.424203679 | N185: -16.00468042 | O185: 0.932277533 | P185: 1.766302008 | Q185: 30
L186: Dec | M186: -3.640724607 | N186: -21.07481345 | O186: 0.449965833 | P186: 0.6241460709 | Q186: 30 | S186: 14
K187: 1971 | L187: Jan | M187: -5.347358835 | N187: -24.05851592 | O187: 2.380152006 | P187: 1.24717433 | Q187: 30
L188: Feb | M188: -1.391290341 | N188: -20.45671173 | O188: 1.032735143 | P188: 4.191390949 | Q188: 30
L189: March | M189: 5.082488283 | N189: -12.22509464 | O189: 9.601086711 | P189: 10.32480245 | Q189: 30
L190: April | M190: 10.41517539 | N190: -5.808116813 | O190: 20.59574385 | P190: 18.56143412 | Q190: 23.21623363
L191: =L179 -> May | M191: 13.64811568 | N191: -2.206783722 | O191: 40.32577696 | P191: 25.24255085 | Q191: 16.01356744
L192: June | M192: 15.18811458 | N192: 0.030525301 | O192: 62.42474599 | P192: 27.80341594 | Q192: 11.5389494
L193: July | M193: 19.50008455 | N193: 4.94148854 | O193: 92.68856997 | P193: 26.10039639 | Q193: 1.71702292
L194: Aug | M194: 16.82393083 | N194: 3.664356943 | O194: 88.91474946 | P194: 19.93002803 | Q194: 4.271286114
L195: Sep | M195: 10.82938142 | N195: 0.938006222 | O195: 115.6439179 | P195: 10.76999951 | Q195: 9.723987556
L196: Oct | M196: 7.396158521 | N196: -5.56994442 | O196: 20.61497259 | P196: 4.917867565 | Q196: 22.73988884
L197: Nov | M197: 1.076207908 | N197: -14.09418394 | O197: 5.349287302 | P197: 1.514407067 | Q197: 30
L198: Dec | M198: -1.780934298 | N198: -19.5848022 | O198: 0.049157658 | P198: 0.6388037069 | Q198: 30 | S198: 15
K199: 1972 | L199: Jan | M199: -2.442249364 | N199: -20.44972801 | O199: 0.207344739 | P199: 1.206096634 | Q199: 30
L200: Feb | M200: -4.525390533 | N200: -20.11058193 | O200: 2.043795615 | P200: 3.737769902 | Q200: 30
L201: March | M201: 5.915188982 | N201: -10.78604186 | O201: 11.65443229 | P201: 10.18398118 | Q201: 30
L202: April | M202: 8.59652324 | N202: -5.736801384 | O202: 29.18773449 | P202: 17.88259731 | Q202: 23.07360277
L203: May | M203: 14.51299761 | N203: -0.062994824 | O203: 67.83400462 | P203: 24.68699025 | Q203: 11.72598965
L204: June | M204: 16.32880267 | N204: 1.296559825 | O204: 60.95397904 | P204: 27.74474945 | Q204: 9.00688035
L205: July | M205: 17.21112143 | N205: 5.116252794 | O205: 95.04672008 | P205: 24.86490697 | Q205: 1.367494412
L206: Aug | M206: 18.91084995 | N206: 4.879133549 | O206: 90.48689028 | P206: 20.2981794 | Q206: 1.841732902
L207: Sep | M207: 12.88409272 | N207: -1.802612118 | O207: 47.21268304 | P207: 12.44801136 | Q207: 15.20522424
L208: Oct | M208: 8.92730308 | N208: -9.328721617 | O208: 3.831036929 | P208: 5.833340642 | Q208: 30
L209: Nov | M209: 1.632377485 | N209: -16.37194788 | O209: 4.575536329 | P209: 1.734976111 | Q209: 30
L210: Dec | M210: -3.940174721 | N210: -21.95020796 | O210: 0.182760383 | P210: 0.6469276115 | Q210: 30 | S210: 16
K211: 1973 | L211: Jan | M211: -4.448656757 | N211: -23.06665597 | O211: 0.965456161 | P211: 1.241805391 | Q211: 30
... 479 more rows

Sheet 3-PG function tools
B2: Selected 3-PG relationships
B4: This spreadsheet graphically displays selected 3-PG relationships. Use it for exploring
B5: how relationships change with parameter values. Edit only the parameter values. The
B6: graphs are automaticaly updated to display the relationship for the new values.
A9: Litterfall rate
A11: gammaFx = | B11: 0.027 | C11: (/month) | D11: 0.027 | E11: (/month) | F11: 0.027 | G11: (/month)
A12: gammaF0 = | B12: 0.002 | C12: (/month) | D12: 0.002 | E12: (/month) | F12: 0.002 | G12: (/month)
A13: tgammaF = | B13: 12 | C13: (month) | D13: 24 | E13: (month) | F13: 48 | G13: (month)
A15: Age (years) | B15: gamma (/year) | C15: Life time (yr) | D15: gamma (/year) | E15: Life time (yr) | F15: gamma (/year) | G15: Life time (yr)
A16: 0 | B16: =B$11*B$12/(B$12+(B$11-B$12)*EXP(-LN(B$11/B$12+1)*12*$A16/B$13)) -> 0.002 | C16: =1/B16/12 -> 41.66666667 | D16: =D$11*D$12/(D$12+(D$11-D$12)*EXP(-LN(D$11/D$12+1)*12*$A16/D$13)) -> 0.002 | E16: =1/D16/12 -> 41.66666667 | F16: =F$11*F$12/(F$12+(F$11-F$12)*EXP(-LN(F$11/F$12+1)*12*$A16/F$13)) -> 0.002 | G16: =1/F16/12 -> 41.66666667
A17: 0.2 | B17: 0.003244368442 | C17: 25.6855332 | D17: 0.002555138086 | E17: 32.6140234 | F17: 0.002262144941 | G17: 36.83819362
A18: 0.4 | B18: 0.005104870278 | C18: 16.32428031 | D18: 0.003244368442 | E18: 25.6855332 | F18: 0.002555138086 | G18: 32.6140234
A19: 0.7 | B19: 0.009237461213 | C19: 9.021237699 | D19: 0.004574213847 | E19: 18.21806678 | F19: 0.003058326771 | G19: 27.24801487
A20: 1 | B20: 0.0145 | C20: 5.747126437 | D20: 0.006304491793 | E20: 13.21808896 | F20: 0.003645830076 | G20: 22.85716328
A21: 1.5 | B21: 0.02201582789 | C21: 3.78515556 | D21: 0.01006627065 | E21: 8.278471367 | F21: 0.004833850786 | G21: 17.23953366
A22: 2 | B22: 0.02548484848 | C22: 3.269916766 | D22: 0.0145 | E22: 5.747126437 | F22: 0.006304491793 | G22: 13.21808896
A23: 2.5 | B23: 0.02658492606 | C23: 3.134608429 | D23: 0.01872693134 | E23: 4.449919306 | F23: 0.008059868789 | G23: 10.33929156
A24: 3 | B24: 0.02688974642 | C24: 3.099074719 | D24: 0.02201582789 | E24: 3.78515556 | F24: 0.01006627065 | G24: 8.278471367
A25: 3.5 | B25: 0.02697095854 | C25: 3.08974311 | D25: 0.02419321241 | E25: 3.444492278 | F25: 0.01224912046 | G25: 6.803209555
A26: 4 | B26: 0.02699236729 | C26: 3.087292509 | D26: 0.02548484848 | E26: 3.269916766 | F26: 0.0145 | G26: 5.747126437
A27: 4.5 | B27: 0.02699799513 | C27: 3.08664895 | D27: 0.0262017083 | E27: 3.180454205 | F27: 0.01669632869 | G27: 4.991117203
A28: 5 | B28: 0.02699947347 | C28: 3.086479943 | D28: 0.02658492606 | E28: 3.134608429 | F28: 0.01872693134 | G28: 4.449919306
A29: 5.5 | B29: 0.02699986172 | C29: 3.08643556 | D29: 0.02678568588 | E29: 3.11111441 | F29: 0.02051283781 | G29: 4.062496574
A30: 6 | B30: 0.02699996369 | C30: 3.086423904 | D30: 0.02688974642 | E30: 3.099074719 | F30: 0.02201582789 | G30: 3.78515556
A34: Root allocation
A36: pRx = | B36: 0.8 | C36: 0.8 | D36: 0.8
A37: pRn = | B37: 0.23 | C37: 0.23 | D37: 0.23
A38: FR = | B38: 1 | C38: 0.7 | D38: 0.4
A40: Q*/Q | B40: etaR | C40: etaR | D40: etaR
A41: 0 | B41: =B$36*B$37/(B$37+(B$36-B$37)*B$38*$A41) -> 0.8 | C41: 0.8 | D41: 0.8
A42: 0.1 | B42: 0.6411149826 | C42: 0.6817339755 | D42: 0.7278481013
A43: 0.2 | B43: 0.5348837209 | C43: 0.5939315688 | D43: 0.6676342525
A44: 0.3 | B44: 0.4588528678 | C44: 0.5261652845 | D44: 0.6166219839
A45: 0.4 | B45: 0.4017467249 | C45: 0.4722792608 | D45: 0.5728518057
A46: 0.5 | B46: 0.3572815534 | C46: 0.4284051222 | D46: 0.5348837209
A47: 0.6 | B47: 0.3216783217 | C47: 0.3919897742 | D47: 0.5016357688
A48: 0.7 | B48: 0.2925278219 | C48: 0.3612801885 | D48: 0.4722792608
A49: 0.8 | B49: 0.2682215743 | C49: 0.3350327749 | D49: 0.4461687682
A50: 0.9 | B50: 0.2476446837 | C50: 0.3123408589 | D50: 0.4227941176
A51: 1 | B51: 0.23 | C51: 0.2925278219 | D51: 0.4017467249
A56: Age dependent decline
A58: MaxAge = | B58: 50 | C58: (years)
A59: nAge = | B59: 4 | C59: (-)
A60: rAge = | B60: 0.95 | C60: (-)
A62: Age | B62: relAge | C62: fAge
A63: 0 | B63: =A63/$B$58 -> 0 | C63: =1/(1+(B63/$B$60)^$B$59) -> 1
A64: 5 | B64: 0.1 | C64: 0.9998772413
A65: 10 | B65: 0.2 | C65: 0.998039471
A66: 15 | B66: 0.3 | C66: 0.9901532477
A67: 20 | B67: 0.4 | C67: 0.9695276639
A68: 25 | B68: 0.5 | C68: 0.9287348294
A69: 30 | B69: 0.6 | C69: 0.8627273149
A70: 35 | B70: 0.7 | C70: 0.7723320908
A71: 40 | B71: 0.8 | C71: 0.6653885233
A72: 45 | B72: 0.9 | C72: 0.5538574652
A73: 50 | B73: 1 | C73: 0.4488858884
A77: Biomass partitioning
B79: aS = | C79: 0.0685 | D79: nF = | E79: 0 | F79: aS = | G79: 0.095 | H79: nF = | I79: =G80+I81 -> 1.576091259 | J79: aS = | K79: 0.095 | L79: nF = | N79: =K80+N81 -> 1.098970004
B80: nS = | C80: 2.3617 | D80: aF = | E80: 1.2813 | F80: nS = | G80: 2.4 | H80: aF = | I80: =I82*G79*G80/I79 -> 0.2560794517 | J80: nS = | K80: 2.4 | L80: aF = | N80: =N82*K79*K80/N79 -> 0.5112084951
B81: etaR = | C81: 0.4 | D81: np = | E81: =LN(C83/C82)/LN(10) -> -0.6020599913 | F81: etaR = | G81: 0.4 | H81: np = | I81: =LN(G83/G82)/LN(10) -> -0.8239087409 | J81: etaR = | K81: 0.4 | L81: np = | N81: =LN(K83/K82)/LN(10) -> -1.301029996
B82: pFS2 = | C82: 1 | D82: ap = | E82: =C82/2^E81 -> 1.517882369 | F82: pFS2 = | G82: 1 | H82: ap = | I82: =G82/2^I81 -> 1.77019555 | J82: pFS2 = | K82: 1 | L82: ap = | N82: =K82/2^N81 -> 2.464047377
B83: pFS20 = | C83: 0.25 | F83: pFS20 = | G83: 0.15 | J83: pFS20 = | K83: 0.05
A85: D | B85: WS | C85: pFS | D85: etaS | E85: etaF | F85: WS | G85: pFS | H85: etaS | I85: etaF | J85: WS | K85: pFS | L85: etaS | N85: etaF
A86: 1 | B86: =$C$79*$A86^$C$80 -> 0.0685 | C86: =$E$82*$A86^$E$81 -> 1.517882369 | D86: =(1-$C$81)/(1+C86) -> 0.2382954848 | E86: =C86*D86 -> 0.3617045152 | F86: =$C$79*$A86^$C$80 -> 0.0685 | G86: =$I$82*$A86^$I$81 -> 1.77019555 | H86: =(1-$G$81)/(1+G86) -> 0.2165912078 | I86: =G86*H86 -> 0.3834087922 | J86: =$C$79*$A86^$C$80 -> 0.0685 | K86: =$N$82*$A86^$N$81 -> 2.464047377 | L86: =(1-$K$81)/(1+K86) -> 0.1732077927 | N86: =K86*L86 -> 0.4267922073
A87: 2 | B87: 0.3520733173 | C87: 1 | D87: 0.3 | E87: 0.3 | F87: 0.3520733173 | G87: 1 | H87: 0.3 | I87: 0.3 | J87: 0.3520733173 | K87: 1 | L87: 0.3 | N87: 0.3
A88: 3 | B88: 0.9172924918 | C88: 0.7833980715 | D88: 0.3364363849 | E88: 0.2635636151 | F88: 0.9172924918 | G88: 0.7160063476 | H88: 0.3496490563 | I88: 0.2503509437 | J88: 0.9172924918 | K88: 0.5900651834 | L88: 0.3773430211 | N88: 0.2226569789
A89: 4 | B89: 1.809571106 | C89: 0.65881258 | D89: 0.3617045152 | E89: 0.2382954848 | F89: 1.809571106 | G89: 0.56490934 | H89: 0.3834087922 | I89: 0.2165912078 | J89: 1.809571106 | K89: 0.4058363525 | L89: 0.4267922073 | N89: 0.1732077927
A90: 5 | B90: 3.065123874 | C90: 0.5759917219 | D90: 0.3807126596 | E90: 0.2192873404 | F90: 3.065123874 | G90: 0.4700388429 | H90: 0.4081524804 | I90: 0.1918475196 | J90: 3.065123874 | K90: 0.3035764739 | L90: 0.4602721912 | N90: 0.1397278088
A91: 6 | B91: 4.714660007 | C91: 0.5161125047 | D91: 0.395748995 | E91: 0.204251005 | F91: 4.714660007 | G91: 0.4044786733 | H91: 0.4272047781 | I91: 0.1727952219 | J91: 4.714660007 | K91: 0.2394699018 | L91: 0.4840779104 | N91: 0.1159220896
A92: 7 | B92: 6.785136869 | C92: 0.470368682 | D92: 0.408060922 | E92: 0.191939078 | F92: 6.785136869 | G92: 0.356235817 | H92: 0.4424009398 | I92: 0.1575990602 | J92: 6.785136869 | K92: 0.1959526561 | L92: 0.5016921004 | N92: 0.09830789961
A93: 8 | B93: 9.300754773 | C93: 0.4340340156 | D93: 0.4184001171 | E93: 0.1815998829 | F93: 9.300754773 | G93: 0.3191225625 | H93: 0.4548478034 | I93: 0.1451521966 | J93: 9.300754773 | K93: 0.164703145 | L93: 0.5151527259 | N93: 0.08484727411
A94: 10 | B94: 15.75399022 | C94: 0.3794705924 | D94: 0.4349494678 | E94: 0.1650505322 | F94: 15.75399022 | G94: 0.2655293325 | H94: 0.4741099116 | I94: 0.1258900884 | J94: 15.75399022 | K94: 0.1232023689 | L94: 0.5341869076 | N94: 0.06581309243
A95: 15 | B95: 41.04547614 | C95: 0.2972765303 | D95: 0.4625074038 | E95: 0.1374925962 | F95: 41.04547614 | G95: 0.1901206876 | H95: 0.5041505507 | I95: 0.09584944933 | J95: 41.04547614 | K95: 0.07269742838 | L95: 0.5593375952 | N95: 0.04066240477
A96: 20 | B96: 80.97167294 | C96: 0.25 | D96: 0.48 | E96: 0.12 | F96: 80.97167294 | G96: 0.15 | H96: 0.5217391304 | I96: 0.07826086957 | J96: 80.97167294 | K96: 0.05 | L96: 0.5714285714 | N96: 0.02857142857
A97: 30 | B97: 210.963751 | C97: 0.1958495179 | D97: 0.5017353697 | E97: 0.09826463026 | F97: 210.963751 | G97: 0.1074009521 | H97: 0.5418091784 | I97: 0.05819082163 | J97: 210.963751 | K97: 0.02950325917 | L97: 0.5828053429 | N97: 0.01719465708
A115: Specific leaf area
A117: SLA0 | B117: 11 | C117: 11 | D117: 11 | E117: (m2/kg)
A118: SLA1 | B118: 4 | C118: 4 | D118: 4 | E118: (m2/kg)
A119: tSLA | B119: 2 | C119: 2.5 | D119: 3 | E119: (years)
A120: n | B120: 2 | C120: 2 | D120: 2
A122: Age
A123: 0 | B123: =B$118+(B$117-B$118)*EXP(-0.69315*($A123/B$119)^B$120) -> 11 | C123: 11 | D123: 11
A124: 0.25 | B124: 10.92459579 | C124: 10.95164727 | D124: 10.96638617
A125: 0.5 | B125: 10.70322178 | C125: 10.80858386 | D125: 10.86651008
A126: 1 | B126: 9.886270758 | C126: 10.26517267 | D126: 10.48112096
A127: 1.5 | B127: 8.739886897 | C127: 9.454146522 | D127: 9.886270758
A128: 2 | B128: 7.499990132 | C128: 8.491982536 | D128: 9.144064277
A129: 2.5 | B129: 6.369936767 | C129: 7.499990132 | D129: 8.325622161
A130: 3 | B130: 5.471559391 | C130: 6.579960656 | D130: 7.499990132
A131: 4 | B131: 4.437495066 | C131: 5.187020219 | D131: 6.041415587
A132: 5 | B132: 4.091971425 | C132: 4.437495066 | D132: 5.020704916
A133: 6 | B133: 4.013671528 | C133: 4.129168975 | D133: 4.437495066
A134: 7 | B134: 4.001437029 | C134: 4.030550145 | D134: 4.160749743
A135: 8 | B135: 4.000106807 | C135: 4.005788131 | D135: 4.050632758
A139: Branch+bark fraction
A141: fracBB0 | B141: 0.75 | C141: 0.75 | D141: 0.75 | E141: (-)
A142: fracBB1 | B142: 0.15 | C142: 0.15 | D142: 0.15 | E142: (-)
A143: tBB | B143: 3 | C143: 2 | D143: 1 | E143: (years)
A144: n | B144: 1 | C144: 1 | D144: 1 | E144: (-)
A146: Age
A147: 0 | B147: =B$142+(B$141-B$142)*EXP(-0.69315*($A147/B$143)^B$144) -> 0.75 | C147: 0.75 | D147: 0.75
A148: 0.25 | B148: 0.7163244545 | C148: 0.700202232 | D148: 0.6545374935
A149: 0.5 | B149: 0.6845389797 | C149: 0.6545374935 | D149: 0.5742634706
A150: 1 | B150: 0.626219868 | C150: 0.5742634706 | D150: 0.4499991542
A151: 1.5 | B151: 0.5742634706 | C151: 0.5067613801 | D151: 0.3621311372
A152: 2 | B152: 0.5279756045 | C152: 0.4499991542 | D152: 0.2999991542
A153: 2.5 | B153: 0.4867378233 | C153: 0.4022680355 | D153: 0.2560652696
A154: 3 | B154: 0.4499991542 | C154: 0.3621311372 | D154: 0.2249993656
A155: 4 | B155: 0.3881092627 | C155: 0.2999991542 | D155: 0.1874995771
A156: 5 | B156: 0.3389872694 | C156: 0.2560652696 | D156: 0.1687497357
A157: 6 | B157: 0.2999991542 | C157: 0.2249993656 | D157: 0.1593748414
A158: 7 | B158: 0.2690542957 | C158: 0.2030324853 | D158: 0.1546874075
A159: 8 | B159: 0.2444933683 | C159: 0.1874995771 | D159: 0.1523436971
A163: Determination of temperature modifier fT(Tav)
B166: alpha0 = | C166: 0.06 | D166: 0.06 | E166: 0.06 | F166: (mol/mol)
B167: Tmin = | C167: -2 | D167: 7.5 | E167: 7.5 | F167: (deg C)
B168: Topt = | C168: 10 | D168: 15 | E168: 16 | F168: (deg C)
B169: Tmax = | C169: 40 | D169: 35 | E169: 35 | F169: (deg C)
B171: T | C171: fTemp | D171: fTemp | E171: fTemp
B172: 7 | C172: =C$166*MAX(0,(($B172-C$167)/(C$168-C$167))*((C$169-$B172)/(C$169-C$168))^((C$169-C$168)/(C$168-C$167))) -> 0.05710764178 | D172: 0 | E172: 0
B173: 7.5 | C173: 0.05802282573 | D173: 0 | E173: 0 | O173: =0.0588/0.06 -> 0.98
B174: 8 | C174: 0.0587545918 | D174: 0.008904646991 | E174: 0.007741603584
B175: 9 | C175: 0.05969855061 | D175: 0.02415628726 | E175: 0.02134591535
B176: 10 | C176: 0.06 | D176: 0.03626241276 | E176: 0.03259034887
B177: 11 | C177: 0.05971799452 | D177: 0.04553108722 | E177: 0.04164741367
B178: 12 | C178: 0.05891013006 | D178: 0.05225927837 | E178: 0.04868740841
B179: 13 | C179: 0.05763251036 | D179: 0.05673266309 | E179: 0.05387833098
B180: 14 | C180: 0.05593971123 | D180: 0.0592254189 | E180: 0.05738578025
B181: 15 | C181: 0.05388474235 | D181: 0.06 | E181: 0.05937284806
B182: 16 | C182: 0.0515190062 | D182: 0.05930689585 | E182: 0.06
B183: 17 | C183: 0.04889225391 | D183: 0.05738436992 | E183: 0.0594249431
B184: 18 | C184: 0.04605253754 | D184: 0.0544581756 | E184: 0.05780247807
B185: 19 | C185: 0.04304615837 | D185: 0.05074124582 | E185: 0.05528433336
B186: 20 | C186: 0.03991761062 | D186: 0.04643335194 | E186: 0.05201897719
B187: 21 | C187: 0.03670952001 | D187: 0.04172072648 | E187: 0.04815140316
B188: 22 | C188: 0.03346257611 | D188: 0.0367756429 | E188: 0.04382288323
B189: 23 | C189: 0.03021545787 | D189: 0.03175594342 | E189: 0.03917068009
B190: 24 | C190: 0.02700475069 | D190: 0.02680450366 | E190: 0.03432770822
B191: 25 | C191: 0.02386485387 | D191: 0.02204861837 | E191: 0.02942212856
B192: 26 | C192: 0.02082787622 | D192: 0.01759928748 | E192: 0.02457685567
B193: 27 | C193: 0.01792351758 | D193: 0.01355037274 | E193: 0.01990894604
B194: 28 | C194: 0.01517893277 | D194: 0.009977581861 | E194: 0.01552882019
B195: 29 | C195: 0.01261857386 | D195: 0.006937214548 | E195: 0.01153924236
B196: 30 | C196: 0.01026400479 | D196: 0.004464565459 | E196: 0.008033928823
A200: Soil water modifier
B202: Swconst = | C202: 0.7 | D202: 0.6 | E202: 0.5 | F202: 0.4
B203: Swpower = | C203: 9 | D203: 7 | E203: 5 | F203: 3
B205: relASW | C205: S | D205: SL | E205: CL | F205: C
B206: 0 | C206: =1/(1+((1-$B206)/C$202)^C$203) -> 0.03878835689 | D206: 0.02723129794 | E206: 0.0303030303 | F206: 0.06015037594
B207: 0.1 | C207: 0.09433391918 | D207: 0.05529157667 | E207: 0.05026216747 | F207: 0.08070617907
B208: 0.2 | C208: 0.2311582655 | D208: 0.1177642561 | E208: 0.08706433009 | F208: 0.1111111111
B209: 0.3 | C209: 0.5 | D209: 0.2536849365 | E209: 0.1567830624 | F209: 0.1572481572
B210: 0.4 | C210: 0.8001698271 | D210: 0.5 | E210: 0.2866709476 | F210: 0.2285714286
B211: 0.5 | C211: 0.9538341794 | D211: 0.7818109205 | E211: 0.5 | F211: 0.3386243386
B212: 0.6 | C212: 0.9935457552 | D212: 0.9447084233 | E212: 0.7531935406 | F212: 0.5
B213: 0.7 | C213: 0.9995124747 | D213: 0.992248062 | E213: 0.9278503563 | F213: 0.7032967033
B214: 0.8 | C214: 0.9999873123 | D214: 0.9995429616 | E214: 0.9898637947 | F214: 0.8888888889
B215: 0.9 | C215: 0.9999999752 | D215: 0.9999964278 | E215: 0.9996801024 | F215: 0.9846153846
B216: 1 | C216: 1 | D216: 1 | E216: 1 | F216: 1
A219: Canopy conductance
B221: maxCond = | C221: 0.02 | D221: 0.02 | E221: 0.025
B222: LAIgcx = | C222: 3 | D222: 4 | E222: 3
B223: Physmod = | C223: 1 | D223: 1 | E223: 1
B225: LAI | C225: gC
B226: 0 | C226: =C$221*C$223*MIN(1,$B226/C$222) -> 0 | D226: 0 | E226: =E$221*E$223*MIN(1,$B226/E$222) -> 0
B227: 0.5 | C227: 0.003333333333 | D227: 0.0025 | E227: 0.004166666667
B228: 1 | C228: 0.006666666667 | D228: 0.005 | E228: 0.008333333333
B229: 1.5 | C229: 0.01 | D229: 0.0075 | E229: 0.0125
B230: 2 | C230: 0.01333333333 | D230: 0.01 | E230: 0.01666666667
B231: 2.5 | C231: 0.01666666667 | D231: 0.0125 | E231: 0.02083333333
B232: 3 | C232: 0.02 | D232: 0.015 | E232: 0.025
B233: 3.5 | C233: 0.02 | D233: 0.0175 | E233: 0.025
B234: 4 | C234: 0.02 | D234: 0.02 | E234: 0.025
B235: 4.5 | C235: 0.02 | D235: 0.02 | E235: 0.025
B236: 5 | C236: 0.02 | D236: 0.02 | E236: 0.025
A239: Calculation ofVPD from Tmax and Tmin (assumes average =0.62 of max saturated VP)
A241: The following implements the internal calculation of VPD
A242: from maximum and minimum temperatures:
A243: VPD = (Sat Vap Pres at Tmax - Sat Vap Pres at Tmin)*0.62
A244: Enter data for Tmax and Tmin, and VPD is computed.
C247: Month | D247: Tmax | E247: Tmin | F247: VPD (mBar)
C248: Jan | D248: 8.569753086 | E248: 3.574382716 | F248: =(6.1078 * EXP(17.269 * D248 / (237.3 + D248)) -6.1078 * EXP(17.269 * E248 / (237.3 + E248)))*0.62 -> 2.020327121
C249: Feb | D249: 10.16419753 | E249: 4.15 | F249: =(6.1078 * EXP(17.269 * D249 / (237.3 + D249)) -6.1078 * EXP(17.269 * E249 / (237.3 + E249)))*0.62 -> 2.601528923
C250: Mar | D250: 12.07345679 | E250: 0.9932098765 | F250: 4.667945059
C251: Apr | D251: 14.03981481 | E251: 3.664506173 | F251: 5.011955961
C252: May | D252: 18.11203704 | E252: 7.774382716 | F252: 6.336592565
C253: Jun | D253: 21.20617284 | E253: 9.628395062 | F253: 8.188682816
C254: Jul | D254: 26.12685185 | E254: 13.75123457 | F254: 11.24332588
C255: Aug | D255: 26.3441358 | E255: 13.7 | F255: 11.54666772
C256: Sep | D256: 24.26358025 | E256: 12.90987654 | F256: 9.561846259
C257: Oct | D257: 17.5 | E257: 8.900308642 | F257: 5.328969459
C258: Nov | D258: 10.36635802 | E258: 4.743209877 | F258: 2.489854713
C259: Dec | D259: 7.748148148 | E259: 2.546604938 | F259: 1.988609621
A263: Calculation of days <-2oC/month from Tmin
A264: [calibrated so that frost days are <-2oC]
A265: Frost days/ month = Tmin (-2.00) +11.6; if <0, then 0 days of frost
A266: Note: if Tmin is <-9, then set Frost days to 30
C268: Month | D268: Tmin | E268: Frost days | F268: Frost days
C269: Jan | D269: -5.4 | E269: =D269*(-2)+11.6 -> 22.4 | F269: =IF(E269<0,0,E269) -> 22.4
C270: Feb | D270: -3.2 | E270: 18 | F270: =IF(E270<0,0,E270) -> 18
... 10 more rows

Sheet 3PGpjs_Outputs
C2: Names and description of 3PGPJS output variables
C3: Description | D3: Output name | E3: 3-PG name | F3: Units
C4: Site and management attributes
C5: Name of site given on site data sheet | D5: Site name | E5: siteName
C6: Fertility rating | D6: Fert. rating | E6: FR
C7: Minimum available soil water (for supplemental irrigation) | D7: Min ASW | E7: minASW | F7: mm
C8: Applied irrigation | D8: Annual irrigation | E8: Irrig | F8: mm/ha/yr
C9: Stand attributes
C10: Current stand age | D10: Stand age | E10: StandAge | F10: years
C11: Stand stocking | D11: Stocking | E11: StemNo | F11: trees/ha
C12: Stand basal area | D12: Basal area | E12: BasArea | F12: m2/ha
C13: Stand volume, main stem excluding bark | D13: Stand volume | E13: StandVol | F13: m3/ha
C14: Stand-based mean DBH | D14: Mean DBH | E14: avDBH | F14: cm
C15: Current mean annual stem volume increment | D15: MAI | E15: MAI | F15: m3/ha/yr
C16: Peak MAI of stand to the current stand age | D16: Peak MAI | E16: MAIx | F16: m3/ha/yr
C17: Stand age at which MAI peaked | D17: Age at peak MAI | E17: ageMAIx | F17: yr
C18: Current canopy LAI (mean annual value if output is annual) | D18: LAI | E18: LAI
C19: Peak canopy LAI up to the current stand age | D19: Max LAI | E19: LAIx
C20: Stand age at which LAI peaked | D20: Age at max LAI | E20: ageLAIx | F20: yr
C21: Fraction of ground area covered by canopy | D21: Fract. canopy cover | E21: CanCover
C22: Biomass pools and canopy attributes
C23: Foliage biomass | D23: Foliage DM | E23: WF | F23: tDM/ha
C24: Root biomass | D24: Root DM | E24: WR | F24: tDM/ha
C25: Stem biomass, including branches and bark | D25: Stem DM | E25: WS | F25: tDM/ha
C26: Total biomass | D26: Total DM | E26: TotalW | F26: tDM/ha
C27: Total litter fall over run | D27: Total litter fall | E27: TotalLitter | F27: tDM/ha/yr
C28: Mean stem biomass per tree | D28: Mean stem mass | E28: AvStemMass | F28: kgDM/tree
C29: Fraction of above ground woody biomass as branch and bark | D29: Fract. as bark & branch | E29: fracBB
C30: Specific leaf area | D30: SLA | E30: SLA | F30: m/kg
C31: Annual outputs
C32: Light utilisation efficiency based on above ground biomass | D32: Above ground epsilon | E32: AbvgrndEpsilon | F32: gDM/MJ
C33: Light utilisation efficiency based on total biomass | D33: Total epsilon | E33: TotalEpsilon | F33: gDM/MJ
C34: Annual total evapoptranspiration | D34: Annual ET | E34: CumEvapTransp | F34: mm/yr
C35: Annual total transpiration | D35: Annual transp. | E35: cumTransp | F35: mm/yr
C36: Annual total supplemental irrigation | D36: Annual suppl. irrigation | E36: cumIrrig | F36: mm/yr
C37: Annual total net primary production | D37: Annual NPP | E37: cumNPP | F37: tDM/ha/yr
C38: Growth modifiers
C39: Age dependent modifier | D39: fAge | E39: fAge
C40: VPDdependent modifier | D40: fVPD | E40: fVPD
C41: Temperature dependent modifier | D41: fTemp | E41: fT
C42: Frost dependent modifier | D42: fFrost | E42: fFrost
C43: Soil water dependent modifier | D43: fSW | E43: fSW
C44: Nutrion dependent modifier | D44: fNutr | E44: fNutr
C45: Physiological modifier of canopy conductance | D45: Phys. modifier | E45: PhysMod
C46: Fertility dependent modifier of root biomass partitioning | D46: m | E46: m
C47: Biomass production and partitioning
C48: Net primary production | D48: Monthly NPP | E48: NPP | F48: tDM/ha/month
C49: Canopy quantum efficiency after application of modifiers | D49: Canopy alpha | E49: alphaC | F49: mol/mol
C50: Fraction of NPP partitioned to roots | D50: pR | E50: pR
C51: Fraction of NPP partitioned to stems | D51: pS | E51: pS
C52: Fraction of NPP partitioned to foliage | D52: pF | E52: pF
C53: Ratio of foliage to stem biomass partitioning | D53: pFS | E53: pFS
C54: Leaf litterfall rate | D54: Litter fall rate | E54: Littfall | F54: per month
C55: Litter fall in current period | D55: Litter fall | E55: delLitter | F55: tDM/ha/month
C56: Stem mortality
C57: Maximum tree stem mass at current stocking | D57: wSmax | E57: wSmax | F57: kg/tree
C58: Number of stems dying | D58: Dying stems | E58: delStemNo | F58: trees/ha
C59: Water use
C60: Available soil water | D60: ASW | E60: ASW | F60: mm
C61: Monthly supplemental irrigation (to maintain minASW) | D61: Monthly supp. irrig. | E61: monthlyIrrig | F61: mm/month
C62: Monthly evapoptranspiration rate | D62: Monthly ET | E62: EvapTransp | F62: mm/month
C63: Monthly transpiration rate | D63: Monthly transp. | E63: Transp | F63: mm/month
C64: Canopy conductance | D64: Canopy conductance | E64: CanCond
C65: Climatic factors
C66: Day length (sunrise to sunset) | D66: Daylength | E66: DayLength | F66: s/day
C67: Mean number of frost days per month | D67: Frost days | E67: FrostDays | F67: days/month
C68: Mean daily incident solar radiation | D68: Solar rad. | E68: SolarRad | F68: MJ m-/day
C69: Mean daily temperature | D69: Mean temp. | E69: Tav | F69: oC
C70: Mean daily VPD | D70: VPD | E70: VPD | F70: mBar
C71: Mean monthly rainfall | D71: Rainfall | E71: Rain | F71: mm/F31month
